Publisher Label,Publisher URI,"Directorate code","Directorate","Service code","Service","Revenue or capital code","Revenue capital","Cost centre","Cost centre description","Bvsub Category","Bvsub description","Bvsum code","Bvsum description","Account code","Account description","Transaction No","Period","Transaction Date","Amount","Classification code","Classification description","Supplier ID","Supplier description","Company registration number","Company registration number Uri","VAT registration number"
"London Borough of Redbridge","http://opendatacommunities.org/doc/london-borough-council/redbridge","3BINDSCHFUND","Individual School Funds","3CDELPRIMARY","Delegated Individual Primary School Budgets","REV","Revenue","R3524","Coppice Primary School","05-THIRD","Third Party Payments","05G","Other establishments","7451","LMS Bank Accounts Pilot","3696546","202302",27/05/2022 00:00:00,176080.93,"67981","Schools - Local Authority","REDACTED DATA","COPPICE PRIMARY SCHOOL PAYROLL A/C","",,""
"London Borough of Redbridge","http://opendatacommunities.org/doc/london-borough-council/redbridge","9BNONBVO","Outside the BVACOP Objective Structure","9CNONBVO","Outside the BVACOP Objective Structure","CAP","Capital","C4344","School Conditioning","99-NONBV","Capital, Balance Sheet and Control","50E","Capital - Contract Payments","9150","Main Contract","70123652","202301",13/04/2022 00:00:00,140300.34,"50275","Mechanical Engineers","REDACTED DATA","SJP MECHANICAL SERVICES LTD","1495029221","http://opencorporates.com/companies/gb/1495029221",""
"London Borough of Redbridge","http://opendatacommunities.org/doc/london-borough-council/redbridge","3BINDSCHFUND","Individual School Funds","3CDELPRIMARY","Delegated Individual Primary School Budgets","REV","Revenue","R3541","John Bramston Primary School","05-THIRD","Third Party Payments","05G","Other establishments","7451","LMS Bank Accounts Pilot","3696553","202302",27/05/2022 00:00:00,167103.14,"67981","Schools - Local Authority","REDACTED DATA","JOHN BRAMSTON PRIMARY SCHOOL NO2 PAYROLL ACCOUNT","",,""
"London Borough of Redbridge","http://opendatacommunities.org/doc/london-borough-council/redbridge","9BNONBVO","Outside the BVACOP Objective Structure","9CNONBVO","Outside the BVACOP Objective Structure","CAP","Capital","C1759","Devolved Formula Capital SF","99-NONBV","Capital, Balance Sheet and Control","50E","Capital - Contract Payments","9163","Main Building / structure","60489513","202302",10/05/2022 00:00:00,137985.22,"21555","Construction Contractors - General","REDACTED DATA","Longley Group Ltd","7633349","http://opencorporates.com/companies/gb/7633349","165771972"
"London Borough of Redbridge","http://opendatacommunities.org/doc/london-borough-council/redbridge","3BINDSCHFUND","Individual School Funds","3CDELPRIMARY","Delegated Individual Primary School Budgets","REV","Revenue","R3533","Glade Primary School","05-THIRD","Third Party Payments","05G","Other establishments","7451","LMS Bank Accounts Pilot","3696551","202302",27/05/2022 00:00:00,162000,"67981","Schools - Local Authority","REDACTED DATA","GLADE PRIMARY SCHOOL PAYROLL A/C","",,""
"London Borough of Redbridge","http://opendatacommunities.org/doc/london-borough-council/redbridge","9BNONBVO","Outside the BVACOP Objective Structure","9CNONBVO","Outside the BVACOP Objective Structure","CAP","Capital","C4335","Swimming Pool at Wanstead","99-NONBV","Capital, Balance Sheet and Control","50E","Capital - Contract Payments","9150","Main Contract","60489205","202302",06/04/2022 00:00:00,134596.77,"21555","Construction Contractors - General","REDACTED DATA","Longley Group Ltd","7633349","http://opencorporates.com/companies/gb/7633349","165771972"
"London Borough of Redbridge","http://opendatacommunities.org/doc/london-borough-council/redbridge","9BNONBVO","Outside the BVACOP Objective Structure","9CNONBVO","Outside the BVACOP Objective Structure","BAL","Balance Sheet","B0339","NNDR Ilford Business Improvement District","99-NONBV","Capital, Balance Sheet and Control","50Q","Other Balances & Reserves","9912","Personal Account - Creditor","70123945","202302",06/05/2022 00:00:00,133717.81,"26450","Distribution Services","REDACTED DATA","ILFORD TOWN CENTRE MANAGEMENT LTD T/A ILFORD BID","3375025","http://opencorporates.com/companies/gb/3375025","830347939"
"London Borough of Redbridge","http://opendatacommunities.org/doc/london-borough-council/redbridge","3BLEACENTFND","LEA Centrally Held School Funds","3CNONSCH","Non Schools","REV","Revenue","R2234","Maintained Post 16 colleges","05-THIRD","Third Party Payments","05G","Other establishments","7433","OOB Post 16 Top Up","60489540","202302",18/03/2022 00:00:00,148712.69,"67860","Schools - Independent and Preparatory","REDACTED DATA","AMBITIOUS ABOUT AUTISM ( TREEHOUSE SCHOOL)","3375255","http://opencorporates.com/companies/gb/3375255",""
"London Borough of Redbridge","http://opendatacommunities.org/doc/london-borough-council/redbridge","9BNONBVO","Outside the BVACOP Objective Structure","9CNONBVO","Outside the BVACOP Objective Structure","REV","Revenue","R0095","Insurance Contribution","04-SUPPLIES","Supplies And Services","04K","Miscellaneous expenses","6200","Insurance Premiums - General","70123938","202302",07/12/2021 00:00:00,146805.12,"45415","Insurance - Other","REDACTED DATA","ZURICH INSURANCE COMPANY","BR105","http://opencorporates.com/companies/gb/BR105","107831677"
"London Borough of Redbridge","http://opendatacommunities.org/doc/london-borough-council/redbridge","3BINDSCHFUND","Individual School Funds","3CDELPRIMARY","Delegated Individual Primary School Budgets","REV","Revenue","R3519","Churchfields Infants' School","05-THIRD","Third Party Payments","05G","Other establishments","7451","LMS Bank Accounts Pilot","3696545","202302",27/05/2022 00:00:00,146053.68,"67981","Schools - Local Authority","REDACTED DATA","CHURCHFIELDS INFANT SCHOOL NURSERY UNIT PAYROLL ACCT","",,""
"London Borough of Redbridge","http://opendatacommunities.org/doc/london-borough-council/redbridge","9BNONBVO","Outside the BVACOP Objective Structure","9CNONBVO","Outside the BVACOP Objective Structure","REV","Revenue","R0026","Collection Fund","05-THIRD","Third Party Payments","05E","Government departments","6752","GLA Council Tax � Precepts","60488685","202302",01/05/2022 00:00:00,3597793.51,"48583","Local Government","REDACTED DATA","GREATER LONDON AUTHORITY","",,""
"London Borough of Redbridge","http://opendatacommunities.org/doc/london-borough-council/redbridge","5BGFHOUSING","General Fund Housing","5CHOMELESS","Homelessness","REV","Revenue","R5630","HAC Temporary Accomodation","05-THIRD","Third Party Payments","05H","Private contractors","6900","Nightly Let Plus Charges","3693388","202302",01/05/2022 00:00:00,1521.3,"31230","Employment and Recruitment Agencies","REDACTED DATA","ADAM HTT LIMITED T/A ADAM","7718565","http://opencorporates.com/companies/gb/7718565","198573349"
"London Borough of Redbridge","http://opendatacommunities.org/doc/london-borough-council/redbridge","5BGFHOUSING","General Fund Housing","5CHOMELESS","Homelessness","REV","Revenue","R5630","HAC Temporary Accomodation","05-THIRD","Third Party Payments","05H","Private contractors","6900","Nightly Let Plus Charges","3693388","202302",01/05/2022 00:00:00,772.2,"31230","Employment and Recruitment Agencies","REDACTED DATA","ADAM HTT LIMITED T/A ADAM","7718565","http://opencorporates.com/companies/gb/7718565","198573349"
"London Borough of Redbridge","http://opendatacommunities.org/doc/london-borough-council/redbridge","5BGFHOUSING","General Fund Housing","5CHOMELESS","Homelessness","REV","Revenue","R5630","HAC Temporary Accomodation","05-THIRD","Third Party Payments","05H","Private contractors","6900","Nightly Let Plus Charges","3693388","202302",01/05/2022 00:00:00,855,"31230","Employment and Recruitment Agencies","REDACTED DATA","ADAM HTT LIMITED T/A ADAM","7718565","http://opencorporates.com/companies/gb/7718565","198573349"
"London Borough of Redbridge","http://opendatacommunities.org/doc/london-borough-council/redbridge","5BGFHOUSING","General Fund Housing","5CHOMELESS","Homelessness","REV","Revenue","R5630","HAC Temporary Accomodation","05-THIRD","Third Party Payments","05H","Private contractors","6900","Nightly Let Plus Charges","3693388","202302",01/05/2022 00:00:00,1500,"31230","Employment and Recruitment Agencies","REDACTED DATA","ADAM HTT LIMITED T/A ADAM","7718565","http://opencorporates.com/companies/gb/7718565","198573349"
"London Borough of Redbridge","http://opendatacommunities.org/doc/london-borough-council/redbridge","5BGFHOUSING","General Fund Housing","5CHOMELESS","Homelessness","REV","Revenue","R5630","HAC Temporary Accomodation","05-THIRD","Third Party Payments","05H","Private contractors","6900","Nightly Let Plus Charges","3693388","202302",01/05/2022 00:00:00,0,"31230","Employment and Recruitment Agencies","REDACTED DATA","ADAM HTT LIMITED T/A ADAM","7718565","http://opencorporates.com/companies/gb/7718565","198573349"
"London Borough of Redbridge","http://opendatacommunities.org/doc/london-borough-council/redbridge","5BGFHOUSING","General Fund Housing","5CHOMELESS","Homelessness","REV","Revenue","R5630","HAC Temporary Accomodation","05-THIRD","Third Party Payments","05H","Private contractors","6900","Nightly Let Plus Charges","3693388","202302",01/05/2022 00:00:00,1500,"31230","Employment and Recruitment Agencies","REDACTED DATA","ADAM HTT LIMITED T/A ADAM","7718565","http://opencorporates.com/companies/gb/7718565","198573349"
"London Borough of Redbridge","http://opendatacommunities.org/doc/london-borough-council/redbridge","5BGFHOUSING","General Fund Housing","5CHOMELESS","Homelessness","REV","Revenue","R5630","HAC Temporary Accomodation","05-THIRD","Third Party Payments","05H","Private contractors","6900","Nightly Let Plus Charges","3693388","202302",01/05/2022 00:00:00,0,"31230","Employment and Recruitment Agencies","REDACTED DATA","ADAM HTT LIMITED T/A ADAM","7718565","http://opencorporates.com/companies/gb/7718565","198573349"
"London Borough of Redbridge","http://opendatacommunities.org/doc/london-borough-council/redbridge","5BGFHOUSING","General Fund Housing","5CHOMELESS","Homelessness","REV","Revenue","R5630","HAC Temporary Accomodation","05-THIRD","Third Party Payments","05H","Private contractors","6900","Nightly Let Plus Charges","3693388","202302",01/05/2022 00:00:00,1431,"31230","Employment and Recruitment Agencies","REDACTED DATA","ADAM HTT LIMITED T/A ADAM","7718565","http://opencorporates.com/companies/gb/7718565","198573349"
"London Borough of Redbridge","http://opendatacommunities.org/doc/london-borough-council/redbridge","5BGFHOUSING","General Fund Housing","5CHOMELESS","Homelessness","REV","Revenue","R5630","HAC Temporary Accomodation","05-THIRD","Third Party Payments","05H","Private contractors","6900","Nightly Let Plus Charges","3693388","202302",01/05/2022 00:00:00,0,"31230","Employment and Recruitment Agencies","REDACTED DATA","ADAM HTT LIMITED T/A ADAM","7718565","http://opencorporates.com/companies/gb/7718565","198573349"
"London Borough of Redbridge","http://opendatacommunities.org/doc/london-borough-council/redbridge","5BGFHOUSING","General Fund Housing","5CHOMELESS","Homelessness","REV","Revenue","R5630","HAC Temporary Accomodation","05-THIRD","Third Party Payments","05H","Private contractors","6900","Nightly Let Plus Charges","3693388","202302",01/05/2022 00:00:00,772.2,"31230","Employment and Recruitment Agencies","REDACTED DATA","ADAM HTT LIMITED T/A ADAM","7718565","http://opencorporates.com/companies/gb/7718565","198573349"
"London Borough of Redbridge","http://opendatacommunities.org/doc/london-borough-council/redbridge","3BINDSCHFUND","Individual School Funds","3CDELPRIMARY","Delegated Individual Primary School Budgets","REV","Revenue","R3532","Gilbert Colvin Primary School","05-THIRD","Third Party Payments","05G","Other establishments","7451","LMS Bank Accounts Pilot","3696550","202302",27/05/2022 00:00:00,142000,"67981","Schools - Local Authority","REDACTED DATA","GILBERT COLVIN PRIMARY SCHOOL PAYROLL ACCOUNT","",,""
"London Borough of Redbridge","http://opendatacommunities.org/doc/london-borough-council/redbridge","3BLEACENTFND","LEA Centrally Held School Funds","3CNONSCH","Non Schools","REV","Revenue","R2234","Maintained Post 16 colleges","05-THIRD","Third Party Payments","05G","Other establishments","7433","OOB Post 16 Top Up","60488172","202302",25/04/2022 00:00:00,141580.93,"20342","Colleges - Higher Education","REDACTED DATA","NEW CITY COLLEGE","UPIN106556","http://opencorporates.com/companies/gb/UPIN106556","115105466"
"London Borough of Redbridge","http://opendatacommunities.org/doc/london-borough-council/redbridge","3BINDSCHFUND","Individual School Funds","3CDELPRIMARY","Delegated Individual Primary School Budgets","REV","Revenue","R3587","Al-Noor Primary School","05-THIRD","Third Party Payments","05G","Other establishments","7451","LMS Bank Accounts Pilot","3696562","202302",27/05/2022 00:00:00,139123.23,"67981","Schools - Local Authority","REDACTED DATA","AL NOOR VOLUNTARY AIDED PRIMARY SCHOOL","",,""
"London Borough of Redbridge","http://opendatacommunities.org/doc/london-borough-council/redbridge","9BNONBVO","Outside the BVACOP Objective Structure","9CNONBVO","Outside the BVACOP Objective Structure","CAP","Capital","C4344","School Conditioning","99-NONBV","Capital, Balance Sheet and Control","50E","Capital - Contract Payments","9150","Main Contract","70123835","202302",28/04/2022 00:00:00,113467.68,"21555","Construction Contractors - General","REDACTED DATA","Longley Group Ltd","7633349","http://opencorporates.com/companies/gb/7633349","165771972"
"London Borough of Redbridge","http://opendatacommunities.org/doc/london-borough-council/redbridge","3BLEACENTFND","LEA Centrally Held School Funds","3CNONSCH","Non Schools","REV","Revenue","R3327","The New Rush Hall School","05-THIRD","Third Party Payments","05G","Other establishments","7451","LMS Bank Accounts Pilot","3696565","202302",27/05/2022 00:00:00,133332.78,"67981","Schools - Local Authority","REDACTED DATA","NEW RUSH HALL SCHOOL PAYROLL A/C","",,"246546447"
"London Borough of Redbridge","http://opendatacommunities.org/doc/london-borough-council/redbridge","3BLEACENTFND","LEA Centrally Held School Funds","3CNONSCH","Non Schools","REV","Revenue","R2234","Maintained Post 16 colleges","05-THIRD","Third Party Payments","05G","Other establishments","7433","OOB Post 16 Top Up","60489538","202302",04/12/2021 00:00:00,130093.68,"67860","Schools - Independent and Preparatory","REDACTED DATA","AMBITIOUS ABOUT AUTISM ( TREEHOUSE SCHOOL)","3375255","http://opencorporates.com/companies/gb/3375255",""
"London Borough of Redbridge","http://opendatacommunities.org/doc/london-borough-council/redbridge","9BNONBVO","Outside the BVACOP Objective Structure","9CNONBVO","Outside the BVACOP Objective Structure","BAL","Balance Sheet","B0187","TP Opted out Schools","99-NONBV","Capital, Balance Sheet and Control","50Q","Other Balances & Reserves","9910","Personal Account - Debtor","70123884","202302",10/05/2022 00:00:00,127910.37,"56860","Pensions","REDACTED DATA","TEACHERS PENSION AGENCY","",,""
"London Borough of Redbridge","http://opendatacommunities.org/doc/london-borough-council/redbridge","3BINDSCHFUND","Individual School Funds","3CDELPRIMARY","Delegated Individual Primary School Budgets","REV","Revenue","R3549","Oakdale Juniors School","05-THIRD","Third Party Payments","05G","Other establishments","7451","LMS Bank Accounts Pilot","3696555","202302",27/05/2022 00:00:00,124275.21,"67981","Schools - Local Authority","REDACTED DATA","OAKDALE JUNIOR SCHOOL A/C NO2","",,""
"London Borough of Redbridge","http://opendatacommunities.org/doc/london-borough-council/redbridge","4BTRANSPORT","Transport Planning, Policy & Strategy","4CMANGT&SUPP","Management & Support Services","REV","Revenue","R7006","Lighting Schedule 2","05-THIRD","Third Party Payments","05H","Private contractors","6915","Contractor Payments","3696204","202302",26/05/2022 00:00:00,100000,"18632","Civil Engineers","REDACTED DATA","KENSON CONTRACTORS BENINGTON LTD","1314691","http://opencorporates.com/companies/gb/1314691","301629589"
"London Borough of Redbridge","http://opendatacommunities.org/doc/london-borough-council/redbridge","9BNONBVO","Outside the BVACOP Objective Structure","9CNONBVO","Outside the BVACOP Objective Structure","CAP","Capital","C2204","Major Resurfacing Borough Roads LBR","99-NONBV","Capital, Balance Sheet and Control","50E","Capital - Contract Payments","9153","Carriageways","3696362","202302",26/05/2022 00:00:00,99242.35,"18632","Civil Engineers","REDACTED DATA","KENSON CONTRACTORS BENINGTON LTD","1314691","http://opencorporates.com/companies/gb/1314691","301629589"
"London Borough of Redbridge","http://opendatacommunities.org/doc/london-borough-council/redbridge","3BINDSCHFUND","Individual School Funds","3CDELPRIMARY","Delegated Individual Primary School Budgets","REV","Revenue","R3548","Oakdale Infants' School","05-THIRD","Third Party Payments","05G","Other establishments","7451","LMS Bank Accounts Pilot","3696554","202302",27/05/2022 00:00:00,117624.9,"67981","Schools - Local Authority","REDACTED DATA","OAKDALE INFANTS SCHOOL A/C NO2","",,""
"London Borough of Redbridge","http://opendatacommunities.org/doc/london-borough-council/redbridge","5BGFHOUSING","General Fund Housing","5CHOMELESS","Homelessness","REV","Revenue","R5630","HAC Temporary Accomodation","05-THIRD","Third Party Payments","05H","Private contractors","6900","Nightly Let Plus Charges","3693388","202302",01/05/2022 00:00:00,1500,"31230","Employment and Recruitment Agencies","REDACTED DATA","ADAM HTT LIMITED T/A ADAM","7718565","http://opencorporates.com/companies/gb/7718565","198573349"
"London Borough of Redbridge","http://opendatacommunities.org/doc/london-borough-council/redbridge","5BGFHOUSING","General Fund Housing","5CHOMELESS","Homelessness","REV","Revenue","R5630","HAC Temporary Accomodation","05-THIRD","Third Party Payments","05H","Private contractors","6900","Nightly Let Plus Charges","3693388","202302",01/05/2022 00:00:00,0,"31230","Employment and Recruitment Agencies","REDACTED DATA","ADAM HTT LIMITED T/A ADAM","7718565","http://opencorporates.com/companies/gb/7718565","198573349"
"London Borough of Redbridge","http://opendatacommunities.org/doc/london-borough-council/redbridge","5BGFHOUSING","General Fund Housing","5CHOMELESS","Homelessness","REV","Revenue","R5630","HAC Temporary Accomodation","05-THIRD","Third Party Payments","05H","Private contractors","6900","Nightly Let Plus Charges","3693388","202302",01/05/2022 00:00:00,1560,"31230","Employment and Recruitment Agencies","REDACTED DATA","ADAM HTT LIMITED T/A ADAM","7718565","http://opencorporates.com/companies/gb/7718565","198573349"
"London Borough of Redbridge","http://opendatacommunities.org/doc/london-borough-council/redbridge","5BGFHOUSING","General Fund Housing","5CHOMELESS","Homelessness","REV","Revenue","R5630","HAC Temporary Accomodation","05-THIRD","Third Party Payments","05H","Private contractors","6900","Nightly Let Plus Charges","3693388","202302",01/05/2022 00:00:00,1440,"31230","Employment and Recruitment Agencies","REDACTED DATA","ADAM HTT LIMITED T/A ADAM","7718565","http://opencorporates.com/companies/gb/7718565","198573349"
"London Borough of Redbridge","http://opendatacommunities.org/doc/london-borough-council/redbridge","5BGFHOUSING","General Fund Housing","5CHOMELESS","Homelessness","REV","Revenue","R5630","HAC Temporary Accomodation","05-THIRD","Third Party Payments","05H","Private contractors","6900","Nightly Let Plus Charges","3693388","202302",01/05/2022 00:00:00,1020,"31230","Employment and Recruitment Agencies","REDACTED DATA","ADAM HTT LIMITED T/A ADAM","7718565","http://opencorporates.com/companies/gb/7718565","198573349"
"London Borough of Redbridge","http://opendatacommunities.org/doc/london-borough-council/redbridge","5BGFHOUSING","General Fund Housing","5CHOMELESS","Homelessness","REV","Revenue","R5630","HAC Temporary Accomodation","05-THIRD","Third Party Payments","05H","Private contractors","6900","Nightly Let Plus Charges","3693388","202302",01/05/2022 00:00:00,0,"31230","Employment and Recruitment Agencies","REDACTED DATA","ADAM HTT LIMITED T/A ADAM","7718565","http://opencorporates.com/companies/gb/7718565","198573349"
"London Borough of Redbridge","http://opendatacommunities.org/doc/london-borough-council/redbridge","5BGFHOUSING","General Fund Housing","5CHOMELESS","Homelessness","REV","Revenue","R5630","HAC Temporary Accomodation","05-THIRD","Third Party Payments","05H","Private contractors","6900","Nightly Let Plus Charges","3693388","202302",01/05/2022 00:00:00,1062.9,"31230","Employment and Recruitment Agencies","REDACTED DATA","ADAM HTT LIMITED T/A ADAM","7718565","http://opencorporates.com/companies/gb/7718565","198573349"
"London Borough of Redbridge","http://opendatacommunities.org/doc/london-borough-council/redbridge","5BGFHOUSING","General Fund Housing","5CHOMELESS","Homelessness","REV","Revenue","R5630","HAC Temporary Accomodation","05-THIRD","Third Party Payments","05H","Private contractors","6900","Nightly Let Plus Charges","3693388","202302",01/05/2022 00:00:00,0,"31230","Employment and Recruitment Agencies","REDACTED DATA","ADAM HTT LIMITED T/A ADAM","7718565","http://opencorporates.com/companies/gb/7718565","198573349"
"London Borough of Redbridge","http://opendatacommunities.org/doc/london-borough-council/redbridge","5BGFHOUSING","General Fund Housing","5CHOMELESS","Homelessness","REV","Revenue","R5630","HAC Temporary Accomodation","05-THIRD","Third Party Payments","05H","Private contractors","6900","Nightly Let Plus Charges","3693388","202302",01/05/2022 00:00:00,1380,"31230","Employment and Recruitment Agencies","REDACTED DATA","ADAM HTT LIMITED T/A ADAM","7718565","http://opencorporates.com/companies/gb/7718565","198573349"
"London Borough of Redbridge","http://opendatacommunities.org/doc/london-borough-council/redbridge","5BGFHOUSING","General Fund Housing","5CHOMELESS","Homelessness","REV","Revenue","R5630","HAC Temporary Accomodation","05-THIRD","Third Party Payments","05H","Private contractors","6900","Nightly Let Plus Charges","3693388","202302",01/05/2022 00:00:00,0,"31230","Employment and Recruitment Agencies","REDACTED DATA","ADAM HTT LIMITED T/A ADAM","7718565","http://opencorporates.com/companies/gb/7718565","198573349"
"London Borough of Redbridge","http://opendatacommunities.org/doc/london-borough-council/redbridge","5BGFHOUSING","General Fund Housing","5CHOMELESS","Homelessness","REV","Revenue","R5630","HAC Temporary Accomodation","05-THIRD","Third Party Payments","05H","Private contractors","6900","Nightly Let Plus Charges","3693388","202302",01/05/2022 00:00:00,0,"31230","Employment and Recruitment Agencies","REDACTED DATA","ADAM HTT LIMITED T/A ADAM","7718565","http://opencorporates.com/companies/gb/7718565","198573349"
"London Borough of Redbridge","http://opendatacommunities.org/doc/london-borough-council/redbridge","3BLEACENTFND","LEA Centrally Held School Funds","3CNONSCH","Non Schools","REV","Revenue","R2234","Maintained Post 16 colleges","05-THIRD","Third Party Payments","05G","Other establishments","7433","OOB Post 16 Top Up","60488170","202302",25/04/2022 00:00:00,98764.34,"20342","Colleges - Higher Education","REDACTED DATA","NEW CITY COLLEGE","UPIN106556","http://opencorporates.com/companies/gb/UPIN106556","115105466"
"London Borough of Redbridge","http://opendatacommunities.org/doc/london-borough-council/redbridge","9BNONBVO","Outside the BVACOP Objective Structure","9CNONBVO","Outside the BVACOP Objective Structure","REV","Revenue","R0026","Collection Fund","05-THIRD","Third Party Payments","05E","Government departments","6283","Business Rate Supplement","60488686","202302",01/05/2022 00:00:00,88996,"48583","Local Government","REDACTED DATA","GREATER LONDON AUTHORITY","",,""
"London Borough of Redbridge","http://opendatacommunities.org/doc/london-borough-council/redbridge","3BNONSCHFUND","Non-School Funding","3CSCHSTRATMG","Schools Strategic Management","REV","Revenue","R3003","IT Leasing","04-SUPPLIES","Supplies And Services","04A","Equipment, furniture and materials","5502","Equipment Purchase","60487130","202301",06/04/2022 00:00:00,70550,"20645","Computer Mnfrs","REDACTED DATA","RM EDUCATION PLC","1148594","http://opencorporates.com/companies/gb/1148594","630823656"
"London Borough of Redbridge","http://opendatacommunities.org/doc/london-borough-council/redbridge","9BNONBVO","Outside the BVACOP Objective Structure","9CNONBVO","Outside the BVACOP Objective Structure","REV","Revenue","R0095","Insurance Contribution","04-SUPPLIES","Supplies And Services","04K","Miscellaneous expenses","6200","Insurance Premiums - General","70123933","202302",11/04/2022 00:00:00,84530.4,"45415","Insurance - Other","REDACTED DATA","ZURICH INSURANCE COMPANY","BR105","http://opencorporates.com/companies/gb/BR105","107831677"
"London Borough of Redbridge","http://opendatacommunities.org/doc/london-borough-council/redbridge","4BTRANSPORT","Transport Planning, Policy & Strategy","4CMANGT&SUPP","Management & Support Services","REV","Revenue","R7006","Lighting Schedule 2","05-THIRD","Third Party Payments","05H","Private contractors","6915","Contractor Payments","3694451","202302",19/05/2022 00:00:00,70000,"18632","Civil Engineers","REDACTED DATA","KENSON CONTRACTORS BENINGTON LTD","1314691","http://opencorporates.com/companies/gb/1314691","301629589"
"London Borough of Redbridge","http://opendatacommunities.org/doc/london-borough-council/redbridge","1BOTHEROPI&E","Other Operating Income & Expenditure","1CTRADSURDEF","Trading Account Surpluses & Deficits","REV","Revenue","R9254","Infrastructure","04-SUPPLIES","Supplies And Services","04F","Communications and computing","5856","Leased Line Rentals","60490137","202302",02/04/2022 00:00:00,68152.8,"76510","Telecommunication Services","REDACTED DATA","VIRGIN MEDIA PAYMENTS LTD(MAIN ACCT)","1785381","http://opencorporates.com/companies/gb/1785381","591819014"
"London Borough of Redbridge","http://opendatacommunities.org/doc/london-borough-council/redbridge","5BGFHOUSING","General Fund Housing","5CHOUMGTSUPP","Housing Management & Support Services","REV","Revenue","R5606","Housing IT","04-SUPPLIES","Supplies And Services","04F","Communications and computing","5853","Computer Software","70123908","202302",26/04/2022 00:00:00,34003.41,"24080","Database Services","REDACTED DATA","Mobysoft Limited","4546648","http://opencorporates.com/companies/gb/4546648","280 0902 27"
"London Borough of Redbridge","http://opendatacommunities.org/doc/london-borough-council/redbridge","5BHRAEXPEND","HRA Expenditure","5CHOUMGTSUPP","Housing Management & Support Services","REV","Revenue","R5044","Housing IT System","04-SUPPLIES","Supplies And Services","04F","Communications and computing","5853","Computer Software","70123908","202302",26/04/2022 00:00:00,34003.41,"24080","Database Services","REDACTED DATA","Mobysoft Limited","4546648","http://opencorporates.com/companies/gb/4546648","280 0902 27"
"London Borough of Redbridge","http://opendatacommunities.org/doc/london-borough-council/redbridge","9BNONBVO","Outside the BVACOP Objective Structure","9CNONBVO","Outside the BVACOP Objective Structure","CAP","Capital","C2204","Major Resurfacing Borough Roads LBR","99-NONBV","Capital, Balance Sheet and Control","50E","Capital - Contract Payments","9153","Carriageways","3696364","202302",26/05/2022 00:00:00,64466.4,"18632","Civil Engineers","REDACTED DATA","KENSON CONTRACTORS BENINGTON LTD","1314691","http://opencorporates.com/companies/gb/1314691","301629589"
"London Borough of Redbridge","http://opendatacommunities.org/doc/london-borough-council/redbridge","9BNONBVO","Outside the BVACOP Objective Structure","9CNONBVO","Outside the BVACOP Objective Structure","REV","Revenue","R0095","Insurance Contribution","04-SUPPLIES","Supplies And Services","04K","Miscellaneous expenses","6200","Insurance Premiums - General","70123939","202302",07/12/2021 00:00:00,77220.28,"45415","Insurance - Other","REDACTED DATA","ZURICH INSURANCE COMPANY","BR105","http://opencorporates.com/companies/gb/BR105","107831677"
"London Borough of Redbridge","http://opendatacommunities.org/doc/london-borough-council/redbridge","3BNONSCHFUND","Non-School Funding","6CCHILLOOKED","Children Looked After","REV","Revenue","R2238","Looked After Children Placements LA","05-THIRD","Third Party Payments","05H","Private contractors","6901","Secure Accommodation","70124064","202302",03/05/2022 00:00:00,75000,"48583","Local Government","REDACTED DATA","NOTTINGHAMSHIRE COUNTY COUNCIL","",,""
"London Borough of Redbridge","http://opendatacommunities.org/doc/london-borough-council/redbridge","5BGFHOUSING","General Fund Housing","5CHOMELESS","Homelessness","REV","Revenue","R5630","HAC Temporary Accomodation","05-THIRD","Third Party Payments","05H","Private contractors","6900","Nightly Let Plus Charges","3693388","202302",01/05/2022 00:00:00,855,"31230","Employment and Recruitment Agencies","REDACTED DATA","ADAM HTT LIMITED T/A ADAM","7718565","http://opencorporates.com/companies/gb/7718565","198573349"
"London Borough of Redbridge","http://opendatacommunities.org/doc/london-borough-council/redbridge","5BGFHOUSING","General Fund Housing","5CHOMELESS","Homelessness","REV","Revenue","R5630","HAC Temporary Accomodation","05-THIRD","Third Party Payments","05H","Private contractors","6900","Nightly Let Plus Charges","3693388","202302",01/05/2022 00:00:00,0,"31230","Employment and Recruitment Agencies","REDACTED DATA","ADAM HTT LIMITED T/A ADAM","7718565","http://opencorporates.com/companies/gb/7718565","198573349"
"London Borough of Redbridge","http://opendatacommunities.org/doc/london-borough-council/redbridge","5BGFHOUSING","General Fund Housing","5CHOMELESS","Homelessness","REV","Revenue","R5630","HAC Temporary Accomodation","05-THIRD","Third Party Payments","05H","Private contractors","6900","Nightly Let Plus Charges","3693388","202302",01/05/2022 00:00:00,855,"31230","Employment and Recruitment Agencies","REDACTED DATA","ADAM HTT LIMITED T/A ADAM","7718565","http://opencorporates.com/companies/gb/7718565","198573349"
"London Borough of Redbridge","http://opendatacommunities.org/doc/london-borough-council/redbridge","5BGFHOUSING","General Fund Housing","5CHOMELESS","Homelessness","REV","Revenue","R5630","HAC Temporary Accomodation","05-THIRD","Third Party Payments","05H","Private contractors","6900","Nightly Let Plus Charges","3693388","202302",01/05/2022 00:00:00,0,"31230","Employment and Recruitment Agencies","REDACTED DATA","ADAM HTT LIMITED T/A ADAM","7718565","http://opencorporates.com/companies/gb/7718565","198573349"
"London Borough of Redbridge","http://opendatacommunities.org/doc/london-borough-council/redbridge","5BGFHOUSING","General Fund Housing","5CHOMELESS","Homelessness","REV","Revenue","R5630","HAC Temporary Accomodation","05-THIRD","Third Party Payments","05H","Private contractors","6900","Nightly Let Plus Charges","3693388","202302",01/05/2022 00:00:00,0,"31230","Employment and Recruitment Agencies","REDACTED DATA","ADAM HTT LIMITED T/A ADAM","7718565","http://opencorporates.com/companies/gb/7718565","198573349"
"London Borough of Redbridge","http://opendatacommunities.org/doc/london-borough-council/redbridge","5BGFHOUSING","General Fund Housing","5CHOMELESS","Homelessness","REV","Revenue","R5630","HAC Temporary Accomodation","05-THIRD","Third Party Payments","05H","Private contractors","6900","Nightly Let Plus Charges","3693388","202302",01/05/2022 00:00:00,0,"31230","Employment and Recruitment Agencies","REDACTED DATA","ADAM HTT LIMITED T/A ADAM","7718565","http://opencorporates.com/companies/gb/7718565","198573349"
"London Borough of Redbridge","http://opendatacommunities.org/doc/london-borough-council/redbridge","5BGFHOUSING","General Fund Housing","5CHOMELESS","Homelessness","REV","Revenue","R5630","HAC Temporary Accomodation","05-THIRD","Third Party Payments","05H","Private contractors","6900","Nightly Let Plus Charges","3693388","202302",01/05/2022 00:00:00,460,"31230","Employment and Recruitment Agencies","REDACTED DATA","ADAM HTT LIMITED T/A ADAM","7718565","http://opencorporates.com/companies/gb/7718565","198573349"
"London Borough of Redbridge","http://opendatacommunities.org/doc/london-borough-council/redbridge","5BGFHOUSING","General Fund Housing","5CHOMELESS","Homelessness","REV","Revenue","R5630","HAC Temporary Accomodation","05-THIRD","Third Party Payments","05H","Private contractors","6900","Nightly Let Plus Charges","3693388","202302",01/05/2022 00:00:00,855,"31230","Employment and Recruitment Agencies","REDACTED DATA","ADAM HTT LIMITED T/A ADAM","7718565","http://opencorporates.com/companies/gb/7718565","198573349"
"London Borough of Redbridge","http://opendatacommunities.org/doc/london-borough-council/redbridge","5BGFHOUSING","General Fund Housing","5CHOMELESS","Homelessness","REV","Revenue","R5630","HAC Temporary Accomodation","05-THIRD","Third Party Payments","05H","Private contractors","6900","Nightly Let Plus Charges","3693388","202302",01/05/2022 00:00:00,0,"31230","Employment and Recruitment Agencies","REDACTED DATA","ADAM HTT LIMITED T/A ADAM","7718565","http://opencorporates.com/companies/gb/7718565","198573349"
"London Borough of Redbridge","http://opendatacommunities.org/doc/london-borough-council/redbridge","5BGFHOUSING","General Fund Housing","5CHOMELESS","Homelessness","REV","Revenue","R5630","HAC Temporary Accomodation","05-THIRD","Third Party Payments","05H","Private contractors","6900","Nightly Let Plus Charges","3693388","202302",01/05/2022 00:00:00,1617.9,"31230","Employment and Recruitment Agencies","REDACTED DATA","ADAM HTT LIMITED T/A ADAM","7718565","http://opencorporates.com/companies/gb/7718565","198573349"
"London Borough of Redbridge","http://opendatacommunities.org/doc/london-borough-council/redbridge","5BGFHOUSING","General Fund Housing","5CHOMELESS","Homelessness","REV","Revenue","R5630","HAC Temporary Accomodation","05-THIRD","Third Party Payments","05H","Private contractors","6900","Nightly Let Plus Charges","3693388","202302",01/05/2022 00:00:00,840,"31230","Employment and Recruitment Agencies","REDACTED DATA","ADAM HTT LIMITED T/A ADAM","7718565","http://opencorporates.com/companies/gb/7718565","198573349"
"London Borough of Redbridge","http://opendatacommunities.org/doc/london-borough-council/redbridge","9BNONBVO","Outside the BVACOP Objective Structure","9CNONBVO","Outside the BVACOP Objective Structure","CAP","Capital","C4344","School Conditioning","99-NONBV","Capital, Balance Sheet and Control","50E","Capital - Contract Payments","9150","Main Contract","70123654","202301",13/04/2022 00:00:00,57286.3,"50275","Mechanical Engineers","REDACTED DATA","SJP MECHANICAL SERVICES LTD","1495029221","http://opencorporates.com/companies/gb/1495029221",""
"London Borough of Redbridge","http://opendatacommunities.org/doc/london-borough-council/redbridge","9BNONBVO","Outside the BVACOP Objective Structure","9CNONBVO","Outside the BVACOP Objective Structure","CAP","Capital","C1033","Modernising IT Applications","99-NONBV","Capital, Balance Sheet and Control","50A","Capital - Employee Costs","9006","Employee Costs - Other","60490108","202302",15/03/2022 00:00:00,55954,"31230","Employment and Recruitment Agencies","REDACTED DATA","ADAM HTT LIMITED T/A ADAM","7718565","http://opencorporates.com/companies/gb/7718565","198573349"
"London Borough of Redbridge","http://opendatacommunities.org/doc/london-borough-council/redbridge","1BCENTRALPUB","Central Services to the Public","1CLOCALTAXCO","Local Tax Collection","REV","Revenue","R5760","Local Tax Collection","04-SUPPLIES","Supplies And Services","04D","Printing, stationery and general office expenses","5706","Printing","60489448","202302",29/04/2022 00:00:00,55862.05,"49180","Mailing Houses","REDACTED DATA","OPUS TRUST MARKETING LIMITED","3829462","http://opencorporates.com/companies/gb/3829462","232730729"
"London Borough of Redbridge","http://opendatacommunities.org/doc/london-borough-council/redbridge","6BADULTSOCIA","Adult Social Care","6CLONGT65","Long-Term Support 65+ Years","REV","Revenue","R4446","Learning Disabilities - Wanstead and Woodford","05-THIRD","Third Party Payments","05F","Voluntary associations","6802","Residential Homes","91318069","202302",03/05/2022 00:00:00,66114.29,"64710","Residential Care Homes","REDACTED DATA","MyLife Supported Living Ltd","8920281","http://opencorporates.com/companies/gb/8920281",""
"London Borough of Redbridge","http://opendatacommunities.org/doc/london-borough-council/redbridge","3BNONSCHFUND","Non-School Funding","6CCHILLOOKED","Children Looked After","REV","Revenue","R2238","Looked After Children Placements LA","05-THIRD","Third Party Payments","05H","Private contractors","6907","Private Homes","60489397","202302",04/04/2022 00:00:00,53558.4,"17780","Children's Homes","REDACTED DATA","A Wilderness Way Group Limited","12664540","http://opencorporates.com/companies/gb/12664540","395 9327 42"
"London Borough of Redbridge","http://opendatacommunities.org/doc/london-borough-council/redbridge","3BLEACENTFND","LEA Centrally Held School Funds","3CNONSCH","Non Schools","REV","Revenue","R2004","Non-maintained and Independent settings","05-THIRD","Third Party Payments","05H","Private contractors","6906","Independent Schools","60488301","202302",11/03/2022 00:00:00,63826.15,"67860","Schools - Independent and Preparatory","REDACTED DATA","CAMBIAN AUTISM SERVICES LTD","3449214","http://opencorporates.com/companies/gb/3449214",""
"London Borough of Redbridge","http://opendatacommunities.org/doc/london-borough-council/redbridge","9BNONBVO","Outside the BVACOP Objective Structure","9CNONBVO","Outside the BVACOP Objective Structure","CAP","Capital","C4344","School Conditioning","99-NONBV","Capital, Balance Sheet and Control","50E","Capital - Contract Payments","9150","Main Contract","70123651","202301",13/04/2022 00:00:00,52846.75,"50275","Mechanical Engineers","REDACTED DATA","SJP MECHANICAL SERVICES LTD","1495029221","http://opencorporates.com/companies/gb/1495029221",""
"London Borough of Redbridge","http://opendatacommunities.org/doc/london-borough-council/redbridge","3BLEACENTFND","LEA Centrally Held School Funds","3CNONSCH","Non Schools","REV","Revenue","R2234","Maintained Post 16 colleges","05-THIRD","Third Party Payments","05G","Other establishments","7433","OOB Post 16 Top Up","60487598","202302",13/04/2022 00:00:00,63244.6,"67330","Schools and Colleges - Further Education","REDACTED DATA","WALTHAM FOREST COLLEGE","",,"248212866"
"London Borough of Redbridge","http://opendatacommunities.org/doc/london-borough-council/redbridge","9BNONBVO","Outside the BVACOP Objective Structure","9CNONBVO","Outside the BVACOP Objective Structure","CAP","Capital","C4344","School Conditioning","99-NONBV","Capital, Balance Sheet and Control","50E","Capital - Contract Payments","9150","Main Contract","70123832","202302",28/04/2022 00:00:00,51302.06,"21555","Construction Contractors - General","REDACTED DATA","Longley Group Ltd","7633349","http://opencorporates.com/companies/gb/7633349","165771972"
"London Borough of Redbridge","http://opendatacommunities.org/doc/london-borough-council/redbridge","3BINDSCHFUND","Individual School Funds","3CNONSCH","Non Schools","REV","Revenue","R2001","Secondary Schools SEN Top Up Fees","05-THIRD","Third Party Payments","05G","Other establishments","7430","LBR Pre 16 Top Up","3696366","202302",26/05/2022 00:00:00,61075.85,"67981","Schools - Local Authority","REDACTED DATA","BEACON MULTI ACADEMY TRUST LTD","",,"246546447"
"London Borough of Redbridge","http://opendatacommunities.org/doc/london-borough-council/redbridge","9BNONBVO","Outside the BVACOP Objective Structure","9CNONBVO","Outside the BVACOP Objective Structure","CAP","Capital","C4334","Wanstead High School","99-NONBV","Capital, Balance Sheet and Control","50E","Capital - Contract Payments","9150","Main Contract","60488601","202302",01/05/2022 00:00:00,48464,"11560","Buildings - Sectional and Portable","REDACTED DATA","PORTAKABIN LTD.","685303","http://opencorporates.com/companies/gb/685303","551855234"
"London Borough of Redbridge","http://opendatacommunities.org/doc/london-borough-council/redbridge","5BGFHOUSING","General Fund Housing","5CHOMELESS","Homelessness","REV","Revenue","R5630","HAC Temporary Accomodation","05-THIRD","Third Party Payments","05H","Private contractors","6900","Nightly Let Plus Charges","3693388","202302",01/05/2022 00:00:00,0,"31230","Employment and Recruitment Agencies","REDACTED DATA","ADAM HTT LIMITED T/A ADAM","7718565","http://opencorporates.com/companies/gb/7718565","198573349"
"London Borough of Redbridge","http://opendatacommunities.org/doc/london-borough-council/redbridge","5BGFHOUSING","General Fund Housing","5CHOMELESS","Homelessness","REV","Revenue","R5630","HAC Temporary Accomodation","05-THIRD","Third Party Payments","05H","Private contractors","6900","Nightly Let Plus Charges","3693388","202302",01/05/2022 00:00:00,1155,"31230","Employment and Recruitment Agencies","REDACTED DATA","ADAM HTT LIMITED T/A ADAM","7718565","http://opencorporates.com/companies/gb/7718565","198573349"
"London Borough of Redbridge","http://opendatacommunities.org/doc/london-borough-council/redbridge","5BGFHOUSING","General Fund Housing","5CHOMELESS","Homelessness","REV","Revenue","R5630","HAC Temporary Accomodation","05-THIRD","Third Party Payments","05H","Private contractors","6900","Nightly Let Plus Charges","3693388","202302",01/05/2022 00:00:00,0,"31230","Employment and Recruitment Agencies","REDACTED DATA","ADAM HTT LIMITED T/A ADAM","7718565","http://opencorporates.com/companies/gb/7718565","198573349"
"London Borough of Redbridge","http://opendatacommunities.org/doc/london-borough-council/redbridge","5BGFHOUSING","General Fund Housing","5CHOMELESS","Homelessness","REV","Revenue","R5630","HAC Temporary Accomodation","05-THIRD","Third Party Payments","05H","Private contractors","6900","Nightly Let Plus Charges","3693388","202302",01/05/2022 00:00:00,1230,"31230","Employment and Recruitment Agencies","REDACTED DATA","ADAM HTT LIMITED T/A ADAM","7718565","http://opencorporates.com/companies/gb/7718565","198573349"
"London Borough of Redbridge","http://opendatacommunities.org/doc/london-borough-council/redbridge","5BGFHOUSING","General Fund Housing","5CHOMELESS","Homelessness","REV","Revenue","R5630","HAC Temporary Accomodation","05-THIRD","Third Party Payments","05H","Private contractors","6900","Nightly Let Plus Charges","3693388","202302",01/05/2022 00:00:00,1818,"31230","Employment and Recruitment Agencies","REDACTED DATA","ADAM HTT LIMITED T/A ADAM","7718565","http://opencorporates.com/companies/gb/7718565","198573349"
"London Borough of Redbridge","http://opendatacommunities.org/doc/london-borough-council/redbridge","5BGFHOUSING","General Fund Housing","5CHOMELESS","Homelessness","REV","Revenue","R5630","HAC Temporary Accomodation","05-THIRD","Third Party Payments","05H","Private contractors","6900","Nightly Let Plus Charges","3693388","202302",01/05/2022 00:00:00,0,"31230","Employment and Recruitment Agencies","REDACTED DATA","ADAM HTT LIMITED T/A ADAM","7718565","http://opencorporates.com/companies/gb/7718565","198573349"
"London Borough of Redbridge","http://opendatacommunities.org/doc/london-borough-council/redbridge","5BGFHOUSING","General Fund Housing","5CHOMELESS","Homelessness","REV","Revenue","R5630","HAC Temporary Accomodation","05-THIRD","Third Party Payments","05H","Private contractors","6900","Nightly Let Plus Charges","3693388","202302",01/05/2022 00:00:00,1440,"31230","Employment and Recruitment Agencies","REDACTED DATA","ADAM HTT LIMITED T/A ADAM","7718565","http://opencorporates.com/companies/gb/7718565","198573349"
"London Borough of Redbridge","http://opendatacommunities.org/doc/london-borough-council/redbridge","5BGFHOUSING","General Fund Housing","5CHOMELESS","Homelessness","REV","Revenue","R5630","HAC Temporary Accomodation","05-THIRD","Third Party Payments","05H","Private contractors","6900","Nightly Let Plus Charges","3693388","202302",01/05/2022 00:00:00,1260,"31230","Employment and Recruitment Agencies","REDACTED DATA","ADAM HTT LIMITED T/A ADAM","7718565","http://opencorporates.com/companies/gb/7718565","198573349"
"London Borough of Redbridge","http://opendatacommunities.org/doc/london-borough-council/redbridge","5BGFHOUSING","General Fund Housing","5CHOMELESS","Homelessness","REV","Revenue","R5630","HAC Temporary Accomodation","05-THIRD","Third Party Payments","05H","Private contractors","6900","Nightly Let Plus Charges","3693388","202302",01/05/2022 00:00:00,0,"31230","Employment and Recruitment Agencies","REDACTED DATA","ADAM HTT LIMITED T/A ADAM","7718565","http://opencorporates.com/companies/gb/7718565","198573349"
"London Borough of Redbridge","http://opendatacommunities.org/doc/london-borough-council/redbridge","5BGFHOUSING","General Fund Housing","5CHOMELESS","Homelessness","REV","Revenue","R5630","HAC Temporary Accomodation","05-THIRD","Third Party Payments","05H","Private contractors","6900","Nightly Let Plus Charges","3693388","202302",01/05/2022 00:00:00,0,"31230","Employment and Recruitment Agencies","REDACTED DATA","ADAM HTT LIMITED T/A ADAM","7718565","http://opencorporates.com/companies/gb/7718565","198573349"
"London Borough of Redbridge","http://opendatacommunities.org/doc/london-borough-council/redbridge","5BGFHOUSING","General Fund Housing","5CHOMELESS","Homelessness","REV","Revenue","R5630","HAC Temporary Accomodation","05-THIRD","Third Party Payments","05H","Private contractors","6900","Nightly Let Plus Charges","3693388","202302",01/05/2022 00:00:00,0,"31230","Employment and Recruitment Agencies","REDACTED DATA","ADAM HTT LIMITED T/A ADAM","7718565","http://opencorporates.com/companies/gb/7718565","198573349"
"London Borough of Redbridge","http://opendatacommunities.org/doc/london-borough-council/redbridge","2BBUSISUP","Business Support","","","REV","Revenue","R6525","C.P.O. Fees","04-SUPPLIES","Supplies And Services","04H","Grants and subscriptions","5954","Professional Fees","60490006","202302",12/05/2022 00:00:00,47959.75,"72460","Solicitors","REDACTED DATA","SQUIRE SANDERS  (UK) LLP","OC335584","http://opencorporates.com/companies/gb/OC335584","747183120"
"London Borough of Redbridge","http://opendatacommunities.org/doc/london-borough-council/redbridge","9BNONBVO","Outside the BVACOP Objective Structure","9CNONBVO","Outside the BVACOP Objective Structure","CAP","Capital","C2204","Major Resurfacing Borough Roads LBR","99-NONBV","Capital, Balance Sheet and Control","50E","Capital - Contract Payments","9153","Carriageways","3694666","202302",19/05/2022 00:00:00,47860.28,"18632","Civil Engineers","REDACTED DATA","KENSON CONTRACTORS BENINGTON LTD","1314691","http://opencorporates.com/companies/gb/1314691","301629589"
"London Borough of Redbridge","http://opendatacommunities.org/doc/london-borough-council/redbridge","9BNONBVO","Outside the BVACOP Objective Structure","9CNONBVO","Outside the BVACOP Objective Structure","REV","Revenue","R7705","Fuel Service","03-TRANSPORT","Transport","03A","Direct - transport costs","5006","Diesel Oil","681177","202302",14/04/2022 00:00:00,46701.33,"57580","Petroleum Products - Mnfrs","REDACTED DATA","EMO OIL LIMITED","5067422","http://opencorporates.com/companies/gb/5067422","844283419"
"London Borough of Redbridge","http://opendatacommunities.org/doc/london-borough-council/redbridge","3BLEACENTFND","LEA Centrally Held School Funds","3CNONSCH","Non Schools","REV","Revenue","R2231","Special School Top Up Fees","05-THIRD","Third Party Payments","05G","Other establishments","7430","LBR Pre 16 Top Up","3693999","202302",12/05/2022 00:00:00,54950.9,"90038","Expenses","REDACTED DATA","Astrum Multi Academy Trust T/A Hatchside School","",,""
"London Borough of Redbridge","http://opendatacommunities.org/doc/london-borough-council/redbridge","3BLEACENTFND","LEA Centrally Held School Funds","3CNONSCH","Non Schools","REV","Revenue","R2231","Special School Top Up Fees","05-THIRD","Third Party Payments","05G","Other establishments","7430","LBR Pre 16 Top Up","3696384","202302",26/05/2022 00:00:00,54950.9,"90038","Expenses","REDACTED DATA","Astrum Multi Academy Trust T/A Hatchside School","",,""
"London Borough of Redbridge","http://opendatacommunities.org/doc/london-borough-council/redbridge","9BNONBVO","Outside the BVACOP Objective Structure","9CNONBVO","Outside the BVACOP Objective Structure","CAP","Capital","C1041","Corporate Capital Maintenance","99-NONBV","Capital, Balance Sheet and Control","50E","Capital - Contract Payments","9150","Main Contract","70123836","202302",28/04/2022 00:00:00,44268.99,"21555","Construction Contractors - General","REDACTED DATA","Longley Group Ltd","7633349","http://opencorporates.com/companies/gb/7633349","165771972"
"London Borough of Redbridge","http://opendatacommunities.org/doc/london-borough-council/redbridge","1BOTHEROPI&E","Other Operating Income & Expenditure","1CTRADSURDEF","Trading Account Surpluses & Deficits","REV","Revenue","R9051","Strategic Procurement","05-THIRD","Third Party Payments","05H","Private contractors","6915","Contractor Payments","60490083","202302",17/05/2022 00:00:00,44250,"48583","Local Government","REDACTED DATA","LONDON BOROUGH OF WALTHAM FOREST","",,"248212866"
"London Borough of Redbridge","http://opendatacommunities.org/doc/london-borough-council/redbridge","1BOTHEROPI&E","Other Operating Income & Expenditure","1CTRADSURDEF","Trading Account Surpluses & Deficits","REV","Revenue","R9254","Infrastructure","04-SUPPLIES","Supplies And Services","04F","Communications and computing","5868","IT Support Contract","60489224","202302",30/04/2022 00:00:00,39260.21,"20690","Computer Support and Services","REDACTED DATA","Version 1 Solutions Limited","3438874","http://opencorporates.com/companies/gb/3438874","GB 704 8728 24"
"London Borough of Redbridge","http://opendatacommunities.org/doc/london-borough-council/redbridge","9BNONBVO","Outside the BVACOP Objective Structure","9CNONBVO","Outside the BVACOP Objective Structure","CAP","Capital","C4344","School Conditioning","99-NONBV","Capital, Balance Sheet and Control","50E","Capital - Contract Payments","9150","Main Contract","70123628","202301",13/04/2022 00:00:00,39220.03,"65470","Roofing Services","REDACTED DATA","Inspire Contract Services Ltd","8939256","http://opencorporates.com/companies/gb/8939256","212 6945 16"
"London Borough of Redbridge","http://opendatacommunities.org/doc/london-borough-council/redbridge","6BADULTSOCIA","Adult Social Care","6CSUPPSERMGT","Support Service & Management Costs","REV","Revenue","R4476","Appointeeships and Court of Protection","04-SUPPLIES","Supplies And Services","04H","Grants and subscriptions","5955","Fees","60489206","202302",05/05/2022 00:00:00,47000,"17570","Cheque Cashing","REDACTED DATA","POST OFFICE LTD (FINANCE)","2154540","http://opencorporates.com/companies/gb/2154540",""
"London Borough of Redbridge","http://opendatacommunities.org/doc/london-borough-council/redbridge","9BNONBVO","Outside the BVACOP Objective Structure","9CNONBVO","Outside the BVACOP Objective Structure","BAL","Balance Sheet","B0340","NNDR Hainualt Business Improvement District","99-NONBV","Capital, Balance Sheet and Control","50Q","Other Balances & Reserves","9912","Personal Account - Creditor","70123944","202302",09/05/2022 00:00:00,38496.71,"11905","Business Centres","REDACTED DATA","HAINAULT BUSINESS PARK","5804216","http://opencorporates.com/companies/gb/5804216",""
"London Borough of Redbridge","http://opendatacommunities.org/doc/london-borough-council/redbridge","5BGFHOUSING","General Fund Housing","5CHOMELESS","Homelessness","REV","Revenue","R5630","HAC Temporary Accomodation","05-THIRD","Third Party Payments","05H","Private contractors","6900","Nightly Let Plus Charges","3693388","202302",01/05/2022 00:00:00,1680,"31230","Employment and Recruitment Agencies","REDACTED DATA","ADAM HTT LIMITED T/A ADAM","7718565","http://opencorporates.com/companies/gb/7718565","198573349"
"London Borough of Redbridge","http://opendatacommunities.org/doc/london-borough-council/redbridge","5BGFHOUSING","General Fund Housing","5CHOMELESS","Homelessness","REV","Revenue","R5630","HAC Temporary Accomodation","05-THIRD","Third Party Payments","05H","Private contractors","6900","Nightly Let Plus Charges","3693388","202302",01/05/2022 00:00:00,0,"31230","Employment and Recruitment Agencies","REDACTED DATA","ADAM HTT LIMITED T/A ADAM","7718565","http://opencorporates.com/companies/gb/7718565","198573349"
"London Borough of Redbridge","http://opendatacommunities.org/doc/london-borough-council/redbridge","5BGFHOUSING","General Fund Housing","5CHOMELESS","Homelessness","REV","Revenue","R5630","HAC Temporary Accomodation","05-THIRD","Third Party Payments","05H","Private contractors","6900","Nightly Let Plus Charges","3693388","202302",01/05/2022 00:00:00,0,"31230","Employment and Recruitment Agencies","REDACTED DATA","ADAM HTT LIMITED T/A ADAM","7718565","http://opencorporates.com/companies/gb/7718565","198573349"
"London Borough of Redbridge","http://opendatacommunities.org/doc/london-borough-council/redbridge","5BGFHOUSING","General Fund Housing","5CHOMELESS","Homelessness","REV","Revenue","R5630","HAC Temporary Accomodation","05-THIRD","Third Party Payments","05H","Private contractors","6900","Nightly Let Plus Charges","3693388","202302",01/05/2022 00:00:00,1106.1,"31230","Employment and Recruitment Agencies","REDACTED DATA","ADAM HTT LIMITED T/A ADAM","7718565","http://opencorporates.com/companies/gb/7718565","198573349"
"London Borough of Redbridge","http://opendatacommunities.org/doc/london-borough-council/redbridge","5BGFHOUSING","General Fund Housing","5CHOMELESS","Homelessness","REV","Revenue","R5630","HAC Temporary Accomodation","05-THIRD","Third Party Payments","05H","Private contractors","6900","Nightly Let Plus Charges","3693388","202302",01/05/2022 00:00:00,0,"31230","Employment and Recruitment Agencies","REDACTED DATA","ADAM HTT LIMITED T/A ADAM","7718565","http://opencorporates.com/companies/gb/7718565","198573349"
"London Borough of Redbridge","http://opendatacommunities.org/doc/london-borough-council/redbridge","5BGFHOUSING","General Fund Housing","5CHOMELESS","Homelessness","REV","Revenue","R5630","HAC Temporary Accomodation","05-THIRD","Third Party Payments","05H","Private contractors","6900","Nightly Let Plus Charges","3693388","202302",01/05/2022 00:00:00,0,"31230","Employment and Recruitment Agencies","REDACTED DATA","ADAM HTT LIMITED T/A ADAM","7718565","http://opencorporates.com/companies/gb/7718565","198573349"
"London Borough of Redbridge","http://opendatacommunities.org/doc/london-borough-council/redbridge","5BGFHOUSING","General Fund Housing","5CHOMELESS","Homelessness","REV","Revenue","R5630","HAC Temporary Accomodation","05-THIRD","Third Party Payments","05H","Private contractors","6900","Nightly Let Plus Charges","3693388","202302",01/05/2022 00:00:00,855,"31230","Employment and Recruitment Agencies","REDACTED DATA","ADAM HTT LIMITED T/A ADAM","7718565","http://opencorporates.com/companies/gb/7718565","198573349"
"London Borough of Redbridge","http://opendatacommunities.org/doc/london-borough-council/redbridge","5BGFHOUSING","General Fund Housing","5CHOMELESS","Homelessness","REV","Revenue","R5630","HAC Temporary Accomodation","05-THIRD","Third Party Payments","05H","Private contractors","6900","Nightly Let Plus Charges","3693388","202302",01/05/2022 00:00:00,772.2,"31230","Employment and Recruitment Agencies","REDACTED DATA","ADAM HTT LIMITED T/A ADAM","7718565","http://opencorporates.com/companies/gb/7718565","198573349"
"London Borough of Redbridge","http://opendatacommunities.org/doc/london-borough-council/redbridge","5BGFHOUSING","General Fund Housing","5CHOMELESS","Homelessness","REV","Revenue","R5630","HAC Temporary Accomodation","05-THIRD","Third Party Payments","05H","Private contractors","6900","Nightly Let Plus Charges","3693388","202302",01/05/2022 00:00:00,0,"31230","Employment and Recruitment Agencies","REDACTED DATA","ADAM HTT LIMITED T/A ADAM","7718565","http://opencorporates.com/companies/gb/7718565","198573349"
"London Borough of Redbridge","http://opendatacommunities.org/doc/london-borough-council/redbridge","5BGFHOUSING","General Fund Housing","5CHOMELESS","Homelessness","REV","Revenue","R5630","HAC Temporary Accomodation","05-THIRD","Third Party Payments","05H","Private contractors","6900","Nightly Let Plus Charges","3693388","202302",01/05/2022 00:00:00,927.9,"31230","Employment and Recruitment Agencies","REDACTED DATA","ADAM HTT LIMITED T/A ADAM","7718565","http://opencorporates.com/companies/gb/7718565","198573349"
"London Borough of Redbridge","http://opendatacommunities.org/doc/london-borough-council/redbridge","5BGFHOUSING","General Fund Housing","5CHOMELESS","Homelessness","REV","Revenue","R5630","HAC Temporary Accomodation","05-THIRD","Third Party Payments","05H","Private contractors","6900","Nightly Let Plus Charges","3693388","202302",01/05/2022 00:00:00,1607.1,"31230","Employment and Recruitment Agencies","REDACTED DATA","ADAM HTT LIMITED T/A ADAM","7718565","http://opencorporates.com/companies/gb/7718565","198573349"
"London Borough of Redbridge","http://opendatacommunities.org/doc/london-borough-council/redbridge","9BNONBVO","Outside the BVACOP Objective Structure","9CNONBVO","Outside the BVACOP Objective Structure","CAP","Capital","C2204","Major Resurfacing Borough Roads LBR","99-NONBV","Capital, Balance Sheet and Control","50E","Capital - Contract Payments","9153","Carriageways","3696363","202302",26/05/2022 00:00:00,38371.99,"18632","Civil Engineers","REDACTED DATA","KENSON CONTRACTORS BENINGTON LTD","1314691","http://opencorporates.com/companies/gb/1314691","301629589"
"London Borough of Redbridge","http://opendatacommunities.org/doc/london-borough-council/redbridge","3BLEACENTFND","LEA Centrally Held School Funds","3CNONSCH","Non Schools","REV","Revenue","R2004","Non-maintained and Independent settings","05-THIRD","Third Party Payments","05H","Private contractors","6906","Independent Schools","60488396","202302",26/04/2022 00:00:00,45668.8,"67860","Schools - Independent and Preparatory","REDACTED DATA","CAMBIAN AUTISM SERVICES LTD","3449214","http://opencorporates.com/companies/gb/3449214",""
"London Borough of Redbridge","http://opendatacommunities.org/doc/london-borough-council/redbridge","3BLEACENTFND","LEA Centrally Held School Funds","3CNONSCH","Non Schools","REV","Revenue","R2004","Non-maintained and Independent settings","05-THIRD","Third Party Payments","05H","Private contractors","6906","Independent Schools","60488397","202302",26/04/2022 00:00:00,44676,"67860","Schools - Independent and Preparatory","REDACTED DATA","CAMBIAN AUTISM SERVICES LTD","3449214","http://opencorporates.com/companies/gb/3449214",""
"London Borough of Redbridge","http://opendatacommunities.org/doc/london-borough-council/redbridge","6BADULTSOCIA","Adult Social Care","6CLONGT1864","Long-Term Support 18 - 64 Years","REV","Revenue","R4441","Older People - Seven Kings","05-THIRD","Third Party Payments","05H","Private contractors","6909","Nursing Homes","91318472","202302",10/05/2022 00:00:00,-5940,"64710","Residential Care Homes","REDACTED DATA","SPRINGFIELD (BONDCARE LONDON LIMITED)","10649160","http://opencorporates.com/companies/gb/10649160",""
"London Borough of Redbridge","http://opendatacommunities.org/doc/london-borough-council/redbridge","6BADULTSOCIA","Adult Social Care","6CLONGT1864","Long-Term Support 18 - 64 Years","REV","Revenue","R4441","Older People - Seven Kings","05-THIRD","Third Party Payments","05H","Private contractors","6909","Nursing Homes","91318472","202302",10/05/2022 00:00:00,50196,"64710","Residential Care Homes","REDACTED DATA","SPRINGFIELD (BONDCARE LONDON LIMITED)","10649160","http://opencorporates.com/companies/gb/10649160",""
"London Borough of Redbridge","http://opendatacommunities.org/doc/london-borough-council/redbridge","6BADULTSOCIA","Adult Social Care","6CLONGT65","Long-Term Support 65+ Years","REV","Revenue","R4439","Physical Disabilities - Cranbrook & Loxford","05-THIRD","Third Party Payments","05H","Private contractors","6902","Respite Care","91318140","202302",10/05/2022 00:00:00,171.43,"64710","Residential Care Homes","REDACTED DATA","RANC CARE HOMES LTD - RE ROMFORD CARE CENTRE","2325401","http://opencorporates.com/companies/gb/2325401",""
"London Borough of Redbridge","http://opendatacommunities.org/doc/london-borough-council/redbridge","6BADULTSOCIA","Adult Social Care","6CLONGT65","Long-Term Support 65+ Years","REV","Revenue","R4439","Physical Disabilities - Cranbrook & Loxford","05-THIRD","Third Party Payments","05H","Private contractors","6902","Respite Care","91318140","202302",10/05/2022 00:00:00,43714.29,"64710","Residential Care Homes","REDACTED DATA","RANC CARE HOMES LTD - RE ROMFORD CARE CENTRE","2325401","http://opencorporates.com/companies/gb/2325401",""
"London Borough of Redbridge","http://opendatacommunities.org/doc/london-borough-council/redbridge","1BCENTRALPUB","Central Services to the Public","1CLOCALTAXCO","Local Tax Collection","REV","Revenue","R5760","Local Tax Collection","05-THIRD","Third Party Payments","05A","Independent units within the council","6513","Agency & Contracted Services","60487828","202302",10/03/2022 00:00:00,35495,"79980","Training Services","REDACTED DATA","MERITEC LTD","3224622","http://opencorporates.com/companies/gb/3224622","675499571"
"London Borough of Redbridge","http://opendatacommunities.org/doc/london-borough-council/redbridge","9BNONBVO","Outside the BVACOP Objective Structure","9CNONBVO","Outside the BVACOP Objective Structure","CAP","Capital","C2204","Major Resurfacing Borough Roads LBR","99-NONBV","Capital, Balance Sheet and Control","50E","Capital - Contract Payments","9153","Carriageways","3694665","202302",19/05/2022 00:00:00,35234.81,"18632","Civil Engineers","REDACTED DATA","KENSON CONTRACTORS BENINGTON LTD","1314691","http://opencorporates.com/companies/gb/1314691","301629589"
"London Borough of Redbridge","http://opendatacommunities.org/doc/london-borough-council/redbridge","6BADULTSOCIA","Adult Social Care","6COLDINCMENT","Older People (65 or over) incl. Older Mentally Ill","REV","Revenue","R4410","OP Voluntary Contracts","05-THIRD","Third Party Payments","05F","Voluntary associations","6800","Voluntary Organisations","91318079","202302",01/04/2022 00:00:00,40804.14,"22570","Counselling and Advice Services","REDACTED DATA","Age UK Redbridge Barking & Havering","CHARITY 1088435","http://opencorporates.com/companies/gb/CHARITY 1088435",""
"London Borough of Redbridge","http://opendatacommunities.org/doc/london-borough-council/redbridge","3BLEACENTFND","LEA Centrally Held School Funds","3CNONSCH","Non Schools","REV","Revenue","R2010","Spec Transport LEA","03-TRANSPORT","Transport","03A","Direct - transport costs","5207","School Support - Contractors (Children Services)","60490128","202302",04/05/2022 00:00:00,19400,"31230","Employment and Recruitment Agencies","REDACTED DATA","ADAM HTT LIMITED T/A ADAM","7718565","http://opencorporates.com/companies/gb/7718565","198573349"
"London Borough of Redbridge","http://opendatacommunities.org/doc/london-borough-council/redbridge","3BLEACENTFND","LEA Centrally Held School Funds","3CNONSCH","Non Schools","REV","Revenue","R2011","Prim School Transport LEA","03-TRANSPORT","Transport","03A","Direct - transport costs","5207","School Support - Contractors (Children Services)","60490128","202302",04/05/2022 00:00:00,6240,"31230","Employment and Recruitment Agencies","REDACTED DATA","ADAM HTT LIMITED T/A ADAM","7718565","http://opencorporates.com/companies/gb/7718565","198573349"
"London Borough of Redbridge","http://opendatacommunities.org/doc/london-borough-council/redbridge","3BLEACENTFND","LEA Centrally Held School Funds","3CNONSCH","Non Schools","REV","Revenue","R2012","Sec School Transport LEA","03-TRANSPORT","Transport","03A","Direct - transport costs","5207","School Support - Contractors (Children Services)","60490128","202302",04/05/2022 00:00:00,2439.5,"31230","Employment and Recruitment Agencies","REDACTED DATA","ADAM HTT LIMITED T/A ADAM","7718565","http://opencorporates.com/companies/gb/7718565","198573349"
"London Borough of Redbridge","http://opendatacommunities.org/doc/london-borough-council/redbridge","3BLEACENTFND","LEA Centrally Held School Funds","3CNONSCH","Non Schools","REV","Revenue","R2215","SEN Student Transport","03-TRANSPORT","Transport","03A","Direct - transport costs","5207","School Support - Contractors (Children Services)","60490128","202302",04/05/2022 00:00:00,4356,"31230","Employment and Recruitment Agencies","REDACTED DATA","ADAM HTT LIMITED T/A ADAM","7718565","http://opencorporates.com/companies/gb/7718565","198573349"
"London Borough of Redbridge","http://opendatacommunities.org/doc/london-borough-council/redbridge","9BNONBVO","Outside the BVACOP Objective Structure","9CNONBVO","Outside the BVACOP Objective Structure","CAP","Capital","C4344","School Conditioning","99-NONBV","Capital, Balance Sheet and Control","50E","Capital - Contract Payments","9150","Main Contract","70123795","202301",21/04/2022 00:00:00,32357.29,"65470","Roofing Services","REDACTED DATA","THAMESIDE ROOFING LTD","7962341","http://opencorporates.com/companies/gb/7962341","134137342"
"London Borough of Redbridge","http://opendatacommunities.org/doc/london-borough-council/redbridge","4BMANGT&SUPP","Management & Support Services","2CSERVMGTSUP","Service Management & Support Services","REV","Revenue","R9153","Information Governance","04-SUPPLIES","Supplies And Services","04F","Communications and computing","5853","Computer Software","60487835","202302",20/04/2022 00:00:00,32270.01,"20703","Computer Systems and Software","REDACTED DATA","ONETRUST TECHNOLOGY LTD","4156317","http://opencorporates.com/companies/gb/4156317","782291021"
"London Borough of Redbridge","http://opendatacommunities.org/doc/london-borough-council/redbridge","9BNONBVO","Outside the BVACOP Objective Structure","9CNONBVO","Outside the BVACOP Objective Structure","CAP","Capital","C1033","Modernising IT Applications","99-NONBV","Capital, Balance Sheet and Control","50A","Capital - Employee Costs","9006","Employee Costs - Other","60488381","202302",12/04/2022 00:00:00,31433.22,"31230","Employment and Recruitment Agencies","REDACTED DATA","ADAM HTT LIMITED T/A ADAM","7718565","http://opencorporates.com/companies/gb/7718565","198573349"
"London Borough of Redbridge","http://opendatacommunities.org/doc/london-borough-council/redbridge","5BGFHOUSING","General Fund Housing","5CHOMELESS","Homelessness","REV","Revenue","R5629","HAC Assessment","04-SUPPLIES","Supplies And Services","04H","Grants and subscriptions","5956","Subscriptions","70123683","202301",24/02/2022 00:00:00,20147.57,"48583","Local Government","REDACTED DATA","LONDON BOROUGH OF BARKING & DAGENHAM","",,""
"London Borough of Redbridge","http://opendatacommunities.org/doc/london-borough-council/redbridge","5BGFHOUSING","General Fund Housing","5CHOMELESS","Homelessness","REV","Revenue","R5629","HAC Assessment","04-SUPPLIES","Supplies And Services","04H","Grants and subscriptions","5956","Subscriptions","70123683","202301",24/02/2022 00:00:00,6250,"48583","Local Government","REDACTED DATA","LONDON BOROUGH OF BARKING & DAGENHAM","",,""
"London Borough of Redbridge","http://opendatacommunities.org/doc/london-borough-council/redbridge","5BGFHOUSING","General Fund Housing","5CHOMELESS","Homelessness","REV","Revenue","R5630","HAC Temporary Accomodation","04-SUPPLIES","Supplies And Services","04H","Grants and subscriptions","5956","Subscriptions","70123683","202301",24/02/2022 00:00:00,4750,"48583","Local Government","REDACTED DATA","LONDON BOROUGH OF BARKING & DAGENHAM","",,""
"London Borough of Redbridge","http://opendatacommunities.org/doc/london-borough-council/redbridge","5BGFHOUSING","General Fund Housing","5CHOUMGTSUPP","Housing Management & Support Services","REV","Revenue","R5601","Housing Service Administration","04-SUPPLIES","Supplies And Services","04H","Grants and subscriptions","5956","Subscriptions","70123683","202301",24/02/2022 00:00:00,6500,"48583","Local Government","REDACTED DATA","LONDON BOROUGH OF BARKING & DAGENHAM","",,""
"London Borough of Redbridge","http://opendatacommunities.org/doc/london-borough-council/redbridge","3BLEACENTFND","LEA Centrally Held School Funds","3CNONSCH","Non Schools","REV","Revenue","R2010","Spec Transport LEA","03-TRANSPORT","Transport","03A","Direct - transport costs","5207","School Support - Contractors (Children Services)","60490130","202302",18/05/2022 00:00:00,18723.8,"31230","Employment and Recruitment Agencies","REDACTED DATA","ADAM HTT LIMITED T/A ADAM","7718565","http://opencorporates.com/companies/gb/7718565","198573349"
"London Borough of Redbridge","http://opendatacommunities.org/doc/london-borough-council/redbridge","5BGFHOUSING","General Fund Housing","5CHOMELESS","Homelessness","REV","Revenue","R5630","HAC Temporary Accomodation","05-THIRD","Third Party Payments","05H","Private contractors","6900","Nightly Let Plus Charges","3693388","202302",01/05/2022 00:00:00,0,"31230","Employment and Recruitment Agencies","REDACTED DATA","ADAM HTT LIMITED T/A ADAM","7718565","http://opencorporates.com/companies/gb/7718565","198573349"
"London Borough of Redbridge","http://opendatacommunities.org/doc/london-borough-council/redbridge","5BGFHOUSING","General Fund Housing","5CHOMELESS","Homelessness","REV","Revenue","R5630","HAC Temporary Accomodation","05-THIRD","Third Party Payments","05H","Private contractors","6900","Nightly Let Plus Charges","3693388","202302",01/05/2022 00:00:00,1050,"31230","Employment and Recruitment Agencies","REDACTED DATA","ADAM HTT LIMITED T/A ADAM","7718565","http://opencorporates.com/companies/gb/7718565","198573349"
"London Borough of Redbridge","http://opendatacommunities.org/doc/london-borough-council/redbridge","5BGFHOUSING","General Fund Housing","5CHOMELESS","Homelessness","REV","Revenue","R5630","HAC Temporary Accomodation","05-THIRD","Third Party Payments","05H","Private contractors","6900","Nightly Let Plus Charges","3693388","202302",01/05/2022 00:00:00,0,"31230","Employment and Recruitment Agencies","REDACTED DATA","ADAM HTT LIMITED T/A ADAM","7718565","http://opencorporates.com/companies/gb/7718565","198573349"
"London Borough of Redbridge","http://opendatacommunities.org/doc/london-borough-council/redbridge","5BGFHOUSING","General Fund Housing","5CHOMELESS","Homelessness","REV","Revenue","R5630","HAC Temporary Accomodation","05-THIRD","Third Party Payments","05H","Private contractors","6900","Nightly Let Plus Charges","3693388","202302",01/05/2022 00:00:00,855,"31230","Employment and Recruitment Agencies","REDACTED DATA","ADAM HTT LIMITED T/A ADAM","7718565","http://opencorporates.com/companies/gb/7718565","198573349"
"London Borough of Redbridge","http://opendatacommunities.org/doc/london-borough-council/redbridge","5BGFHOUSING","General Fund Housing","5CHOMELESS","Homelessness","REV","Revenue","R5630","HAC Temporary Accomodation","05-THIRD","Third Party Payments","05H","Private contractors","6900","Nightly Let Plus Charges","3693388","202302",01/05/2022 00:00:00,990,"31230","Employment and Recruitment Agencies","REDACTED DATA","ADAM HTT LIMITED T/A ADAM","7718565","http://opencorporates.com/companies/gb/7718565","198573349"
"London Borough of Redbridge","http://opendatacommunities.org/doc/london-borough-council/redbridge","5BGFHOUSING","General Fund Housing","5CHOMELESS","Homelessness","REV","Revenue","R5630","HAC Temporary Accomodation","05-THIRD","Third Party Payments","05H","Private contractors","6900","Nightly Let Plus Charges","3693388","202302",01/05/2022 00:00:00,0,"31230","Employment and Recruitment Agencies","REDACTED DATA","ADAM HTT LIMITED T/A ADAM","7718565","http://opencorporates.com/companies/gb/7718565","198573349"
"London Borough of Redbridge","http://opendatacommunities.org/doc/london-borough-council/redbridge","5BGFHOUSING","General Fund Housing","5CHOMELESS","Homelessness","REV","Revenue","R5630","HAC Temporary Accomodation","05-THIRD","Third Party Payments","05H","Private contractors","6900","Nightly Let Plus Charges","3693388","202302",01/05/2022 00:00:00,855,"31230","Employment and Recruitment Agencies","REDACTED DATA","ADAM HTT LIMITED T/A ADAM","7718565","http://opencorporates.com/companies/gb/7718565","198573349"
"London Borough of Redbridge","http://opendatacommunities.org/doc/london-borough-council/redbridge","5BGFHOUSING","General Fund Housing","5CHOMELESS","Homelessness","REV","Revenue","R5630","HAC Temporary Accomodation","05-THIRD","Third Party Payments","05H","Private contractors","6900","Nightly Let Plus Charges","3693388","202302",01/05/2022 00:00:00,0,"31230","Employment and Recruitment Agencies","REDACTED DATA","ADAM HTT LIMITED T/A ADAM","7718565","http://opencorporates.com/companies/gb/7718565","198573349"
"London Borough of Redbridge","http://opendatacommunities.org/doc/london-borough-council/redbridge","5BGFHOUSING","General Fund Housing","5CHOMELESS","Homelessness","REV","Revenue","R5630","HAC Temporary Accomodation","05-THIRD","Third Party Payments","05H","Private contractors","6900","Nightly Let Plus Charges","3693388","202302",01/05/2022 00:00:00,855,"31230","Employment and Recruitment Agencies","REDACTED DATA","ADAM HTT LIMITED T/A ADAM","7718565","http://opencorporates.com/companies/gb/7718565","198573349"
"London Borough of Redbridge","http://opendatacommunities.org/doc/london-borough-council/redbridge","5BGFHOUSING","General Fund Housing","5CHOMELESS","Homelessness","REV","Revenue","R5630","HAC Temporary Accomodation","05-THIRD","Third Party Payments","05H","Private contractors","6900","Nightly Let Plus Charges","3693388","202302",01/05/2022 00:00:00,0,"31230","Employment and Recruitment Agencies","REDACTED DATA","ADAM HTT LIMITED T/A ADAM","7718565","http://opencorporates.com/companies/gb/7718565","198573349"
"London Borough of Redbridge","http://opendatacommunities.org/doc/london-borough-council/redbridge","5BGFHOUSING","General Fund Housing","5CHOMELESS","Homelessness","REV","Revenue","R5630","HAC Temporary Accomodation","05-THIRD","Third Party Payments","05H","Private contractors","6900","Nightly Let Plus Charges","3693388","202302",01/05/2022 00:00:00,1260,"31230","Employment and Recruitment Agencies","REDACTED DATA","ADAM HTT LIMITED T/A ADAM","7718565","http://opencorporates.com/companies/gb/7718565","198573349"
"London Borough of Redbridge","http://opendatacommunities.org/doc/london-borough-council/redbridge","5BGFHOUSING","General Fund Housing","5CHOMELESS","Homelessness","REV","Revenue","R5630","HAC Temporary Accomodation","05-THIRD","Third Party Payments","05H","Private contractors","6900","Nightly Let Plus Charges","3693388","202302",01/05/2022 00:00:00,772.2,"31230","Employment and Recruitment Agencies","REDACTED DATA","ADAM HTT LIMITED T/A ADAM","7718565","http://opencorporates.com/companies/gb/7718565","198573349"
"London Borough of Redbridge","http://opendatacommunities.org/doc/london-borough-council/redbridge","5BGFHOUSING","General Fund Housing","5CHOMELESS","Homelessness","REV","Revenue","R5630","HAC Temporary Accomodation","05-THIRD","Third Party Payments","05H","Private contractors","6900","Nightly Let Plus Charges","3693388","202302",01/05/2022 00:00:00,855,"31230","Employment and Recruitment Agencies","REDACTED DATA","ADAM HTT LIMITED T/A ADAM","7718565","http://opencorporates.com/companies/gb/7718565","198573349"
"London Borough of Redbridge","http://opendatacommunities.org/doc/london-borough-council/redbridge","5BGFHOUSING","General Fund Housing","5CHOMELESS","Homelessness","REV","Revenue","R5630","HAC Temporary Accomodation","05-THIRD","Third Party Payments","05H","Private contractors","6900","Nightly Let Plus Charges","3693388","202302",01/05/2022 00:00:00,0,"31230","Employment and Recruitment Agencies","REDACTED DATA","ADAM HTT LIMITED T/A ADAM","7718565","http://opencorporates.com/companies/gb/7718565","198573349"
"London Borough of Redbridge","http://opendatacommunities.org/doc/london-borough-council/redbridge","5BGFHOUSING","General Fund Housing","5CHOMELESS","Homelessness","REV","Revenue","R5630","HAC Temporary Accomodation","05-THIRD","Third Party Payments","05H","Private contractors","6900","Nightly Let Plus Charges","3693388","202302",01/05/2022 00:00:00,1260,"31230","Employment and Recruitment Agencies","REDACTED DATA","ADAM HTT LIMITED T/A ADAM","7718565","http://opencorporates.com/companies/gb/7718565","198573349"
"London Borough of Redbridge","http://opendatacommunities.org/doc/london-borough-council/redbridge","5BGFHOUSING","General Fund Housing","5CHOMELESS","Homelessness","REV","Revenue","R5630","HAC Temporary Accomodation","05-THIRD","Third Party Payments","05H","Private contractors","6900","Nightly Let Plus Charges","3693388","202302",01/05/2022 00:00:00,0,"31230","Employment and Recruitment Agencies","REDACTED DATA","ADAM HTT LIMITED T/A ADAM","7718565","http://opencorporates.com/companies/gb/7718565","198573349"
"London Borough of Redbridge","http://opendatacommunities.org/doc/london-borough-council/redbridge","5BGFHOUSING","General Fund Housing","5CHOMELESS","Homelessness","REV","Revenue","R5630","HAC Temporary Accomodation","05-THIRD","Third Party Payments","05H","Private contractors","6900","Nightly Let Plus Charges","3693388","202302",01/05/2022 00:00:00,1617.9,"31230","Employment and Recruitment Agencies","REDACTED DATA","ADAM HTT LIMITED T/A ADAM","7718565","http://opencorporates.com/companies/gb/7718565","198573349"
"London Borough of Redbridge","http://opendatacommunities.org/doc/london-borough-council/redbridge","5BGFHOUSING","General Fund Housing","5CHOMELESS","Homelessness","REV","Revenue","R5630","HAC Temporary Accomodation","05-THIRD","Third Party Payments","05H","Private contractors","6900","Nightly Let Plus Charges","3693388","202302",01/05/2022 00:00:00,0,"31230","Employment and Recruitment Agencies","REDACTED DATA","ADAM HTT LIMITED T/A ADAM","7718565","http://opencorporates.com/companies/gb/7718565","198573349"
"London Borough of Redbridge","http://opendatacommunities.org/doc/london-borough-council/redbridge","5BGFHOUSING","General Fund Housing","5CHOMELESS","Homelessness","REV","Revenue","R5630","HAC Temporary Accomodation","05-THIRD","Third Party Payments","05H","Private contractors","6900","Nightly Let Plus Charges","3693388","202302",01/05/2022 00:00:00,1080,"31230","Employment and Recruitment Agencies","REDACTED DATA","ADAM HTT LIMITED T/A ADAM","7718565","http://opencorporates.com/companies/gb/7718565","198573349"
"London Borough of Redbridge","http://opendatacommunities.org/doc/london-borough-council/redbridge","5BGFHOUSING","General Fund Housing","5CHOMELESS","Homelessness","REV","Revenue","R5630","HAC Temporary Accomodation","05-THIRD","Third Party Payments","05H","Private contractors","6900","Nightly Let Plus Charges","3693388","202302",01/05/2022 00:00:00,0,"31230","Employment and Recruitment Agencies","REDACTED DATA","ADAM HTT LIMITED T/A ADAM","7718565","http://opencorporates.com/companies/gb/7718565","198573349"
"London Borough of Redbridge","http://opendatacommunities.org/doc/london-borough-council/redbridge","5BGFHOUSING","General Fund Housing","5CHOMELESS","Homelessness","REV","Revenue","R5630","HAC Temporary Accomodation","05-THIRD","Third Party Payments","05H","Private contractors","6900","Nightly Let Plus Charges","3693388","202302",01/05/2022 00:00:00,1080,"31230","Employment and Recruitment Agencies","REDACTED DATA","ADAM HTT LIMITED T/A ADAM","7718565","http://opencorporates.com/companies/gb/7718565","198573349"
"London Borough of Redbridge","http://opendatacommunities.org/doc/london-borough-council/redbridge","5BGFHOUSING","General Fund Housing","5CHOMELESS","Homelessness","REV","Revenue","R5630","HAC Temporary Accomodation","05-THIRD","Third Party Payments","05H","Private contractors","6900","Nightly Let Plus Charges","3693388","202302",01/05/2022 00:00:00,0,"31230","Employment and Recruitment Agencies","REDACTED DATA","ADAM HTT LIMITED T/A ADAM","7718565","http://opencorporates.com/companies/gb/7718565","198573349"
"London Borough of Redbridge","http://opendatacommunities.org/doc/london-borough-council/redbridge","5BGFHOUSING","General Fund Housing","5CHOMELESS","Homelessness","REV","Revenue","R5630","HAC Temporary Accomodation","05-THIRD","Third Party Payments","05H","Private contractors","6900","Nightly Let Plus Charges","3693388","202302",01/05/2022 00:00:00,855,"31230","Employment and Recruitment Agencies","REDACTED DATA","ADAM HTT LIMITED T/A ADAM","7718565","http://opencorporates.com/companies/gb/7718565","198573349"
"London Borough of Redbridge","http://opendatacommunities.org/doc/london-borough-council/redbridge","5BGFHOUSING","General Fund Housing","5CHOMELESS","Homelessness","REV","Revenue","R5630","HAC Temporary Accomodation","05-THIRD","Third Party Payments","05H","Private contractors","6900","Nightly Let Plus Charges","3693388","202302",01/05/2022 00:00:00,0,"31230","Employment and Recruitment Agencies","REDACTED DATA","ADAM HTT LIMITED T/A ADAM","7718565","http://opencorporates.com/companies/gb/7718565","198573349"
"London Borough of Redbridge","http://opendatacommunities.org/doc/london-borough-council/redbridge","5BGFHOUSING","General Fund Housing","5CHOMELESS","Homelessness","REV","Revenue","R5630","HAC Temporary Accomodation","05-THIRD","Third Party Payments","05H","Private contractors","6900","Nightly Let Plus Charges","3693388","202302",01/05/2022 00:00:00,855,"31230","Employment and Recruitment Agencies","REDACTED DATA","ADAM HTT LIMITED T/A ADAM","7718565","http://opencorporates.com/companies/gb/7718565","198573349"
"London Borough of Redbridge","http://opendatacommunities.org/doc/london-borough-council/redbridge","5BGFHOUSING","General Fund Housing","5CHOMELESS","Homelessness","REV","Revenue","R5630","HAC Temporary Accomodation","05-THIRD","Third Party Payments","05H","Private contractors","6900","Nightly Let Plus Charges","3693388","202302",01/05/2022 00:00:00,0,"31230","Employment and Recruitment Agencies","REDACTED DATA","ADAM HTT LIMITED T/A ADAM","7718565","http://opencorporates.com/companies/gb/7718565","198573349"
"London Borough of Redbridge","http://opendatacommunities.org/doc/london-borough-council/redbridge","5BGFHOUSING","General Fund Housing","5CHOMELESS","Homelessness","REV","Revenue","R5630","HAC Temporary Accomodation","05-THIRD","Third Party Payments","05H","Private contractors","6900","Nightly Let Plus Charges","3693388","202302",01/05/2022 00:00:00,1140,"31230","Employment and Recruitment Agencies","REDACTED DATA","ADAM HTT LIMITED T/A ADAM","7718565","http://opencorporates.com/companies/gb/7718565","198573349"
"London Borough of Redbridge","http://opendatacommunities.org/doc/london-borough-council/redbridge","5BGFHOUSING","General Fund Housing","5CHOMELESS","Homelessness","REV","Revenue","R5630","HAC Temporary Accomodation","05-THIRD","Third Party Payments","05H","Private contractors","6900","Nightly Let Plus Charges","3693388","202302",01/05/2022 00:00:00,0,"31230","Employment and Recruitment Agencies","REDACTED DATA","ADAM HTT LIMITED T/A ADAM","7718565","http://opencorporates.com/companies/gb/7718565","198573349"
"London Borough of Redbridge","http://opendatacommunities.org/doc/london-borough-council/redbridge","5BGFHOUSING","General Fund Housing","5CHOMELESS","Homelessness","REV","Revenue","R5630","HAC Temporary Accomodation","05-THIRD","Third Party Payments","05H","Private contractors","6900","Nightly Let Plus Charges","3693388","202302",01/05/2022 00:00:00,1500,"31230","Employment and Recruitment Agencies","REDACTED DATA","ADAM HTT LIMITED T/A ADAM","7718565","http://opencorporates.com/companies/gb/7718565","198573349"
"London Borough of Redbridge","http://opendatacommunities.org/doc/london-borough-council/redbridge","5BGFHOUSING","General Fund Housing","5CHOMELESS","Homelessness","REV","Revenue","R5630","HAC Temporary Accomodation","05-THIRD","Third Party Payments","05H","Private contractors","6900","Nightly Let Plus Charges","3693388","202302",01/05/2022 00:00:00,0,"31230","Employment and Recruitment Agencies","REDACTED DATA","ADAM HTT LIMITED T/A ADAM","7718565","http://opencorporates.com/companies/gb/7718565","198573349"
"London Borough of Redbridge","http://opendatacommunities.org/doc/london-borough-council/redbridge","5BGFHOUSING","General Fund Housing","5CHOMELESS","Homelessness","REV","Revenue","R5630","HAC Temporary Accomodation","05-THIRD","Third Party Payments","05H","Private contractors","6900","Nightly Let Plus Charges","3693388","202302",01/05/2022 00:00:00,0,"31230","Employment and Recruitment Agencies","REDACTED DATA","ADAM HTT LIMITED T/A ADAM","7718565","http://opencorporates.com/companies/gb/7718565","198573349"
"London Borough of Redbridge","http://opendatacommunities.org/doc/london-borough-council/redbridge","5BGFHOUSING","General Fund Housing","5CHOMELESS","Homelessness","REV","Revenue","R5630","HAC Temporary Accomodation","05-THIRD","Third Party Payments","05H","Private contractors","6900","Nightly Let Plus Charges","3693388","202302",01/05/2022 00:00:00,1200,"31230","Employment and Recruitment Agencies","REDACTED DATA","ADAM HTT LIMITED T/A ADAM","7718565","http://opencorporates.com/companies/gb/7718565","198573349"
"London Borough of Redbridge","http://opendatacommunities.org/doc/london-borough-council/redbridge","5BGFHOUSING","General Fund Housing","5CHOMELESS","Homelessness","REV","Revenue","R5630","HAC Temporary Accomodation","05-THIRD","Third Party Payments","05H","Private contractors","6900","Nightly Let Plus Charges","3693388","202302",01/05/2022 00:00:00,855,"31230","Employment and Recruitment Agencies","REDACTED DATA","ADAM HTT LIMITED T/A ADAM","7718565","http://opencorporates.com/companies/gb/7718565","198573349"
"London Borough of Redbridge","http://opendatacommunities.org/doc/london-borough-council/redbridge","5BGFHOUSING","General Fund Housing","5CHOMELESS","Homelessness","REV","Revenue","R5630","HAC Temporary Accomodation","05-THIRD","Third Party Payments","05H","Private contractors","6900","Nightly Let Plus Charges","3693388","202302",01/05/2022 00:00:00,0,"31230","Employment and Recruitment Agencies","REDACTED DATA","ADAM HTT LIMITED T/A ADAM","7718565","http://opencorporates.com/companies/gb/7718565","198573349"
"London Borough of Redbridge","http://opendatacommunities.org/doc/london-borough-council/redbridge","5BGFHOUSING","General Fund Housing","5CHOMELESS","Homelessness","REV","Revenue","R5630","HAC Temporary Accomodation","05-THIRD","Third Party Payments","05H","Private contractors","6900","Nightly Let Plus Charges","3693388","202302",01/05/2022 00:00:00,1863,"31230","Employment and Recruitment Agencies","REDACTED DATA","ADAM HTT LIMITED T/A ADAM","7718565","http://opencorporates.com/companies/gb/7718565","198573349"
"London Borough of Redbridge","http://opendatacommunities.org/doc/london-borough-council/redbridge","5BGFHOUSING","General Fund Housing","5CHOMELESS","Homelessness","REV","Revenue","R5630","HAC Temporary Accomodation","05-THIRD","Third Party Payments","05H","Private contractors","6900","Nightly Let Plus Charges","3693388","202302",01/05/2022 00:00:00,927.9,"31230","Employment and Recruitment Agencies","REDACTED DATA","ADAM HTT LIMITED T/A ADAM","7718565","http://opencorporates.com/companies/gb/7718565","198573349"
"London Borough of Redbridge","http://opendatacommunities.org/doc/london-borough-council/redbridge","5BGFHOUSING","General Fund Housing","5CHOMELESS","Homelessness","REV","Revenue","R5630","HAC Temporary Accomodation","05-THIRD","Third Party Payments","05H","Private contractors","6900","Nightly Let Plus Charges","3693388","202302",01/05/2022 00:00:00,972.6,"31230","Employment and Recruitment Agencies","REDACTED DATA","ADAM HTT LIMITED T/A ADAM","7718565","http://opencorporates.com/companies/gb/7718565","198573349"
"London Borough of Redbridge","http://opendatacommunities.org/doc/london-borough-council/redbridge","5BGFHOUSING","General Fund Housing","5CHOMELESS","Homelessness","REV","Revenue","R5630","HAC Temporary Accomodation","05-THIRD","Third Party Payments","05H","Private contractors","6900","Nightly Let Plus Charges","3693388","202302",01/05/2022 00:00:00,0,"31230","Employment and Recruitment Agencies","REDACTED DATA","ADAM HTT LIMITED T/A ADAM","7718565","http://opencorporates.com/companies/gb/7718565","198573349"
"London Borough of Redbridge","http://opendatacommunities.org/doc/london-borough-council/redbridge","5BGFHOUSING","General Fund Housing","5CHOMELESS","Homelessness","REV","Revenue","R5630","HAC Temporary Accomodation","05-THIRD","Third Party Payments","05H","Private contractors","6900","Nightly Let Plus Charges","3693388","202302",01/05/2022 00:00:00,0,"31230","Employment and Recruitment Agencies","REDACTED DATA","ADAM HTT LIMITED T/A ADAM","7718565","http://opencorporates.com/companies/gb/7718565","198573349"
"London Borough of Redbridge","http://opendatacommunities.org/doc/london-borough-council/redbridge","5BGFHOUSING","General Fund Housing","5CHOMELESS","Homelessness","REV","Revenue","R5630","HAC Temporary Accomodation","05-THIRD","Third Party Payments","05H","Private contractors","6900","Nightly Let Plus Charges","3693388","202302",01/05/2022 00:00:00,1818,"31230","Employment and Recruitment Agencies","REDACTED DATA","ADAM HTT LIMITED T/A ADAM","7718565","http://opencorporates.com/companies/gb/7718565","198573349"
"London Borough of Redbridge","http://opendatacommunities.org/doc/london-borough-council/redbridge","5BGFHOUSING","General Fund Housing","5CHOMELESS","Homelessness","REV","Revenue","R5630","HAC Temporary Accomodation","05-THIRD","Third Party Payments","05H","Private contractors","6900","Nightly Let Plus Charges","3693388","202302",01/05/2022 00:00:00,1260,"31230","Employment and Recruitment Agencies","REDACTED DATA","ADAM HTT LIMITED T/A ADAM","7718565","http://opencorporates.com/companies/gb/7718565","198573349"
"London Borough of Redbridge","http://opendatacommunities.org/doc/london-borough-council/redbridge","5BGFHOUSING","General Fund Housing","5CHOMELESS","Homelessness","REV","Revenue","R5630","HAC Temporary Accomodation","05-THIRD","Third Party Payments","05H","Private contractors","6900","Nightly Let Plus Charges","3693388","202302",01/05/2022 00:00:00,0,"31230","Employment and Recruitment Agencies","REDACTED DATA","ADAM HTT LIMITED T/A ADAM","7718565","http://opencorporates.com/companies/gb/7718565","198573349"
"London Borough of Redbridge","http://opendatacommunities.org/doc/london-borough-council/redbridge","5BGFHOUSING","General Fund Housing","5CHOMELESS","Homelessness","REV","Revenue","R5630","HAC Temporary Accomodation","05-THIRD","Third Party Payments","05H","Private contractors","6900","Nightly Let Plus Charges","3693388","202302",01/05/2022 00:00:00,855,"31230","Employment and Recruitment Agencies","REDACTED DATA","ADAM HTT LIMITED T/A ADAM","7718565","http://opencorporates.com/companies/gb/7718565","198573349"
"London Borough of Redbridge","http://opendatacommunities.org/doc/london-borough-council/redbridge","5BGFHOUSING","General Fund Housing","5CHOMELESS","Homelessness","REV","Revenue","R5630","HAC Temporary Accomodation","05-THIRD","Third Party Payments","05H","Private contractors","6900","Nightly Let Plus Charges","3693388","202302",01/05/2022 00:00:00,0,"31230","Employment and Recruitment Agencies","REDACTED DATA","ADAM HTT LIMITED T/A ADAM","7718565","http://opencorporates.com/companies/gb/7718565","198573349"
"London Borough of Redbridge","http://opendatacommunities.org/doc/london-borough-council/redbridge","5BGFHOUSING","General Fund Housing","5CHOMELESS","Homelessness","REV","Revenue","R5630","HAC Temporary Accomodation","05-THIRD","Third Party Payments","05H","Private contractors","6900","Nightly Let Plus Charges","3693388","202302",01/05/2022 00:00:00,855,"31230","Employment and Recruitment Agencies","REDACTED DATA","ADAM HTT LIMITED T/A ADAM","7718565","http://opencorporates.com/companies/gb/7718565","198573349"
"London Borough of Redbridge","http://opendatacommunities.org/doc/london-borough-council/redbridge","5BGFHOUSING","General Fund Housing","5CHOMELESS","Homelessness","REV","Revenue","R5630","HAC Temporary Accomodation","05-THIRD","Third Party Payments","05H","Private contractors","6900","Nightly Let Plus Charges","3693388","202302",01/05/2022 00:00:00,0,"31230","Employment and Recruitment Agencies","REDACTED DATA","ADAM HTT LIMITED T/A ADAM","7718565","http://opencorporates.com/companies/gb/7718565","198573349"
"London Borough of Redbridge","http://opendatacommunities.org/doc/london-borough-council/redbridge","5BGFHOUSING","General Fund Housing","5CHOMELESS","Homelessness","REV","Revenue","R5630","HAC Temporary Accomodation","05-THIRD","Third Party Payments","05H","Private contractors","6900","Nightly Let Plus Charges","3693388","202302",01/05/2022 00:00:00,855,"31230","Employment and Recruitment Agencies","REDACTED DATA","ADAM HTT LIMITED T/A ADAM","7718565","http://opencorporates.com/companies/gb/7718565","198573349"
"London Borough of Redbridge","http://opendatacommunities.org/doc/london-borough-council/redbridge","5BGFHOUSING","General Fund Housing","5CHOMELESS","Homelessness","REV","Revenue","R5630","HAC Temporary Accomodation","05-THIRD","Third Party Payments","05H","Private contractors","6900","Nightly Let Plus Charges","3693388","202302",01/05/2022 00:00:00,0,"31230","Employment and Recruitment Agencies","REDACTED DATA","ADAM HTT LIMITED T/A ADAM","7718565","http://opencorporates.com/companies/gb/7718565","198573349"
"London Borough of Redbridge","http://opendatacommunities.org/doc/london-borough-council/redbridge","5BGFHOUSING","General Fund Housing","5CHOMELESS","Homelessness","REV","Revenue","R5630","HAC Temporary Accomodation","05-THIRD","Third Party Payments","05H","Private contractors","6900","Nightly Let Plus Charges","3693388","202302",01/05/2022 00:00:00,1106.1,"31230","Employment and Recruitment Agencies","REDACTED DATA","ADAM HTT LIMITED T/A ADAM","7718565","http://opencorporates.com/companies/gb/7718565","198573349"
"London Borough of Redbridge","http://opendatacommunities.org/doc/london-borough-council/redbridge","5BGFHOUSING","General Fund Housing","5CHOMELESS","Homelessness","REV","Revenue","R5630","HAC Temporary Accomodation","05-THIRD","Third Party Payments","05H","Private contractors","6900","Nightly Let Plus Charges","3693388","202302",01/05/2022 00:00:00,0,"31230","Employment and Recruitment Agencies","REDACTED DATA","ADAM HTT LIMITED T/A ADAM","7718565","http://opencorporates.com/companies/gb/7718565","198573349"
"London Borough of Redbridge","http://opendatacommunities.org/doc/london-borough-council/redbridge","5BGFHOUSING","General Fund Housing","5CHOMELESS","Homelessness","REV","Revenue","R5630","HAC Temporary Accomodation","05-THIRD","Third Party Payments","05H","Private contractors","6900","Nightly Let Plus Charges","3693388","202302",01/05/2022 00:00:00,1371.6,"31230","Employment and Recruitment Agencies","REDACTED DATA","ADAM HTT LIMITED T/A ADAM","7718565","http://opencorporates.com/companies/gb/7718565","198573349"
"London Borough of Redbridge","http://opendatacommunities.org/doc/london-borough-council/redbridge","5BGFHOUSING","General Fund Housing","5CHOMELESS","Homelessness","REV","Revenue","R5630","HAC Temporary Accomodation","05-THIRD","Third Party Payments","05H","Private contractors","6900","Nightly Let Plus Charges","3693388","202302",01/05/2022 00:00:00,1380,"31230","Employment and Recruitment Agencies","REDACTED DATA","ADAM HTT LIMITED T/A ADAM","7718565","http://opencorporates.com/companies/gb/7718565","198573349"
"London Borough of Redbridge","http://opendatacommunities.org/doc/london-borough-council/redbridge","5BGFHOUSING","General Fund Housing","5CHOMELESS","Homelessness","REV","Revenue","R5630","HAC Temporary Accomodation","05-THIRD","Third Party Payments","05H","Private contractors","6900","Nightly Let Plus Charges","3693388","202302",01/05/2022 00:00:00,0,"31230","Employment and Recruitment Agencies","REDACTED DATA","ADAM HTT LIMITED T/A ADAM","7718565","http://opencorporates.com/companies/gb/7718565","198573349"
"London Borough of Redbridge","http://opendatacommunities.org/doc/london-borough-council/redbridge","5BGFHOUSING","General Fund Housing","5CHOMELESS","Homelessness","REV","Revenue","R5630","HAC Temporary Accomodation","05-THIRD","Third Party Payments","05H","Private contractors","6900","Nightly Let Plus Charges","3693388","202302",01/05/2022 00:00:00,794.4,"31230","Employment and Recruitment Agencies","REDACTED DATA","ADAM HTT LIMITED T/A ADAM","7718565","http://opencorporates.com/companies/gb/7718565","198573349"
"London Borough of Redbridge","http://opendatacommunities.org/doc/london-borough-council/redbridge","5BGFHOUSING","General Fund Housing","5CHOMELESS","Homelessness","REV","Revenue","R5630","HAC Temporary Accomodation","05-THIRD","Third Party Payments","05H","Private contractors","6900","Nightly Let Plus Charges","3693388","202302",01/05/2022 00:00:00,0,"31230","Employment and Recruitment Agencies","REDACTED DATA","ADAM HTT LIMITED T/A ADAM","7718565","http://opencorporates.com/companies/gb/7718565","198573349"
"London Borough of Redbridge","http://opendatacommunities.org/doc/london-borough-council/redbridge","3BLEACENTFND","LEA Centrally Held School Funds","3CNONSCH","Non Schools","REV","Revenue","R2011","Prim School Transport LEA","03-TRANSPORT","Transport","03A","Direct - transport costs","5207","School Support - Contractors (Children Services)","60490130","202302",18/05/2022 00:00:00,5364.5,"31230","Employment and Recruitment Agencies","REDACTED DATA","ADAM HTT LIMITED T/A ADAM","7718565","http://opencorporates.com/companies/gb/7718565","198573349"
"London Borough of Redbridge","http://opendatacommunities.org/doc/london-borough-council/redbridge","3BLEACENTFND","LEA Centrally Held School Funds","3CNONSCH","Non Schools","REV","Revenue","R2012","Sec School Transport LEA","03-TRANSPORT","Transport","03A","Direct - transport costs","5207","School Support - Contractors (Children Services)","60490130","202302",18/05/2022 00:00:00,3087.6,"31230","Employment and Recruitment Agencies","REDACTED DATA","ADAM HTT LIMITED T/A ADAM","7718565","http://opencorporates.com/companies/gb/7718565","198573349"
"London Borough of Redbridge","http://opendatacommunities.org/doc/london-borough-council/redbridge","3BLEACENTFND","LEA Centrally Held School Funds","3CNONSCH","Non Schools","REV","Revenue","R2215","SEN Student Transport","03-TRANSPORT","Transport","03A","Direct - transport costs","5207","School Support - Contractors (Children Services)","60490130","202302",18/05/2022 00:00:00,3684,"31230","Employment and Recruitment Agencies","REDACTED DATA","ADAM HTT LIMITED T/A ADAM","7718565","http://opencorporates.com/companies/gb/7718565","198573349"
"London Borough of Redbridge","http://opendatacommunities.org/doc/london-borough-council/redbridge","3BNONSCHFUND","Non-School Funding","3CNONSCH","Non Schools","REV","Revenue","R2090","High Needs Block Contingency","05-THIRD","Third Party Payments","05G","Other establishments","7430","LBR Pre 16 Top Up","3693021","202301",29/04/2022 00:00:00,36725,"67981","Schools - Local Authority","REDACTED DATA","HATTON SCHOOL A/C","",,""
"London Borough of Redbridge","http://opendatacommunities.org/doc/london-borough-council/redbridge","1BOTHEROPI&E","Other Operating Income & Expenditure","1CTRADSURDEF","Trading Account Surpluses & Deficits","REV","Revenue","R9252","Programme Services","04-SUPPLIES","Supplies And Services","04F","Communications and computing","5853","Computer Software","60488123","202302",22/04/2022 00:00:00,29647.48,"20623","Computer Consumables and Stationery","REDACTED DATA","CCS MEDIA LTD","1693516","http://opencorporates.com/companies/gb/1693516","385123454"
"London Borough of Redbridge","http://opendatacommunities.org/doc/london-borough-council/redbridge","9BNONBVO","Outside the BVACOP Objective Structure","9CNONBVO","Outside the BVACOP Objective Structure","CAP","Capital","C1031","Lifecycle and Refresh","99-NONBV","Capital, Balance Sheet and Control","50E","Capital - Contract Payments","9150","Main Contract","60487262","202301",08/04/2022 00:00:00,29599.6,"20703","Computer Systems and Software","REDACTED DATA","STONE COMPUTERS","2658501","http://opencorporates.com/companies/gb/2658501","747878857"
"London Borough of Redbridge","http://opendatacommunities.org/doc/london-borough-council/redbridge","6BADULTSOCIA","Adult Social Care","6CLONGT1864","Long-Term Support 18 - 64 Years","REV","Revenue","R4437","Learning Disabilities - Cranbrook & Loxford","05-THIRD","Third Party Payments","05F","Voluntary associations","6802","Residential Homes","91318070","202302",03/05/2022 00:00:00,35472.86,"64710","Residential Care Homes","REDACTED DATA","SAHARA HOMES LTD(CRANBROOK ROAD)","3934865","http://opencorporates.com/companies/gb/3934865",""
"London Borough of Redbridge","http://opendatacommunities.org/doc/london-borough-council/redbridge","9BNONBVO","Outside the BVACOP Objective Structure","9CNONBVO","Outside the BVACOP Objective Structure","CAP","Capital","C1031","Lifecycle and Refresh","99-NONBV","Capital, Balance Sheet and Control","50E","Capital - Contract Payments","9150","Main Contract","60488752","202302",29/04/2022 00:00:00,29287.6,"20703","Computer Systems and Software","REDACTED DATA","Kingsfield Computer Products Ltd","3357539","http://opencorporates.com/companies/gb/3357539","687 3912 87"
"London Borough of Redbridge","http://opendatacommunities.org/doc/london-borough-council/redbridge","9BNONBVO","Outside the BVACOP Objective Structure","9CNONBVO","Outside the BVACOP Objective Structure","REV","Revenue","R5035","Orchard Billing Platform","04-SUPPLIES","Supplies And Services","04F","Communications and computing","5853","Computer Software","60488931","202302",28/04/2022 00:00:00,29233.31,"31420","Energy Management Control Systems","REDACTED DATA","TESGL LTD T/A SSE ENERGY SOLUTIONS","8462158","http://opencorporates.com/companies/gb/8462158","100141304"
"London Borough of Redbridge","http://opendatacommunities.org/doc/london-borough-council/redbridge","3BNONSCHFUND","Non-School Funding","6CCHILLOOKED","Children Looked After","REV","Revenue","R2238","Looked After Children Placements LA","05-THIRD","Third Party Payments","05H","Private contractors","6907","Private Homes","60489939","202302",24/03/2022 00:00:00,34809.4,"48583","Local Government","REDACTED DATA","LONDON BOROUGH OF HAVERING","",,"246347944"
"London Borough of Redbridge","http://opendatacommunities.org/doc/london-borough-council/redbridge","3BINDSCHFUND","Individual School Funds","3CNONSCH","Non Schools","REV","Revenue","R2001","Secondary Schools SEN Top Up Fees","05-THIRD","Third Party Payments","05G","Other establishments","7430","LBR Pre 16 Top Up","3696368","202302",26/05/2022 00:00:00,34357.98,"67981","Schools - Local Authority","REDACTED DATA","THE FOREST ACADEMY","7835788","http://opencorporates.com/companies/gb/7835788",""
"London Borough of Redbridge","http://opendatacommunities.org/doc/london-borough-council/redbridge","3BINDSCHFUND","Individual School Funds","3CNONSCH","Non Schools","REV","Revenue","R2001","Secondary Schools SEN Top Up Fees","05-THIRD","Third Party Payments","05G","Other establishments","7430","LBR Pre 16 Top Up","3696371","202302",26/05/2022 00:00:00,34138.5,"67981","Schools - Local Authority","REDACTED DATA","LOXFORD SCHOOL TRUST LTD","8743560","http://opencorporates.com/companies/gb/8743560","246546447"
"London Borough of Redbridge","http://opendatacommunities.org/doc/london-borough-council/redbridge","2BPLANPOL","Planning Policy","","","REV","Revenue","R6537","Director of Regeneration and Culture","01-EMPLOYEES","Employees","01A","Direct employee expenses","4","Agency Staff - Pay","60489936","202302",11/05/2022 00:00:00,28400,"1961","Advertising - Agencies","REDACTED DATA","PENNA PLC (PENNA COMMUNICATIONS)","1918150","http://opencorporates.com/companies/gb/1918150","605849719"
"London Borough of Redbridge","http://opendatacommunities.org/doc/london-borough-council/redbridge","1BOTHEROPI&E","Other Operating Income & Expenditure","1CTRADSURDEF","Trading Account Surpluses & Deficits","REV","Revenue","R9148","Tree Holding Account","02-PREMISES","Premises","02I","Grounds maintenance costs","4753","Trees / Recreational","60488705","202302",29/04/2022 00:00:00,28279.86,"90043","Highway Maintenance","REDACTED DATA","S H GOSS & CO LTD","",,""
"London Borough of Redbridge","http://opendatacommunities.org/doc/london-borough-council/redbridge","3BINDSCHFUND","Individual School Funds","3CNONSCH","Non Schools","REV","Revenue","R2001","Secondary Schools SEN Top Up Fees","05-THIRD","Third Party Payments","05G","Other establishments","7430","LBR Pre 16 Top Up","3693986","202302",12/05/2022 00:00:00,33932.99,"67981","Schools - Local Authority","REDACTED DATA","LOXFORD SCHOOL TRUST LTD","8743560","http://opencorporates.com/companies/gb/8743560","246546447"
"London Borough of Redbridge","http://opendatacommunities.org/doc/london-borough-council/redbridge","3BLEACENTFND","LEA Centrally Held School Funds","3CNONSCH","Non Schools","REV","Revenue","R2010","Spec Transport LEA","03-TRANSPORT","Transport","03A","Direct - transport costs","5207","School Support - Contractors (Children Services)","60490129","202302",11/05/2022 00:00:00,15522.5,"31230","Employment and Recruitment Agencies","REDACTED DATA","ADAM HTT LIMITED T/A ADAM","7718565","http://opencorporates.com/companies/gb/7718565","198573349"
"London Borough of Redbridge","http://opendatacommunities.org/doc/london-borough-council/redbridge","3BLEACENTFND","LEA Centrally Held School Funds","3CNONSCH","Non Schools","REV","Revenue","R2011","Prim School Transport LEA","03-TRANSPORT","Transport","03A","Direct - transport costs","5207","School Support - Contractors (Children Services)","60490129","202302",11/05/2022 00:00:00,6893,"31230","Employment and Recruitment Agencies","REDACTED DATA","ADAM HTT LIMITED T/A ADAM","7718565","http://opencorporates.com/companies/gb/7718565","198573349"
"London Borough of Redbridge","http://opendatacommunities.org/doc/london-borough-council/redbridge","3BLEACENTFND","LEA Centrally Held School Funds","3CNONSCH","Non Schools","REV","Revenue","R2012","Sec School Transport LEA","03-TRANSPORT","Transport","03A","Direct - transport costs","5207","School Support - Contractors (Children Services)","60490129","202302",11/05/2022 00:00:00,1951.6,"31230","Employment and Recruitment Agencies","REDACTED DATA","ADAM HTT LIMITED T/A ADAM","7718565","http://opencorporates.com/companies/gb/7718565","198573349"
"London Borough of Redbridge","http://opendatacommunities.org/doc/london-borough-council/redbridge","3BLEACENTFND","LEA Centrally Held School Funds","3CNONSCH","Non Schools","REV","Revenue","R2215","SEN Student Transport","03-TRANSPORT","Transport","03A","Direct - transport costs","5207","School Support - Contractors (Children Services)","60490129","202302",11/05/2022 00:00:00,3734,"31230","Employment and Recruitment Agencies","REDACTED DATA","ADAM HTT LIMITED T/A ADAM","7718565","http://opencorporates.com/companies/gb/7718565","198573349"
"London Borough of Redbridge","http://opendatacommunities.org/doc/london-borough-council/redbridge","3BNONSCHFUND","Non-School Funding","6CCHILLOOKED","Children Looked After","REV","Revenue","R2238","Looked After Children Placements LA","05-THIRD","Third Party Payments","05H","Private contractors","6907","Private Homes","60487924","202301",21/04/2022 00:00:00,27860,"64710","Residential Care Homes","REDACTED DATA","SMITH & MASSEN T/AS THE ORCHARDS","8912090","http://opencorporates.com/companies/gb/8912090","181322236"
"London Borough of Redbridge","http://opendatacommunities.org/doc/london-borough-council/redbridge","6BADULTSOCIA","Adult Social Care","6CLONGT65","Long-Term Support 65+ Years","REV","Revenue","R4446","Learning Disabilities - Wanstead and Woodford","05-THIRD","Third Party Payments","05F","Voluntary associations","6802","Residential Homes","91318072","202302",10/05/2022 00:00:00,33221.88,"64710","Residential Care Homes","REDACTED DATA","HEATHCOTES SOUTHERN LTD","10142627","http://opencorporates.com/companies/gb/10142627",""
"London Borough of Redbridge","http://opendatacommunities.org/doc/london-borough-council/redbridge","9BNONBVO","Outside the BVACOP Objective Structure","9CNONBVO","Outside the BVACOP Objective Structure","CAP","Capital","C1033","Modernising IT Applications","99-NONBV","Capital, Balance Sheet and Control","50A","Capital - Employee Costs","9006","Employee Costs - Other","60488384","202302",19/04/2022 00:00:00,27573,"31230","Employment and Recruitment Agencies","REDACTED DATA","ADAM HTT LIMITED T/A ADAM","7718565","http://opencorporates.com/companies/gb/7718565","198573349"
"London Borough of Redbridge","http://opendatacommunities.org/doc/london-borough-council/redbridge","3BLEACENTFND","LEA Centrally Held School Funds","3CNONSCH","Non Schools","REV","Revenue","R2234","Maintained Post 16 colleges","05-THIRD","Third Party Payments","05G","Other establishments","7433","OOB Post 16 Top Up","60489610","202302",01/04/2022 00:00:00,33022.23,"29380","Educational Training Providers","REDACTED DATA","BIG CREATIVE TRAINING LTD","3942925","http://opencorporates.com/companies/gb/3942925","749895160"
"London Borough of Redbridge","http://opendatacommunities.org/doc/london-borough-council/redbridge","9BNONBVO","Outside the BVACOP Objective Structure","9CNONBVO","Outside the BVACOP Objective Structure","CAP","Capital","C1033","Modernising IT Applications","99-NONBV","Capital, Balance Sheet and Control","50A","Capital - Employee Costs","9006","Employee Costs - Other","60488634","202302",12/04/2022 00:00:00,27063,"31230","Employment and Recruitment Agencies","REDACTED DATA","ADAM HTT LIMITED T/A ADAM","7718565","http://opencorporates.com/companies/gb/7718565","198573349"
"London Borough of Redbridge","http://opendatacommunities.org/doc/london-borough-council/redbridge","6BADULTSOCIA","Adult Social Care","6CLONGT1864","Long-Term Support 18 - 64 Years","REV","Revenue","R4441","Older People - Seven Kings","05-THIRD","Third Party Payments","05H","Private contractors","6909","Nursing Homes","91318065","202302",18/05/2022 00:00:00,32400,"64710","Residential Care Homes","REDACTED DATA","SANCTUARY CARE LTD","4231521","http://opencorporates.com/companies/gb/4231521","732012487"
"London Borough of Redbridge","http://opendatacommunities.org/doc/london-borough-council/redbridge","3BINDSCHFUND","Individual School Funds","3CNONSCH","Non Schools","REV","Revenue","R2001","Secondary Schools SEN Top Up Fees","05-THIRD","Third Party Payments","05G","Other establishments","7430","LBR Pre 16 Top Up","3693983","202302",12/05/2022 00:00:00,32352.91,"67981","Schools - Local Authority","REDACTED DATA","THE FOREST ACADEMY","7835788","http://opencorporates.com/companies/gb/7835788",""
"London Borough of Redbridge","http://opendatacommunities.org/doc/london-borough-council/redbridge","3BLEACENTFND","LEA Centrally Held School Funds","3CNONSCH","Non Schools","REV","Revenue","R2010","Spec Transport LEA","03-TRANSPORT","Transport","03A","Direct - transport costs","5207","School Support - Contractors (Children Services)","60489544","202302",27/04/2022 00:00:00,15194.75,"31230","Employment and Recruitment Agencies","REDACTED DATA","ADAM HTT LIMITED T/A ADAM","7718565","http://opencorporates.com/companies/gb/7718565","198573349"
"London Borough of Redbridge","http://opendatacommunities.org/doc/london-borough-council/redbridge","3BLEACENTFND","LEA Centrally Held School Funds","3CNONSCH","Non Schools","REV","Revenue","R2011","Prim School Transport LEA","03-TRANSPORT","Transport","03A","Direct - transport costs","5207","School Support - Contractors (Children Services)","60489544","202302",27/04/2022 00:00:00,5413.5,"31230","Employment and Recruitment Agencies","REDACTED DATA","ADAM HTT LIMITED T/A ADAM","7718565","http://opencorporates.com/companies/gb/7718565","198573349"
"London Borough of Redbridge","http://opendatacommunities.org/doc/london-borough-council/redbridge","3BLEACENTFND","LEA Centrally Held School Funds","3CNONSCH","Non Schools","REV","Revenue","R2012","Sec School Transport LEA","03-TRANSPORT","Transport","03A","Direct - transport costs","5207","School Support - Contractors (Children Services)","60489544","202302",27/04/2022 00:00:00,2241.5,"31230","Employment and Recruitment Agencies","REDACTED DATA","ADAM HTT LIMITED T/A ADAM","7718565","http://opencorporates.com/companies/gb/7718565","198573349"
"London Borough of Redbridge","http://opendatacommunities.org/doc/london-borough-council/redbridge","3BLEACENTFND","LEA Centrally Held School Funds","3CNONSCH","Non Schools","REV","Revenue","R2215","SEN Student Transport","03-TRANSPORT","Transport","03A","Direct - transport costs","5207","School Support - Contractors (Children Services)","60489544","202302",27/04/2022 00:00:00,3545,"31230","Employment and Recruitment Agencies","REDACTED DATA","ADAM HTT LIMITED T/A ADAM","7718565","http://opencorporates.com/companies/gb/7718565","198573349"
"London Borough of Redbridge","http://opendatacommunities.org/doc/london-borough-council/redbridge","9BNONBVO","Outside the BVACOP Objective Structure","9CNONBVO","Outside the BVACOP Objective Structure","REV","Revenue","R5131","Repairs and Maintenance - MFS","99-NONBV","Capital, Balance Sheet and Control","99B","Accounting & Control","7453","Insurance Claims - General","60489182","202302",04/05/2022 00:00:00,26203,"11400","Building Services","REDACTED DATA","ATLANTIC BUILDERS UK LTD","5559317","http://opencorporates.com/companies/gb/5559317","108686688"
"London Borough of Redbridge","http://opendatacommunities.org/doc/london-borough-council/redbridge","9BNONBVO","Outside the BVACOP Objective Structure","9CNONBVO","Outside the BVACOP Objective Structure","CAP","Capital","C1033","Modernising IT Applications","99-NONBV","Capital, Balance Sheet and Control","50A","Capital - Employee Costs","9006","Employee Costs - Other","60488307","202302",05/04/2022 00:00:00,26133.75,"31230","Employment and Recruitment Agencies","REDACTED DATA","ADAM HTT LIMITED T/A ADAM","7718565","http://opencorporates.com/companies/gb/7718565","198573349"
"London Borough of Redbridge","http://opendatacommunities.org/doc/london-borough-council/redbridge","9BNONBVO","Outside the BVACOP Objective Structure","9CNONBVO","Outside the BVACOP Objective Structure","CAP","Capital","C2002","Disabled Facilities Grants (DFG)","99-NONBV","Capital, Balance Sheet and Control","50H","Capital - Deferred Charges","9251","Housing Grants - Mandatory","70123842","202302",14/03/2022 00:00:00,31327.47,"11040","Builders","REDACTED DATA","R.H. WHITE LTD (GRANT)","1997868/5226088686","http://opencorporates.com/companies/gb/1997868/5226088686","697193186"
"London Borough of Redbridge","http://opendatacommunities.org/doc/london-borough-council/redbridge","9BNONBVO","Outside the BVACOP Objective Structure","9CNONBVO","Outside the BVACOP Objective Structure","REV","Revenue","R0030","Levies","05-THIRD","Third Party Payments","05B","Joint authorities","6602","London Pension Fund Authority","60488675","202302",01/05/2022 00:00:00,30502.7,"48583","Local Government","REDACTED DATA","GREATER LONDON AUTHORITY","",,""
"London Borough of Redbridge","http://opendatacommunities.org/doc/london-borough-council/redbridge","6BADULTSOCIA","Adult Social Care","6CLONGT1864","Long-Term Support 18 - 64 Years","REV","Revenue","R4437","Learning Disabilities - Cranbrook & Loxford","06-TRANSFER","Transfer Payments","06B","Social Services Clients","7066","Supported Living","91318131","202302",10/05/2022 00:00:00,30000,"47846","Letting Agents","REDACTED DATA","GOLDEN CARE ESTATES","4756375","http://opencorporates.com/companies/gb/4756375","911917137"
"London Borough of Redbridge","http://opendatacommunities.org/doc/london-borough-council/redbridge","9BNONBVO","Outside the BVACOP Objective Structure","9CNONBVO","Outside the BVACOP Objective Structure","REV","Revenue","R0095","Insurance Contribution","04-SUPPLIES","Supplies And Services","04K","Miscellaneous expenses","6200","Insurance Premiums - General","70123934","202302",07/12/2021 00:00:00,29913.24,"45415","Insurance - Other","REDACTED DATA","ZURICH INSURANCE COMPANY","BR105","http://opencorporates.com/companies/gb/BR105","107831677"
"London Borough of Redbridge","http://opendatacommunities.org/doc/london-borough-council/redbridge","1BOTHEROPI&E","Other Operating Income & Expenditure","1CTRADSURDEF","Trading Account Surpluses & Deficits","REV","Revenue","R9352","Legal Supplies & Services","04-SUPPLIES","Supplies And Services","04D","Printing, stationery and general office expenses","5700","Books","60489955","202302",01/05/2022 00:00:00,29820.48,"45170","Information Services","REDACTED DATA","THOMSON REUTER ( PROFESSIONAL)LTD T/A SWEET & MAXW","1679046","http://opencorporates.com/companies/gb/1679046","900548743"
"London Borough of Redbridge","http://opendatacommunities.org/doc/london-borough-council/redbridge","9BNONBVO","Outside the BVACOP Objective Structure","9CNONBVO","Outside the BVACOP Objective Structure","CAP","Capital","C1033","Modernising IT Applications","99-NONBV","Capital, Balance Sheet and Control","50A","Capital - Employee Costs","9006","Employee Costs - Other","60490111","202302",17/05/2022 00:00:00,24815.7,"31230","Employment and Recruitment Agencies","REDACTED DATA","ADAM HTT LIMITED T/A ADAM","7718565","http://opencorporates.com/companies/gb/7718565","198573349"
"London Borough of Redbridge","http://opendatacommunities.org/doc/london-borough-council/redbridge","6BADULTSOCIA","Adult Social Care","6CLONGT65","Long-Term Support 65+ Years","REV","Revenue","R4444","Older People - Fairlop","05-THIRD","Third Party Payments","05A","Independent units within the council","6502","Agency Homecare","60489508","202302",10/01/2022 00:00:00,29618.4,"31230","Employment and Recruitment Agencies","REDACTED DATA","HOPE SUPER JOBS LTD","5081894","http://opencorporates.com/companies/gb/5081894","872555205"
"London Borough of Redbridge","http://opendatacommunities.org/doc/london-borough-council/redbridge","2BPLAN&DEVEL","Planning & Development Services","2CCOMMDEVT","Community Development","REV","Revenue","R9814","Health Watch","04-SUPPLIES","Supplies And Services","04K","Miscellaneous expenses","6216","Contract","60488657","202302",01/04/2022 00:00:00,29100,"20480","Community Networks","REDACTED DATA","HEALTHWATCH REDBRIDGE","8389279","http://opencorporates.com/companies/gb/8389279",""
"London Borough of Redbridge","http://opendatacommunities.org/doc/london-borough-council/redbridge","6BSOCIALSERV","Social Services","6CCHILLOOKED","Children Looked After","REV","Revenue","R2178","Early Intervention & Family Support Service","05-THIRD","Third Party Payments","05A","Independent units within the council","6513","Agency & Contracted Services","60489746","202302",18/01/2022 00:00:00,28125,"53120","Nursery Schools","REDACTED DATA","LIFELINE COMMUNITY PROJECTS (LITTLE LEARNERS ILFORD)","CHARITY251549","http://opencorporates.com/companies/gb/CHARITY251549",""
"London Borough of Redbridge","http://opendatacommunities.org/doc/london-borough-council/redbridge","3BLEACENTFND","LEA Centrally Held School Funds","3CSUPPORTSEN","Supporting Special Education Needs","REV","Revenue","R3022","Home Tuition","05-THIRD","Third Party Payments","05A","Independent units within the council","6513","Agency & Contracted Services","60489218","202302",01/05/2022 00:00:00,23431.63,"31230","Employment and Recruitment Agencies","REDACTED DATA","REMEDY RECRUITMENT GROUP LTD","4651426","http://opencorporates.com/companies/gb/4651426","820791924"
"London Borough of Redbridge","http://opendatacommunities.org/doc/london-borough-council/redbridge","6BPUBHEALTH","Public Health","6CSEXHEALTH","Sexual Health","REV","Revenue","R4804","STI Testing & Treatment","05-THIRD","Third Party Payments","05D","Health authorities","6703","Hospital Trusts","60487948","202302",11/03/2022 00:00:00,27808,"43860","Hospitals","REDACTED DATA","BARTS HEALTH LONDON NHS TRUST","",,""
"London Borough of Redbridge","http://opendatacommunities.org/doc/london-borough-council/redbridge","6BPUBHEALTH","Public Health","6CSEXHEALTH","Sexual Health","REV","Revenue","R4804","STI Testing & Treatment","05-THIRD","Third Party Payments","05D","Health authorities","6703","Hospital Trusts","60487949","202302",11/03/2022 00:00:00,27808,"43860","Hospitals","REDACTED DATA","BARTS HEALTH LONDON NHS TRUST","",,""
"London Borough of Redbridge","http://opendatacommunities.org/doc/london-borough-council/redbridge","6BPUBHEALTH","Public Health","6CSEXHEALTH","Sexual Health","REV","Revenue","R4804","STI Testing & Treatment","05-THIRD","Third Party Payments","05D","Health authorities","6703","Hospital Trusts","60487950","202302",11/03/2022 00:00:00,27808,"43860","Hospitals","REDACTED DATA","BARTS HEALTH LONDON NHS TRUST","",,""
"London Borough of Redbridge","http://opendatacommunities.org/doc/london-borough-council/redbridge","9BNONBVO","Outside the BVACOP Objective Structure","9CNONBVO","Outside the BVACOP Objective Structure","CAP","Capital","C2105","Communal","99-NONBV","Capital, Balance Sheet and Control","50E","Capital - Contract Payments","9150","Main Contract","60489515","202302",30/04/2022 00:00:00,22800,"47960","Lifts - Servicing and Repairs","REDACTED DATA","PIP LIFT SERVICE LTD","2746163","http://opencorporates.com/companies/gb/2746163","907866781"
"London Borough of Redbridge","http://opendatacommunities.org/doc/london-borough-council/redbridge","3BINDSCHFUND","Individual School Funds","3CNONSCH","Non Schools","REV","Revenue","R2001","Secondary Schools SEN Top Up Fees","05-THIRD","Third Party Payments","05G","Other establishments","7430","LBR Pre 16 Top Up","3693982","202302",12/05/2022 00:00:00,26846.23,"90038","Expenses","REDACTED DATA","Beacon Business Innovation Hub (BBIH)","7835788","http://opencorporates.com/companies/gb/7835788",""
"London Borough of Redbridge","http://opendatacommunities.org/doc/london-borough-council/redbridge","3BINDSCHFUND","Individual School Funds","3CNONSCH","Non Schools","REV","Revenue","R2001","Secondary Schools SEN Top Up Fees","05-THIRD","Third Party Payments","05G","Other establishments","7430","LBR Pre 16 Top Up","3696367","202302",26/05/2022 00:00:00,26846.23,"90038","Expenses","REDACTED DATA","Beacon Business Innovation Hub (BBIH)","7835788","http://opencorporates.com/companies/gb/7835788",""
"London Borough of Redbridge","http://opendatacommunities.org/doc/london-borough-council/redbridge","9BNONBVO","Outside the BVACOP Objective Structure","9CNONBVO","Outside the BVACOP Objective Structure","CAP","Capital","C1033","Modernising IT Applications","99-NONBV","Capital, Balance Sheet and Control","50A","Capital - Employee Costs","9006","Employee Costs - Other","60490109","202302",03/05/2022 00:00:00,22058.4,"31230","Employment and Recruitment Agencies","REDACTED DATA","ADAM HTT LIMITED T/A ADAM","7718565","http://opencorporates.com/companies/gb/7718565","198573349"
"London Borough of Redbridge","http://opendatacommunities.org/doc/london-borough-council/redbridge","3BLEACENTFND","LEA Centrally Held School Funds","3CNONSCH","Non Schools","REV","Revenue","R2234","Maintained Post 16 colleges","05-THIRD","Third Party Payments","05G","Other establishments","7433","OOB Post 16 Top Up","60488401","202302",26/04/2022 00:00:00,26333.32,"29380","Educational Training Providers","REDACTED DATA","The Really NEET Project Ltd","7583111","http://opencorporates.com/companies/gb/7583111",""
"London Borough of Redbridge","http://opendatacommunities.org/doc/london-borough-council/redbridge","6BSOCIALSERV","Social Services","6COTHC&FSERV","Other Children's & Families' Services","REV","Revenue","R2124","CSWLAC - LAC Team 3","01-EMPLOYEES","Employees","01A","Direct employee expenses","4","Agency Staff - Pay","60489429","202302",11/03/2022 00:00:00,26186.5,"42200","Health Authorities","REDACTED DATA","NORTH EAST LONDON NHS FOUNDATION TRUST","",,"654404447"
"London Borough of Redbridge","http://opendatacommunities.org/doc/london-borough-council/redbridge","6BADULTSOCIA","Adult Social Care","6CLONGT1864","Long-Term Support 18 - 64 Years","REV","Revenue","R4441","Older People - Seven Kings","05-THIRD","Third Party Payments","05H","Private contractors","6925","D2A","91314167","202302",03/05/2022 00:00:00,17900.29,"64710","Residential Care Homes","REDACTED DATA","ABBEY CARE SERVICES LTD","1009941","http://opencorporates.com/companies/gb/1009941",""
"London Borough of Redbridge","http://opendatacommunities.org/doc/london-borough-council/redbridge","6BADULTSOCIA","Adult Social Care","6CLONGT1864","Long-Term Support 18 - 64 Years","REV","Revenue","R4441","Older People - Seven Kings","05-THIRD","Third Party Payments","05H","Private contractors","6925","D2A","91314167","202302",03/05/2022 00:00:00,6503.14,"64710","Residential Care Homes","REDACTED DATA","ABBEY CARE SERVICES LTD","1009941","http://opencorporates.com/companies/gb/1009941",""
"London Borough of Redbridge","http://opendatacommunities.org/doc/london-borough-council/redbridge","6BADULTSOCIA","Adult Social Care","6CLONGT1864","Long-Term Support 18 - 64 Years","REV","Revenue","R4441","Older People - Seven Kings","05-THIRD","Third Party Payments","05H","Private contractors","6925","D2A","91314167","202302",03/05/2022 00:00:00,1671.43,"64710","Residential Care Homes","REDACTED DATA","ABBEY CARE SERVICES LTD","1009941","http://opencorporates.com/companies/gb/1009941",""
"London Borough of Redbridge","http://opendatacommunities.org/doc/london-borough-council/redbridge","4BPUBLICTRAN","Public Transport","4CPARKING","Parking Services","REV","Revenue","R7037","Attendants Parking Enforcement","05-THIRD","Third Party Payments","05H","Private contractors","6911","Parking and Traffic Enforcement Contract","60489188","202302",03/05/2022 00:00:00,25972.55,"48583","Local Government","REDACTED DATA","CITY OF LONDON(LONDON COUNCILS)","",,"766069205"
"London Borough of Redbridge","http://opendatacommunities.org/doc/london-borough-council/redbridge","6BADULTSOCIA","Adult Social Care","6CLONGT1864","Long-Term Support 18 - 64 Years","REV","Revenue","R4437","Learning Disabilities - Cranbrook & Loxford","06-TRANSFER","Transfer Payments","06B","Social Services Clients","7066","Supported Living","91314099","202302",12/04/2022 00:00:00,24997.2,"64710","Residential Care Homes","REDACTED DATA","PRECIOUS HOMES LIMITED","2981404","http://opencorporates.com/companies/gb/2981404",""
"London Borough of Redbridge","http://opendatacommunities.org/doc/london-borough-council/redbridge","6BADULTSOCIA","Adult Social Care","6CADMENHLTH","Adults Under 65 with Mental Health Needs","REV","Revenue","R4219","MH - Supported Living","06-TRANSFER","Transfer Payments","06B","Social Services Clients","7066","Supported Living","91314083","202302",03/05/2022 00:00:00,-6572.46,"64710","Residential Care Homes","REDACTED DATA","ADJUVO CARE & SUPPORT LTD","10734596","http://opencorporates.com/companies/gb/10734596",""
"London Borough of Redbridge","http://opendatacommunities.org/doc/london-borough-council/redbridge","6BADULTSOCIA","Adult Social Care","6CADMENHLTH","Adults Under 65 with Mental Health Needs","REV","Revenue","R4219","MH - Supported Living","06-TRANSFER","Transfer Payments","06B","Social Services Clients","7066","Supported Living","91314083","202302",03/05/2022 00:00:00,31547.79,"64710","Residential Care Homes","REDACTED DATA","ADJUVO CARE & SUPPORT LTD","10734596","http://opencorporates.com/companies/gb/10734596",""
"London Borough of Redbridge","http://opendatacommunities.org/doc/london-borough-council/redbridge","3BNONSCHFUND","Non-School Funding","6CCHILLOOKED","Children Looked After","REV","Revenue","R2238","Looked After Children Placements LA","05-THIRD","Third Party Payments","05H","Private contractors","6907","Private Homes","60487987","202301",21/04/2022 00:00:00,24642.86,"17780","Children's Homes","REDACTED DATA","SV Care Services Limited","12823530","http://opencorporates.com/companies/gb/12823530",""
"London Borough of Redbridge","http://opendatacommunities.org/doc/london-borough-council/redbridge","3BNONSCHFUND","Non-School Funding","6CCHILLOOKED","Children Looked After","REV","Revenue","R2238","Looked After Children Placements LA","05-THIRD","Third Party Payments","05H","Private contractors","6907","Private Homes","60487988","202301",21/04/2022 00:00:00,24642.86,"17780","Children's Homes","REDACTED DATA","SV Care Services Limited","12823530","http://opencorporates.com/companies/gb/12823530",""
"London Borough of Redbridge","http://opendatacommunities.org/doc/london-borough-council/redbridge","3BNONSCHFUND","Non-School Funding","6CCHILLOOKED","Children Looked After","REV","Revenue","R2238","Looked After Children Placements LA","05-THIRD","Third Party Payments","05H","Private contractors","6907","Private Homes","60489669","202302",11/05/2022 00:00:00,24578.57,"64710","Residential Care Homes","REDACTED DATA","BRYN MELYN CARE LTD","6442752","http://opencorporates.com/companies/gb/6442752",""
"London Borough of Redbridge","http://opendatacommunities.org/doc/london-borough-council/redbridge","2BPLANPOL","Planning Policy","","","REV","Revenue","R6537","Director of Regeneration and Culture","01-EMPLOYEES","Employees","01A","Direct employee expenses","4","Agency Staff - Pay","60489035","202302",04/05/2022 00:00:00,20425,"1961","Advertising - Agencies","REDACTED DATA","PENNA PLC (PENNA COMMUNICATIONS)","1918150","http://opencorporates.com/companies/gb/1918150","605849719"
"London Borough of Redbridge","http://opendatacommunities.org/doc/london-borough-council/redbridge","9BNONBVO","Outside the BVACOP Objective Structure","9CNONBVO","Outside the BVACOP Objective Structure","REV","Revenue","R0095","Insurance Contribution","04-SUPPLIES","Supplies And Services","04K","Miscellaneous expenses","6200","Insurance Premiums - General","70123937","202302",07/12/2021 00:00:00,24474.46,"45415","Insurance - Other","REDACTED DATA","ZURICH INSURANCE COMPANY","BR105","http://opencorporates.com/companies/gb/BR105","107831677"
"London Borough of Redbridge","http://opendatacommunities.org/doc/london-borough-council/redbridge","3BINDSCHFUND","Individual School Funds","3CNONSCH","Non Schools","REV","Revenue","R2001","Secondary Schools SEN Top Up Fees","05-THIRD","Third Party Payments","05G","Other establishments","7430","LBR Pre 16 Top Up","3696370","202302",26/05/2022 00:00:00,24259.05,"67346","Schools and Colleges - Grant Maintained and Selfgoverning","REDACTED DATA","ARK SCHOOLS T/A ISAAC NEWTON ACADEMY","",,"859151405"
"London Borough of Redbridge","http://opendatacommunities.org/doc/london-borough-council/redbridge","9BNONBVO","Outside the BVACOP Objective Structure","9CNONBVO","Outside the BVACOP Objective Structure","CAP","Capital","C2002","Disabled Facilities Grants (DFG)","99-NONBV","Capital, Balance Sheet and Control","50H","Capital - Deferred Charges","9251","Housing Grants - Mandatory","70123721","202301",25/02/2022 00:00:00,24235.5,"11040","Builders","REDACTED DATA","Avenue Property Construction Ltd (Grant Work)","",,"898930255"
"London Borough of Redbridge","http://opendatacommunities.org/doc/london-borough-council/redbridge","9BNONBVO","Outside the BVACOP Objective Structure","9CNONBVO","Outside the BVACOP Objective Structure","CAP","Capital","C4344","School Conditioning","99-NONBV","Capital, Balance Sheet and Control","50E","Capital - Contract Payments","9150","Main Contract","70123912","202302",06/05/2022 00:00:00,20026.43,"21555","Construction Contractors - General","REDACTED DATA","Longley Group Ltd","7633349","http://opencorporates.com/companies/gb/7633349","165771972"
"London Borough of Redbridge","http://opendatacommunities.org/doc/london-borough-council/redbridge","1BOTHEROPI&E","Other Operating Income & Expenditure","1CTRADSURDEF","Trading Account Surpluses & Deficits","REV","Revenue","R9565","Estates Team Staffing","04-SUPPLIES","Supplies And Services","04H","Grants and subscriptions","5954","Professional Fees","70124088","202302",29/03/2022 00:00:00,20000,"74700","Surveyors and Valuers","REDACTED DATA","KNIGHT FRANK LLP","OC305934","http://opencorporates.com/companies/gb/OC305934","238515653"
"London Borough of Redbridge","http://opendatacommunities.org/doc/london-borough-council/redbridge","5BGFHOUSING","General Fund Housing","5CHOMELESS","Homelessness","REV","Revenue","R5630","HAC Temporary Accomodation","05-THIRD","Third Party Payments","05H","Private contractors","6900","Nightly Let Plus Charges","3693388","202302",01/05/2022 00:00:00,855,"31230","Employment and Recruitment Agencies","REDACTED DATA","ADAM HTT LIMITED T/A ADAM","7718565","http://opencorporates.com/companies/gb/7718565","198573349"
"London Borough of Redbridge","http://opendatacommunities.org/doc/london-borough-council/redbridge","5BGFHOUSING","General Fund Housing","5CHOMELESS","Homelessness","REV","Revenue","R5630","HAC Temporary Accomodation","05-THIRD","Third Party Payments","05H","Private contractors","6900","Nightly Let Plus Charges","3693388","202302",01/05/2022 00:00:00,0,"31230","Employment and Recruitment Agencies","REDACTED DATA","ADAM HTT LIMITED T/A ADAM","7718565","http://opencorporates.com/companies/gb/7718565","198573349"
"London Borough of Redbridge","http://opendatacommunities.org/doc/london-borough-council/redbridge","5BGFHOUSING","General Fund Housing","5CHOMELESS","Homelessness","REV","Revenue","R5630","HAC Temporary Accomodation","05-THIRD","Third Party Payments","05H","Private contractors","6900","Nightly Let Plus Charges","3693388","202302",01/05/2022 00:00:00,855,"31230","Employment and Recruitment Agencies","REDACTED DATA","ADAM HTT LIMITED T/A ADAM","7718565","http://opencorporates.com/companies/gb/7718565","198573349"
"London Borough of Redbridge","http://opendatacommunities.org/doc/london-borough-council/redbridge","5BGFHOUSING","General Fund Housing","5CHOMELESS","Homelessness","REV","Revenue","R5630","HAC Temporary Accomodation","05-THIRD","Third Party Payments","05H","Private contractors","6900","Nightly Let Plus Charges","3693388","202302",01/05/2022 00:00:00,0,"31230","Employment and Recruitment Agencies","REDACTED DATA","ADAM HTT LIMITED T/A ADAM","7718565","http://opencorporates.com/companies/gb/7718565","198573349"
"London Borough of Redbridge","http://opendatacommunities.org/doc/london-borough-council/redbridge","5BGFHOUSING","General Fund Housing","5CHOMELESS","Homelessness","REV","Revenue","R5630","HAC Temporary Accomodation","05-THIRD","Third Party Payments","05H","Private contractors","6900","Nightly Let Plus Charges","3693388","202302",01/05/2022 00:00:00,840,"31230","Employment and Recruitment Agencies","REDACTED DATA","ADAM HTT LIMITED T/A ADAM","7718565","http://opencorporates.com/companies/gb/7718565","198573349"
"London Borough of Redbridge","http://opendatacommunities.org/doc/london-borough-council/redbridge","5BGFHOUSING","General Fund Housing","5CHOMELESS","Homelessness","REV","Revenue","R5630","HAC Temporary Accomodation","05-THIRD","Third Party Payments","05H","Private contractors","6900","Nightly Let Plus Charges","3693388","202302",01/05/2022 00:00:00,0,"31230","Employment and Recruitment Agencies","REDACTED DATA","ADAM HTT LIMITED T/A ADAM","7718565","http://opencorporates.com/companies/gb/7718565","198573349"
"London Borough of Redbridge","http://opendatacommunities.org/doc/london-borough-council/redbridge","5BGFHOUSING","General Fund Housing","5CHOMELESS","Homelessness","REV","Revenue","R5630","HAC Temporary Accomodation","05-THIRD","Third Party Payments","05H","Private contractors","6900","Nightly Let Plus Charges","3693388","202302",01/05/2022 00:00:00,1417.5,"31230","Employment and Recruitment Agencies","REDACTED DATA","ADAM HTT LIMITED T/A ADAM","7718565","http://opencorporates.com/companies/gb/7718565","198573349"
"London Borough of Redbridge","http://opendatacommunities.org/doc/london-borough-council/redbridge","5BGFHOUSING","General Fund Housing","5CHOMELESS","Homelessness","REV","Revenue","R5630","HAC Temporary Accomodation","05-THIRD","Third Party Payments","05H","Private contractors","6900","Nightly Let Plus Charges","3693388","202302",01/05/2022 00:00:00,0,"31230","Employment and Recruitment Agencies","REDACTED DATA","ADAM HTT LIMITED T/A ADAM","7718565","http://opencorporates.com/companies/gb/7718565","198573349"
"London Borough of Redbridge","http://opendatacommunities.org/doc/london-borough-council/redbridge","5BGFHOUSING","General Fund Housing","5CHOMELESS","Homelessness","REV","Revenue","R5630","HAC Temporary Accomodation","05-THIRD","Third Party Payments","05H","Private contractors","6900","Nightly Let Plus Charges","3693388","202302",01/05/2022 00:00:00,855,"31230","Employment and Recruitment Agencies","REDACTED DATA","ADAM HTT LIMITED T/A ADAM","7718565","http://opencorporates.com/companies/gb/7718565","198573349"
"London Borough of Redbridge","http://opendatacommunities.org/doc/london-borough-council/redbridge","5BGFHOUSING","General Fund Housing","5CHOMELESS","Homelessness","REV","Revenue","R5630","HAC Temporary Accomodation","05-THIRD","Third Party Payments","05H","Private contractors","6900","Nightly Let Plus Charges","3693388","202302",01/05/2022 00:00:00,0,"31230","Employment and Recruitment Agencies","REDACTED DATA","ADAM HTT LIMITED T/A ADAM","7718565","http://opencorporates.com/companies/gb/7718565","198573349"
"London Borough of Redbridge","http://opendatacommunities.org/doc/london-borough-council/redbridge","5BGFHOUSING","General Fund Housing","5CHOMELESS","Homelessness","REV","Revenue","R5630","HAC Temporary Accomodation","05-THIRD","Third Party Payments","05H","Private contractors","6900","Nightly Let Plus Charges","3693388","202302",01/05/2022 00:00:00,855,"31230","Employment and Recruitment Agencies","REDACTED DATA","ADAM HTT LIMITED T/A ADAM","7718565","http://opencorporates.com/companies/gb/7718565","198573349"
"London Borough of Redbridge","http://opendatacommunities.org/doc/london-borough-council/redbridge","3BNONSCHFUND","Non-School Funding","3CNONSCH","Non Schools","REV","Revenue","R3361","Troubled Families","05-THIRD","Third Party Payments","05A","Independent units within the council","6513","Agency & Contracted Services","60489469","202302",01/05/2022 00:00:00,20000,"29360","Educational Services","REDACTED DATA","EVOLVE & ADAPT","",,""
"London Borough of Redbridge","http://opendatacommunities.org/doc/london-borough-council/redbridge","3BNONSCHFUND","Non-School Funding","3CNONSCH","Non Schools","REV","Revenue","R3962","Early Years - 3 and 4 Year Olds","05-THIRD","Third Party Payments","05A","Independent units within the council","6517","Non-Maintained Schools","3695876","202302",23/05/2022 00:00:00,23788.77,"59760","Playgroups, Nurseries and Creches","REDACTED DATA","TAMBA DAY NURSERY LTD CHADWELL HEATH","",,""
"London Borough of Redbridge","http://opendatacommunities.org/doc/london-borough-council/redbridge","9BNONBVO","Outside the BVACOP Objective Structure","9CNONBVO","Outside the BVACOP Objective Structure","CAP","Capital","C4344","School Conditioning","99-NONBV","Capital, Balance Sheet and Control","50E","Capital - Contract Payments","9150","Main Contract","70123838","202302",25/03/2022 00:00:00,1257.27,"21557","Construction Management","REDACTED DATA","PLAYLE & PARTNERS LLP","OC317809","http://opencorporates.com/companies/gb/OC317809","205793264"
"London Borough of Redbridge","http://opendatacommunities.org/doc/london-borough-council/redbridge","9BNONBVO","Outside the BVACOP Objective Structure","9CNONBVO","Outside the BVACOP Objective Structure","CAP","Capital","C4344","School Conditioning","99-NONBV","Capital, Balance Sheet and Control","50E","Capital - Contract Payments","9150","Main Contract","70123838","202302",25/03/2022 00:00:00,4771.8,"21557","Construction Management","REDACTED DATA","PLAYLE & PARTNERS LLP","OC317809","http://opencorporates.com/companies/gb/OC317809","205793264"
"London Borough of Redbridge","http://opendatacommunities.org/doc/london-borough-council/redbridge","9BNONBVO","Outside the BVACOP Objective Structure","9CNONBVO","Outside the BVACOP Objective Structure","CAP","Capital","C4344","School Conditioning","99-NONBV","Capital, Balance Sheet and Control","50E","Capital - Contract Payments","9150","Main Contract","70123838","202302",25/03/2022 00:00:00,1611.95,"21557","Construction Management","REDACTED DATA","PLAYLE & PARTNERS LLP","OC317809","http://opencorporates.com/companies/gb/OC317809","205793264"
"London Borough of Redbridge","http://opendatacommunities.org/doc/london-borough-council/redbridge","9BNONBVO","Outside the BVACOP Objective Structure","9CNONBVO","Outside the BVACOP Objective Structure","CAP","Capital","C4344","School Conditioning","99-NONBV","Capital, Balance Sheet and Control","50E","Capital - Contract Payments","9150","Main Contract","70123838","202302",25/03/2022 00:00:00,1482.36,"21557","Construction Management","REDACTED DATA","PLAYLE & PARTNERS LLP","OC317809","http://opencorporates.com/companies/gb/OC317809","205793264"
"London Borough of Redbridge","http://opendatacommunities.org/doc/london-borough-council/redbridge","9BNONBVO","Outside the BVACOP Objective Structure","9CNONBVO","Outside the BVACOP Objective Structure","CAP","Capital","C4344","School Conditioning","99-NONBV","Capital, Balance Sheet and Control","50E","Capital - Contract Payments","9150","Main Contract","70123838","202302",25/03/2022 00:00:00,10618.6,"21557","Construction Management","REDACTED DATA","PLAYLE & PARTNERS LLP","OC317809","http://opencorporates.com/companies/gb/OC317809","205793264"
"London Borough of Redbridge","http://opendatacommunities.org/doc/london-borough-council/redbridge","3BNONSCHFUND","Non-School Funding","6CCHILLOOKED","Children Looked After","REV","Revenue","R2238","Looked After Children Placements LA","05-THIRD","Third Party Payments","05H","Private contractors","6907","Private Homes","60488861","202302",01/05/2022 00:00:00,23571.42,"17780","Children's Homes","REDACTED DATA","ASPIRE 2 BE LTD","11221101","http://opencorporates.com/companies/gb/11221101",""
"London Borough of Redbridge","http://opendatacommunities.org/doc/london-borough-council/redbridge","9BNONBVO","Outside the BVACOP Objective Structure","9CNONBVO","Outside the BVACOP Objective Structure","REV","Revenue","R5032","Staircase Lighting HRA","02-PREMISES","Premises","02B","Energy costs","4000","Electricity","3695687","202302",19/05/2022 00:00:00,175.89,"39564","Gas Companies","REDACTED DATA","KENT COUNTY COUNCIL (GAS & ELECTRIC)","",,"204269191"
"London Borough of Redbridge","http://opendatacommunities.org/doc/london-borough-council/redbridge","9BNONBVO","Outside the BVACOP Objective Structure","9CNONBVO","Outside the BVACOP Objective Structure","REV","Revenue","R5032","Staircase Lighting HRA","02-PREMISES","Premises","02B","Energy costs","4000","Electricity","3695687","202302",18/05/2022 00:00:00,60.97,"39564","Gas Companies","REDACTED DATA","KENT COUNTY COUNCIL (GAS & ELECTRIC)","",,"204269191"
"London Borough of Redbridge","http://opendatacommunities.org/doc/london-borough-council/redbridge","9BNONBVO","Outside the BVACOP Objective Structure","9CNONBVO","Outside the BVACOP Objective Structure","REV","Revenue","R5032","Staircase Lighting HRA","02-PREMISES","Premises","02B","Energy costs","4000","Electricity","3695687","202302",18/05/2022 00:00:00,55.11,"39564","Gas Companies","REDACTED DATA","KENT COUNTY COUNCIL (GAS & ELECTRIC)","",,"204269191"
"London Borough of Redbridge","http://opendatacommunities.org/doc/london-borough-council/redbridge","5BGFHOUSING","General Fund Housing","5CHOMELESS","Homelessness","REV","Revenue","R5630","HAC Temporary Accomodation","05-THIRD","Third Party Payments","05H","Private contractors","6900","Nightly Let Plus Charges","3693388","202302",01/05/2022 00:00:00,1350,"31230","Employment and Recruitment Agencies","REDACTED DATA","ADAM HTT LIMITED T/A ADAM","7718565","http://opencorporates.com/companies/gb/7718565","198573349"
"London Borough of Redbridge","http://opendatacommunities.org/doc/london-borough-council/redbridge","5BGFHOUSING","General Fund Housing","5CHOMELESS","Homelessness","REV","Revenue","R5630","HAC Temporary Accomodation","05-THIRD","Third Party Payments","05H","Private contractors","6900","Nightly Let Plus Charges","3693388","202302",01/05/2022 00:00:00,0,"31230","Employment and Recruitment Agencies","REDACTED DATA","ADAM HTT LIMITED T/A ADAM","7718565","http://opencorporates.com/companies/gb/7718565","198573349"
"London Borough of Redbridge","http://opendatacommunities.org/doc/london-borough-council/redbridge","5BGFHOUSING","General Fund Housing","5CHOMELESS","Homelessness","REV","Revenue","R5630","HAC Temporary Accomodation","05-THIRD","Third Party Payments","05H","Private contractors","6900","Nightly Let Plus Charges","3693388","202302",01/05/2022 00:00:00,855,"31230","Employment and Recruitment Agencies","REDACTED DATA","ADAM HTT LIMITED T/A ADAM","7718565","http://opencorporates.com/companies/gb/7718565","198573349"
"London Borough of Redbridge","http://opendatacommunities.org/doc/london-borough-council/redbridge","5BGFHOUSING","General Fund Housing","5CHOMELESS","Homelessness","REV","Revenue","R5630","HAC Temporary Accomodation","05-THIRD","Third Party Payments","05H","Private contractors","6900","Nightly Let Plus Charges","3693388","202302",01/05/2022 00:00:00,0,"31230","Employment and Recruitment Agencies","REDACTED DATA","ADAM HTT LIMITED T/A ADAM","7718565","http://opencorporates.com/companies/gb/7718565","198573349"
"London Borough of Redbridge","http://opendatacommunities.org/doc/london-borough-council/redbridge","5BGFHOUSING","General Fund Housing","5CHOMELESS","Homelessness","REV","Revenue","R5630","HAC Temporary Accomodation","05-THIRD","Third Party Payments","05H","Private contractors","6900","Nightly Let Plus Charges","3693388","202302",01/05/2022 00:00:00,0,"31230","Employment and Recruitment Agencies","REDACTED DATA","ADAM HTT LIMITED T/A ADAM","7718565","http://opencorporates.com/companies/gb/7718565","198573349"
"London Borough of Redbridge","http://opendatacommunities.org/doc/london-borough-council/redbridge","5BGFHOUSING","General Fund Housing","5CHOMELESS","Homelessness","REV","Revenue","R5630","HAC Temporary Accomodation","05-THIRD","Third Party Payments","05H","Private contractors","6900","Nightly Let Plus Charges","3693388","202302",01/05/2022 00:00:00,855,"31230","Employment and Recruitment Agencies","REDACTED DATA","ADAM HTT LIMITED T/A ADAM","7718565","http://opencorporates.com/companies/gb/7718565","198573349"
"London Borough of Redbridge","http://opendatacommunities.org/doc/london-borough-council/redbridge","5BGFHOUSING","General Fund Housing","5CHOMELESS","Homelessness","REV","Revenue","R5630","HAC Temporary Accomodation","05-THIRD","Third Party Payments","05H","Private contractors","6900","Nightly Let Plus Charges","3693388","202302",01/05/2022 00:00:00,0,"31230","Employment and Recruitment Agencies","REDACTED DATA","ADAM HTT LIMITED T/A ADAM","7718565","http://opencorporates.com/companies/gb/7718565","198573349"
"London Borough of Redbridge","http://opendatacommunities.org/doc/london-borough-council/redbridge","5BGFHOUSING","General Fund Housing","5CHOMELESS","Homelessness","REV","Revenue","R5630","HAC Temporary Accomodation","05-THIRD","Third Party Payments","05H","Private contractors","6900","Nightly Let Plus Charges","3693388","202302",01/05/2022 00:00:00,1140,"31230","Employment and Recruitment Agencies","REDACTED DATA","ADAM HTT LIMITED T/A ADAM","7718565","http://opencorporates.com/companies/gb/7718565","198573349"
"London Borough of Redbridge","http://opendatacommunities.org/doc/london-borough-council/redbridge","5BGFHOUSING","General Fund Housing","5CHOMELESS","Homelessness","REV","Revenue","R5630","HAC Temporary Accomodation","05-THIRD","Third Party Payments","05H","Private contractors","6900","Nightly Let Plus Charges","3693388","202302",01/05/2022 00:00:00,0,"31230","Employment and Recruitment Agencies","REDACTED DATA","ADAM HTT LIMITED T/A ADAM","7718565","http://opencorporates.com/companies/gb/7718565","198573349"
"London Borough of Redbridge","http://opendatacommunities.org/doc/london-borough-council/redbridge","5BGFHOUSING","General Fund Housing","5CHOMELESS","Homelessness","REV","Revenue","R5630","HAC Temporary Accomodation","05-THIRD","Third Party Payments","05H","Private contractors","6900","Nightly Let Plus Charges","3693388","202302",01/05/2022 00:00:00,0,"31230","Employment and Recruitment Agencies","REDACTED DATA","ADAM HTT LIMITED T/A ADAM","7718565","http://opencorporates.com/companies/gb/7718565","198573349"
"London Borough of Redbridge","http://opendatacommunities.org/doc/london-borough-council/redbridge","5BGFHOUSING","General Fund Housing","5CHOMELESS","Homelessness","REV","Revenue","R5630","HAC Temporary Accomodation","05-THIRD","Third Party Payments","05H","Private contractors","6900","Nightly Let Plus Charges","3693388","202302",01/05/2022 00:00:00,0,"31230","Employment and Recruitment Agencies","REDACTED DATA","ADAM HTT LIMITED T/A ADAM","7718565","http://opencorporates.com/companies/gb/7718565","198573349"
"London Borough of Redbridge","http://opendatacommunities.org/doc/london-borough-council/redbridge","9BNONBVO","Outside the BVACOP Objective Structure","9CNONBVO","Outside the BVACOP Objective Structure","REV","Revenue","R5032","Staircase Lighting HRA","02-PREMISES","Premises","02B","Energy costs","4000","Electricity","3695687","202302",18/05/2022 00:00:00,79.45,"39564","Gas Companies","REDACTED DATA","KENT COUNTY COUNCIL (GAS & ELECTRIC)","",,"204269191"
"London Borough of Redbridge","http://opendatacommunities.org/doc/london-borough-council/redbridge","9BNONBVO","Outside the BVACOP Objective Structure","9CNONBVO","Outside the BVACOP Objective Structure","REV","Revenue","R5032","Staircase Lighting HRA","02-PREMISES","Premises","02B","Energy costs","4000","Electricity","3695687","202302",18/05/2022 00:00:00,76.71,"39564","Gas Companies","REDACTED DATA","KENT COUNTY COUNCIL (GAS & ELECTRIC)","",,"204269191"
"London Borough of Redbridge","http://opendatacommunities.org/doc/london-borough-council/redbridge","9BNONBVO","Outside the BVACOP Objective Structure","9CNONBVO","Outside the BVACOP Objective Structure","REV","Revenue","R5032","Staircase Lighting HRA","02-PREMISES","Premises","02B","Energy costs","4000","Electricity","3695687","202302",18/05/2022 00:00:00,100.67,"39564","Gas Companies","REDACTED DATA","KENT COUNTY COUNCIL (GAS & ELECTRIC)","",,"204269191"
"London Borough of Redbridge","http://opendatacommunities.org/doc/london-borough-council/redbridge","9BNONBVO","Outside the BVACOP Objective Structure","9CNONBVO","Outside the BVACOP Objective Structure","REV","Revenue","R5032","Staircase Lighting HRA","02-PREMISES","Premises","02B","Energy costs","4000","Electricity","3695687","202302",19/05/2022 00:00:00,87.75,"39564","Gas Companies","REDACTED DATA","KENT COUNTY COUNCIL (GAS & ELECTRIC)","",,"204269191"
"London Borough of Redbridge","http://opendatacommunities.org/doc/london-borough-council/redbridge","9BNONBVO","Outside the BVACOP Objective Structure","9CNONBVO","Outside the BVACOP Objective Structure","REV","Revenue","R5032","Staircase Lighting HRA","02-PREMISES","Premises","02B","Energy costs","4000","Electricity","3695687","202302",18/05/2022 00:00:00,76.16,"39564","Gas Companies","REDACTED DATA","KENT COUNTY COUNCIL (GAS & ELECTRIC)","",,"204269191"
"London Borough of Redbridge","http://opendatacommunities.org/doc/london-borough-council/redbridge","9BNONBVO","Outside the BVACOP Objective Structure","9CNONBVO","Outside the BVACOP Objective Structure","REV","Revenue","R5032","Staircase Lighting HRA","02-PREMISES","Premises","02B","Energy costs","4000","Electricity","3695687","202302",18/05/2022 00:00:00,66.96,"39564","Gas Companies","REDACTED DATA","KENT COUNTY COUNCIL (GAS & ELECTRIC)","",,"204269191"
"London Borough of Redbridge","http://opendatacommunities.org/doc/london-borough-council/redbridge","9BNONBVO","Outside the BVACOP Objective Structure","9CNONBVO","Outside the BVACOP Objective Structure","REV","Revenue","R5032","Staircase Lighting HRA","02-PREMISES","Premises","02B","Energy costs","4000","Electricity","3695687","202302",18/05/2022 00:00:00,67.52,"39564","Gas Companies","REDACTED DATA","KENT COUNTY COUNCIL (GAS & ELECTRIC)","",,"204269191"
"London Borough of Redbridge","http://opendatacommunities.org/doc/london-borough-council/redbridge","9BNONBVO","Outside the BVACOP Objective Structure","9CNONBVO","Outside the BVACOP Objective Structure","REV","Revenue","R5032","Staircase Lighting HRA","02-PREMISES","Premises","02B","Energy costs","4000","Electricity","3695687","202302",19/05/2022 00:00:00,76.69,"39564","Gas Companies","REDACTED DATA","KENT COUNTY COUNCIL (GAS & ELECTRIC)","",,"204269191"
"London Borough of Redbridge","http://opendatacommunities.org/doc/london-borough-council/redbridge","9BNONBVO","Outside the BVACOP Objective Structure","9CNONBVO","Outside the BVACOP Objective Structure","REV","Revenue","R5032","Staircase Lighting HRA","02-PREMISES","Premises","02B","Energy costs","4000","Electricity","3695687","202302",19/05/2022 00:00:00,175.58,"39564","Gas Companies","REDACTED DATA","KENT COUNTY COUNCIL (GAS & ELECTRIC)","",,"204269191"
"London Borough of Redbridge","http://opendatacommunities.org/doc/london-borough-council/redbridge","9BNONBVO","Outside the BVACOP Objective Structure","9CNONBVO","Outside the BVACOP Objective Structure","REV","Revenue","R5032","Staircase Lighting HRA","02-PREMISES","Premises","02B","Energy costs","4000","Electricity","3695687","202302",18/05/2022 00:00:00,90.47,"39564","Gas Companies","REDACTED DATA","KENT COUNTY COUNCIL (GAS & ELECTRIC)","",,"204269191"
"London Borough of Redbridge","http://opendatacommunities.org/doc/london-borough-council/redbridge","9BNONBVO","Outside the BVACOP Objective Structure","9CNONBVO","Outside the BVACOP Objective Structure","REV","Revenue","R5032","Staircase Lighting HRA","02-PREMISES","Premises","02B","Energy costs","4000","Electricity","3695687","202302",18/05/2022 00:00:00,43.81,"39564","Gas Companies","REDACTED DATA","KENT COUNTY COUNCIL (GAS & ELECTRIC)","",,"204269191"
"London Borough of Redbridge","http://opendatacommunities.org/doc/london-borough-council/redbridge","9BNONBVO","Outside the BVACOP Objective Structure","9CNONBVO","Outside the BVACOP Objective Structure","REV","Revenue","R5032","Staircase Lighting HRA","02-PREMISES","Premises","02B","Energy costs","4000","Electricity","3695687","202302",19/05/2022 00:00:00,91.82,"39564","Gas Companies","REDACTED DATA","KENT COUNTY COUNCIL (GAS & ELECTRIC)","",,"204269191"
"London Borough of Redbridge","http://opendatacommunities.org/doc/london-borough-council/redbridge","9BNONBVO","Outside the BVACOP Objective Structure","9CNONBVO","Outside the BVACOP Objective Structure","REV","Revenue","R5032","Staircase Lighting HRA","02-PREMISES","Premises","02B","Energy costs","4000","Electricity","3695687","202302",18/05/2022 00:00:00,82.38,"39564","Gas Companies","REDACTED DATA","KENT COUNTY COUNCIL (GAS & ELECTRIC)","",,"204269191"
"London Borough of Redbridge","http://opendatacommunities.org/doc/london-borough-council/redbridge","9BNONBVO","Outside the BVACOP Objective Structure","9CNONBVO","Outside the BVACOP Objective Structure","REV","Revenue","R5032","Staircase Lighting HRA","02-PREMISES","Premises","02B","Energy costs","4000","Electricity","3695687","202302",18/05/2022 00:00:00,95.31,"39564","Gas Companies","REDACTED DATA","KENT COUNTY COUNCIL (GAS & ELECTRIC)","",,"204269191"
"London Borough of Redbridge","http://opendatacommunities.org/doc/london-borough-council/redbridge","9BNONBVO","Outside the BVACOP Objective Structure","9CNONBVO","Outside the BVACOP Objective Structure","REV","Revenue","R5032","Staircase Lighting HRA","02-PREMISES","Premises","02B","Energy costs","4000","Electricity","3695687","202302",19/05/2022 00:00:00,2333.93,"39564","Gas Companies","REDACTED DATA","KENT COUNTY COUNCIL (GAS & ELECTRIC)","",,"204269191"
"London Borough of Redbridge","http://opendatacommunities.org/doc/london-borough-council/redbridge","9BNONBVO","Outside the BVACOP Objective Structure","9CNONBVO","Outside the BVACOP Objective Structure","REV","Revenue","R5032","Staircase Lighting HRA","02-PREMISES","Premises","02B","Energy costs","4000","Electricity","3695687","202302",19/05/2022 00:00:00,89.16,"39564","Gas Companies","REDACTED DATA","KENT COUNTY COUNCIL (GAS & ELECTRIC)","",,"204269191"
"London Borough of Redbridge","http://opendatacommunities.org/doc/london-borough-council/redbridge","9BNONBVO","Outside the BVACOP Objective Structure","9CNONBVO","Outside the BVACOP Objective Structure","REV","Revenue","R5032","Staircase Lighting HRA","02-PREMISES","Premises","02B","Energy costs","4000","Electricity","3695687","202302",18/05/2022 00:00:00,58.11,"39564","Gas Companies","REDACTED DATA","KENT COUNTY COUNCIL (GAS & ELECTRIC)","",,"204269191"
"London Borough of Redbridge","http://opendatacommunities.org/doc/london-borough-council/redbridge","9BNONBVO","Outside the BVACOP Objective Structure","9CNONBVO","Outside the BVACOP Objective Structure","REV","Revenue","R5032","Staircase Lighting HRA","02-PREMISES","Premises","02B","Energy costs","4000","Electricity","3695687","202302",18/05/2022 00:00:00,66.93,"39564","Gas Companies","REDACTED DATA","KENT COUNTY COUNCIL (GAS & ELECTRIC)","",,"204269191"
"London Borough of Redbridge","http://opendatacommunities.org/doc/london-borough-council/redbridge","9BNONBVO","Outside the BVACOP Objective Structure","9CNONBVO","Outside the BVACOP Objective Structure","REV","Revenue","R5032","Staircase Lighting HRA","02-PREMISES","Premises","02B","Energy costs","4000","Electricity","3695687","202302",18/05/2022 00:00:00,85.27,"39564","Gas Companies","REDACTED DATA","KENT COUNTY COUNCIL (GAS & ELECTRIC)","",,"204269191"
"London Borough of Redbridge","http://opendatacommunities.org/doc/london-borough-council/redbridge","9BNONBVO","Outside the BVACOP Objective Structure","9CNONBVO","Outside the BVACOP Objective Structure","REV","Revenue","R5032","Staircase Lighting HRA","02-PREMISES","Premises","02B","Energy costs","4000","Electricity","3695687","202302",19/05/2022 00:00:00,-75.6,"39564","Gas Companies","REDACTED DATA","KENT COUNTY COUNCIL (GAS & ELECTRIC)","",,"204269191"
"London Borough of Redbridge","http://opendatacommunities.org/doc/london-borough-council/redbridge","9BNONBVO","Outside the BVACOP Objective Structure","9CNONBVO","Outside the BVACOP Objective Structure","REV","Revenue","R5032","Staircase Lighting HRA","02-PREMISES","Premises","02B","Energy costs","4000","Electricity","3695687","202302",18/05/2022 00:00:00,124.53,"39564","Gas Companies","REDACTED DATA","KENT COUNTY COUNCIL (GAS & ELECTRIC)","",,"204269191"
"London Borough of Redbridge","http://opendatacommunities.org/doc/london-borough-council/redbridge","9BNONBVO","Outside the BVACOP Objective Structure","9CNONBVO","Outside the BVACOP Objective Structure","REV","Revenue","R5032","Staircase Lighting HRA","02-PREMISES","Premises","02B","Energy costs","4000","Electricity","3695687","202302",19/05/2022 00:00:00,85.86,"39564","Gas Companies","REDACTED DATA","KENT COUNTY COUNCIL (GAS & ELECTRIC)","",,"204269191"
"London Borough of Redbridge","http://opendatacommunities.org/doc/london-borough-council/redbridge","9BNONBVO","Outside the BVACOP Objective Structure","9CNONBVO","Outside the BVACOP Objective Structure","REV","Revenue","R5032","Staircase Lighting HRA","02-PREMISES","Premises","02B","Energy costs","4000","Electricity","3695687","202302",18/05/2022 00:00:00,78.17,"39564","Gas Companies","REDACTED DATA","KENT COUNTY COUNCIL (GAS & ELECTRIC)","",,"204269191"
"London Borough of Redbridge","http://opendatacommunities.org/doc/london-borough-council/redbridge","9BNONBVO","Outside the BVACOP Objective Structure","9CNONBVO","Outside the BVACOP Objective Structure","REV","Revenue","R5032","Staircase Lighting HRA","02-PREMISES","Premises","02B","Energy costs","4000","Electricity","3695687","202302",19/05/2022 00:00:00,89.84,"39564","Gas Companies","REDACTED DATA","KENT COUNTY COUNCIL (GAS & ELECTRIC)","",,"204269191"
"London Borough of Redbridge","http://opendatacommunities.org/doc/london-borough-council/redbridge","9BNONBVO","Outside the BVACOP Objective Structure","9CNONBVO","Outside the BVACOP Objective Structure","REV","Revenue","R5032","Staircase Lighting HRA","02-PREMISES","Premises","02B","Energy costs","4000","Electricity","3695687","202302",18/05/2022 00:00:00,61.6,"39564","Gas Companies","REDACTED DATA","KENT COUNTY COUNCIL (GAS & ELECTRIC)","",,"204269191"
"London Borough of Redbridge","http://opendatacommunities.org/doc/london-borough-council/redbridge","9BNONBVO","Outside the BVACOP Objective Structure","9CNONBVO","Outside the BVACOP Objective Structure","REV","Revenue","R5032","Staircase Lighting HRA","02-PREMISES","Premises","02B","Energy costs","4000","Electricity","3695687","202302",19/05/2022 00:00:00,121.26,"39564","Gas Companies","REDACTED DATA","KENT COUNTY COUNCIL (GAS & ELECTRIC)","",,"204269191"
"London Borough of Redbridge","http://opendatacommunities.org/doc/london-borough-council/redbridge","9BNONBVO","Outside the BVACOP Objective Structure","9CNONBVO","Outside the BVACOP Objective Structure","REV","Revenue","R5032","Staircase Lighting HRA","02-PREMISES","Premises","02B","Energy costs","4000","Electricity","3695687","202302",18/05/2022 00:00:00,65.14,"39564","Gas Companies","REDACTED DATA","KENT COUNTY COUNCIL (GAS & ELECTRIC)","",,"204269191"
"London Borough of Redbridge","http://opendatacommunities.org/doc/london-borough-council/redbridge","9BNONBVO","Outside the BVACOP Objective Structure","9CNONBVO","Outside the BVACOP Objective Structure","REV","Revenue","R5032","Staircase Lighting HRA","02-PREMISES","Premises","02B","Energy costs","4000","Electricity","3695687","202302",18/05/2022 00:00:00,91.02,"39564","Gas Companies","REDACTED DATA","KENT COUNTY COUNCIL (GAS & ELECTRIC)","",,"204269191"
"London Borough of Redbridge","http://opendatacommunities.org/doc/london-borough-council/redbridge","9BNONBVO","Outside the BVACOP Objective Structure","9CNONBVO","Outside the BVACOP Objective Structure","REV","Revenue","R5032","Staircase Lighting HRA","02-PREMISES","Premises","02B","Energy costs","4000","Electricity","3695687","202302",19/05/2022 00:00:00,114.85,"39564","Gas Companies","REDACTED DATA","KENT COUNTY COUNCIL (GAS & ELECTRIC)","",,"204269191"
"London Borough of Redbridge","http://opendatacommunities.org/doc/london-borough-council/redbridge","9BNONBVO","Outside the BVACOP Objective Structure","9CNONBVO","Outside the BVACOP Objective Structure","REV","Revenue","R5032","Staircase Lighting HRA","02-PREMISES","Premises","02B","Energy costs","4000","Electricity","3695687","202302",19/05/2022 00:00:00,105.84,"39564","Gas Companies","REDACTED DATA","KENT COUNTY COUNCIL (GAS & ELECTRIC)","",,"204269191"
"London Borough of Redbridge","http://opendatacommunities.org/doc/london-borough-council/redbridge","9BNONBVO","Outside the BVACOP Objective Structure","9CNONBVO","Outside the BVACOP Objective Structure","REV","Revenue","R5032","Staircase Lighting HRA","02-PREMISES","Premises","02B","Energy costs","4000","Electricity","3695687","202302",18/05/2022 00:00:00,-265.84,"39564","Gas Companies","REDACTED DATA","KENT COUNTY COUNCIL (GAS & ELECTRIC)","",,"204269191"
"London Borough of Redbridge","http://opendatacommunities.org/doc/london-borough-council/redbridge","9BNONBVO","Outside the BVACOP Objective Structure","9CNONBVO","Outside the BVACOP Objective Structure","REV","Revenue","R5032","Staircase Lighting HRA","02-PREMISES","Premises","02B","Energy costs","4000","Electricity","3695687","202302",18/05/2022 00:00:00,-90.58,"39564","Gas Companies","REDACTED DATA","KENT COUNTY COUNCIL (GAS & ELECTRIC)","",,"204269191"
"London Borough of Redbridge","http://opendatacommunities.org/doc/london-borough-council/redbridge","9BNONBVO","Outside the BVACOP Objective Structure","9CNONBVO","Outside the BVACOP Objective Structure","REV","Revenue","R5032","Staircase Lighting HRA","02-PREMISES","Premises","02B","Energy costs","4000","Electricity","3695687","202302",18/05/2022 00:00:00,42.72,"39564","Gas Companies","REDACTED DATA","KENT COUNTY COUNCIL (GAS & ELECTRIC)","",,"204269191"
"London Borough of Redbridge","http://opendatacommunities.org/doc/london-borough-council/redbridge","9BNONBVO","Outside the BVACOP Objective Structure","9CNONBVO","Outside the BVACOP Objective Structure","REV","Revenue","R5032","Staircase Lighting HRA","02-PREMISES","Premises","02B","Energy costs","4000","Electricity","3695687","202302",19/05/2022 00:00:00,2636.72,"39564","Gas Companies","REDACTED DATA","KENT COUNTY COUNCIL (GAS & ELECTRIC)","",,"204269191"
"London Borough of Redbridge","http://opendatacommunities.org/doc/london-borough-council/redbridge","9BNONBVO","Outside the BVACOP Objective Structure","9CNONBVO","Outside the BVACOP Objective Structure","REV","Revenue","R5032","Staircase Lighting HRA","02-PREMISES","Premises","02B","Energy costs","4000","Electricity","3695687","202302",18/05/2022 00:00:00,80.75,"39564","Gas Companies","REDACTED DATA","KENT COUNTY COUNCIL (GAS & ELECTRIC)","",,"204269191"
"London Borough of Redbridge","http://opendatacommunities.org/doc/london-borough-council/redbridge","9BNONBVO","Outside the BVACOP Objective Structure","9CNONBVO","Outside the BVACOP Objective Structure","REV","Revenue","R5032","Staircase Lighting HRA","02-PREMISES","Premises","02B","Energy costs","4000","Electricity","3695687","202302",19/05/2022 00:00:00,111.1,"39564","Gas Companies","REDACTED DATA","KENT COUNTY COUNCIL (GAS & ELECTRIC)","",,"204269191"
"London Borough of Redbridge","http://opendatacommunities.org/doc/london-borough-council/redbridge","9BNONBVO","Outside the BVACOP Objective Structure","9CNONBVO","Outside the BVACOP Objective Structure","REV","Revenue","R5032","Staircase Lighting HRA","02-PREMISES","Premises","02B","Energy costs","4000","Electricity","3695687","202302",18/05/2022 00:00:00,67.86,"39564","Gas Companies","REDACTED DATA","KENT COUNTY COUNCIL (GAS & ELECTRIC)","",,"204269191"
"London Borough of Redbridge","http://opendatacommunities.org/doc/london-borough-council/redbridge","9BNONBVO","Outside the BVACOP Objective Structure","9CNONBVO","Outside the BVACOP Objective Structure","REV","Revenue","R5032","Staircase Lighting HRA","02-PREMISES","Premises","02B","Energy costs","4000","Electricity","3695687","202302",19/05/2022 00:00:00,95.46,"39564","Gas Companies","REDACTED DATA","KENT COUNTY COUNCIL (GAS & ELECTRIC)","",,"204269191"
"London Borough of Redbridge","http://opendatacommunities.org/doc/london-borough-council/redbridge","9BNONBVO","Outside the BVACOP Objective Structure","9CNONBVO","Outside the BVACOP Objective Structure","REV","Revenue","R5032","Staircase Lighting HRA","02-PREMISES","Premises","02B","Energy costs","4000","Electricity","3695687","202302",18/05/2022 00:00:00,67.1,"39564","Gas Companies","REDACTED DATA","KENT COUNTY COUNCIL (GAS & ELECTRIC)","",,"204269191"
"London Borough of Redbridge","http://opendatacommunities.org/doc/london-borough-council/redbridge","9BNONBVO","Outside the BVACOP Objective Structure","9CNONBVO","Outside the BVACOP Objective Structure","REV","Revenue","R5032","Staircase Lighting HRA","02-PREMISES","Premises","02B","Energy costs","4000","Electricity","3695687","202302",19/05/2022 00:00:00,73.13,"39564","Gas Companies","REDACTED DATA","KENT COUNTY COUNCIL (GAS & ELECTRIC)","",,"204269191"
"London Borough of Redbridge","http://opendatacommunities.org/doc/london-borough-council/redbridge","9BNONBVO","Outside the BVACOP Objective Structure","9CNONBVO","Outside the BVACOP Objective Structure","REV","Revenue","R5032","Staircase Lighting HRA","02-PREMISES","Premises","02B","Energy costs","4000","Electricity","3695687","202302",18/05/2022 00:00:00,82.39,"39564","Gas Companies","REDACTED DATA","KENT COUNTY COUNCIL (GAS & ELECTRIC)","",,"204269191"
"London Borough of Redbridge","http://opendatacommunities.org/doc/london-borough-council/redbridge","9BNONBVO","Outside the BVACOP Objective Structure","9CNONBVO","Outside the BVACOP Objective Structure","REV","Revenue","R5032","Staircase Lighting HRA","02-PREMISES","Premises","02B","Energy costs","4000","Electricity","3695687","202302",18/05/2022 00:00:00,126.03,"39564","Gas Companies","REDACTED DATA","KENT COUNTY COUNCIL (GAS & ELECTRIC)","",,"204269191"
"London Borough of Redbridge","http://opendatacommunities.org/doc/london-borough-council/redbridge","9BNONBVO","Outside the BVACOP Objective Structure","9CNONBVO","Outside the BVACOP Objective Structure","REV","Revenue","R5032","Staircase Lighting HRA","02-PREMISES","Premises","02B","Energy costs","4000","Electricity","3695687","202302",18/05/2022 00:00:00,78.07,"39564","Gas Companies","REDACTED DATA","KENT COUNTY COUNCIL (GAS & ELECTRIC)","",,"204269191"
"London Borough of Redbridge","http://opendatacommunities.org/doc/london-borough-council/redbridge","9BNONBVO","Outside the BVACOP Objective Structure","9CNONBVO","Outside the BVACOP Objective Structure","REV","Revenue","R5032","Staircase Lighting HRA","02-PREMISES","Premises","02B","Energy costs","4000","Electricity","3695687","202302",28/04/2022 00:00:00,288.2,"39564","Gas Companies","REDACTED DATA","KENT COUNTY COUNCIL (GAS & ELECTRIC)","",,"204269191"
"London Borough of Redbridge","http://opendatacommunities.org/doc/london-borough-council/redbridge","9BNONBVO","Outside the BVACOP Objective Structure","9CNONBVO","Outside the BVACOP Objective Structure","REV","Revenue","R5032","Staircase Lighting HRA","02-PREMISES","Premises","02B","Energy costs","4000","Electricity","3695687","202302",29/04/2022 00:00:00,694.69,"39564","Gas Companies","REDACTED DATA","KENT COUNTY COUNCIL (GAS & ELECTRIC)","",,"204269191"
"London Borough of Redbridge","http://opendatacommunities.org/doc/london-borough-council/redbridge","9BNONBVO","Outside the BVACOP Objective Structure","9CNONBVO","Outside the BVACOP Objective Structure","REV","Revenue","R5032","Staircase Lighting HRA","02-PREMISES","Premises","02B","Energy costs","4000","Electricity","3695687","202302",29/04/2022 00:00:00,502.93,"39564","Gas Companies","REDACTED DATA","KENT COUNTY COUNCIL (GAS & ELECTRIC)","",,"204269191"
"London Borough of Redbridge","http://opendatacommunities.org/doc/london-borough-council/redbridge","9BNONBVO","Outside the BVACOP Objective Structure","9CNONBVO","Outside the BVACOP Objective Structure","REV","Revenue","R5032","Staircase Lighting HRA","02-PREMISES","Premises","02B","Energy costs","4000","Electricity","3695687","202302",28/04/2022 00:00:00,-158.82,"39564","Gas Companies","REDACTED DATA","KENT COUNTY COUNCIL (GAS & ELECTRIC)","",,"204269191"
"London Borough of Redbridge","http://opendatacommunities.org/doc/london-borough-council/redbridge","9BNONBVO","Outside the BVACOP Objective Structure","9CNONBVO","Outside the BVACOP Objective Structure","REV","Revenue","R5032","Staircase Lighting HRA","02-PREMISES","Premises","02B","Energy costs","4000","Electricity","3695687","202302",05/05/2022 00:00:00,-80.45,"39564","Gas Companies","REDACTED DATA","KENT COUNTY COUNCIL (GAS & ELECTRIC)","",,"204269191"
"London Borough of Redbridge","http://opendatacommunities.org/doc/london-borough-council/redbridge","9BNONBVO","Outside the BVACOP Objective Structure","9CNONBVO","Outside the BVACOP Objective Structure","REV","Revenue","R5032","Staircase Lighting HRA","02-PREMISES","Premises","02B","Energy costs","4000","Electricity","3695687","202302",05/05/2022 00:00:00,94.77,"39564","Gas Companies","REDACTED DATA","KENT COUNTY COUNCIL (GAS & ELECTRIC)","",,"204269191"
"London Borough of Redbridge","http://opendatacommunities.org/doc/london-borough-council/redbridge","9BNONBVO","Outside the BVACOP Objective Structure","9CNONBVO","Outside the BVACOP Objective Structure","REV","Revenue","R5032","Staircase Lighting HRA","02-PREMISES","Premises","02B","Energy costs","4000","Electricity","3695687","202302",05/05/2022 00:00:00,71.11,"39564","Gas Companies","REDACTED DATA","KENT COUNTY COUNCIL (GAS & ELECTRIC)","",,"204269191"
"London Borough of Redbridge","http://opendatacommunities.org/doc/london-borough-council/redbridge","9BNONBVO","Outside the BVACOP Objective Structure","9CNONBVO","Outside the BVACOP Objective Structure","REV","Revenue","R5032","Staircase Lighting HRA","02-PREMISES","Premises","02B","Energy costs","4000","Electricity","3695687","202302",17/05/2022 00:00:00,3767.01,"39564","Gas Companies","REDACTED DATA","KENT COUNTY COUNCIL (GAS & ELECTRIC)","",,"204269191"
"London Borough of Redbridge","http://opendatacommunities.org/doc/london-borough-council/redbridge","9BNONBVO","Outside the BVACOP Objective Structure","9CNONBVO","Outside the BVACOP Objective Structure","REV","Revenue","R5032","Staircase Lighting HRA","02-PREMISES","Premises","02B","Energy costs","4000","Electricity","3695687","202302",18/05/2022 00:00:00,79.84,"39564","Gas Companies","REDACTED DATA","KENT COUNTY COUNCIL (GAS & ELECTRIC)","",,"204269191"
"London Borough of Redbridge","http://opendatacommunities.org/doc/london-borough-council/redbridge","9BNONBVO","Outside the BVACOP Objective Structure","9CNONBVO","Outside the BVACOP Objective Structure","REV","Revenue","R5032","Staircase Lighting HRA","02-PREMISES","Premises","02B","Energy costs","4000","Electricity","3695687","202302",19/05/2022 00:00:00,78.8,"39564","Gas Companies","REDACTED DATA","KENT COUNTY COUNCIL (GAS & ELECTRIC)","",,"204269191"
"London Borough of Redbridge","http://opendatacommunities.org/doc/london-borough-council/redbridge","9BNONBVO","Outside the BVACOP Objective Structure","9CNONBVO","Outside the BVACOP Objective Structure","REV","Revenue","R5032","Staircase Lighting HRA","02-PREMISES","Premises","02B","Energy costs","4000","Electricity","3695687","202302",19/05/2022 00:00:00,1306.09,"39564","Gas Companies","REDACTED DATA","KENT COUNTY COUNCIL (GAS & ELECTRIC)","",,"204269191"
"London Borough of Redbridge","http://opendatacommunities.org/doc/london-borough-council/redbridge","9BNONBVO","Outside the BVACOP Objective Structure","9CNONBVO","Outside the BVACOP Objective Structure","REV","Revenue","R5032","Staircase Lighting HRA","02-PREMISES","Premises","02B","Energy costs","4000","Electricity","3695687","202302",19/05/2022 00:00:00,1302.94,"39564","Gas Companies","REDACTED DATA","KENT COUNTY COUNCIL (GAS & ELECTRIC)","",,"204269191"
"London Borough of Redbridge","http://opendatacommunities.org/doc/london-borough-council/redbridge","9BNONBVO","Outside the BVACOP Objective Structure","9CNONBVO","Outside the BVACOP Objective Structure","REV","Revenue","R5032","Staircase Lighting HRA","02-PREMISES","Premises","02B","Energy costs","4000","Electricity","3695687","202302",19/05/2022 00:00:00,85.53,"39564","Gas Companies","REDACTED DATA","KENT COUNTY COUNCIL (GAS & ELECTRIC)","",,"204269191"
"London Borough of Redbridge","http://opendatacommunities.org/doc/london-borough-council/redbridge","9BNONBVO","Outside the BVACOP Objective Structure","9CNONBVO","Outside the BVACOP Objective Structure","REV","Revenue","R5032","Staircase Lighting HRA","02-PREMISES","Premises","02B","Energy costs","4000","Electricity","3695687","202302",19/05/2022 00:00:00,134.95,"39564","Gas Companies","REDACTED DATA","KENT COUNTY COUNCIL (GAS & ELECTRIC)","",,"204269191"
"London Borough of Redbridge","http://opendatacommunities.org/doc/london-borough-council/redbridge","9BNONBVO","Outside the BVACOP Objective Structure","9CNONBVO","Outside the BVACOP Objective Structure","REV","Revenue","R5032","Staircase Lighting HRA","02-PREMISES","Premises","02B","Energy costs","4000","Electricity","3695687","202302",19/05/2022 00:00:00,123,"39564","Gas Companies","REDACTED DATA","KENT COUNTY COUNCIL (GAS & ELECTRIC)","",,"204269191"
"London Borough of Redbridge","http://opendatacommunities.org/doc/london-borough-council/redbridge","9BNONBVO","Outside the BVACOP Objective Structure","9CNONBVO","Outside the BVACOP Objective Structure","REV","Revenue","R5032","Staircase Lighting HRA","02-PREMISES","Premises","02B","Energy costs","4000","Electricity","3695687","202302",19/05/2022 00:00:00,236.86,"39564","Gas Companies","REDACTED DATA","KENT COUNTY COUNCIL (GAS & ELECTRIC)","",,"204269191"
"London Borough of Redbridge","http://opendatacommunities.org/doc/london-borough-council/redbridge","9BNONBVO","Outside the BVACOP Objective Structure","9CNONBVO","Outside the BVACOP Objective Structure","REV","Revenue","R5032","Staircase Lighting HRA","02-PREMISES","Premises","02B","Energy costs","4000","Electricity","3695687","202302",18/05/2022 00:00:00,95.03,"39564","Gas Companies","REDACTED DATA","KENT COUNTY COUNCIL (GAS & ELECTRIC)","",,"204269191"
"London Borough of Redbridge","http://opendatacommunities.org/doc/london-borough-council/redbridge","9BNONBVO","Outside the BVACOP Objective Structure","9CNONBVO","Outside the BVACOP Objective Structure","REV","Revenue","R5032","Staircase Lighting HRA","02-PREMISES","Premises","02B","Energy costs","4000","Electricity","3695687","202302",18/05/2022 00:00:00,75.75,"39564","Gas Companies","REDACTED DATA","KENT COUNTY COUNCIL (GAS & ELECTRIC)","",,"204269191"
"London Borough of Redbridge","http://opendatacommunities.org/doc/london-borough-council/redbridge","9BNONBVO","Outside the BVACOP Objective Structure","9CNONBVO","Outside the BVACOP Objective Structure","REV","Revenue","R5032","Staircase Lighting HRA","02-PREMISES","Premises","02B","Energy costs","4000","Electricity","3695687","202302",18/05/2022 00:00:00,62.2,"39564","Gas Companies","REDACTED DATA","KENT COUNTY COUNCIL (GAS & ELECTRIC)","",,"204269191"
"London Borough of Redbridge","http://opendatacommunities.org/doc/london-borough-council/redbridge","9BNONBVO","Outside the BVACOP Objective Structure","9CNONBVO","Outside the BVACOP Objective Structure","REV","Revenue","R5032","Staircase Lighting HRA","02-PREMISES","Premises","02B","Energy costs","4000","Electricity","3695687","202302",18/05/2022 00:00:00,75.01,"39564","Gas Companies","REDACTED DATA","KENT COUNTY COUNCIL (GAS & ELECTRIC)","",,"204269191"
"London Borough of Redbridge","http://opendatacommunities.org/doc/london-borough-council/redbridge","9BNONBVO","Outside the BVACOP Objective Structure","9CNONBVO","Outside the BVACOP Objective Structure","REV","Revenue","R5032","Staircase Lighting HRA","02-PREMISES","Premises","02B","Energy costs","4000","Electricity","3695687","202302",18/05/2022 00:00:00,84.18,"39564","Gas Companies","REDACTED DATA","KENT COUNTY COUNCIL (GAS & ELECTRIC)","",,"204269191"
"London Borough of Redbridge","http://opendatacommunities.org/doc/london-borough-council/redbridge","9BNONBVO","Outside the BVACOP Objective Structure","9CNONBVO","Outside the BVACOP Objective Structure","REV","Revenue","R5032","Staircase Lighting HRA","02-PREMISES","Premises","02B","Energy costs","4000","Electricity","3695687","202302",18/05/2022 00:00:00,65.67,"39564","Gas Companies","REDACTED DATA","KENT COUNTY COUNCIL (GAS & ELECTRIC)","",,"204269191"
"London Borough of Redbridge","http://opendatacommunities.org/doc/london-borough-council/redbridge","9BNONBVO","Outside the BVACOP Objective Structure","9CNONBVO","Outside the BVACOP Objective Structure","REV","Revenue","R5032","Staircase Lighting HRA","02-PREMISES","Premises","02B","Energy costs","4000","Electricity","3695687","202302",18/05/2022 00:00:00,77.83,"39564","Gas Companies","REDACTED DATA","KENT COUNTY COUNCIL (GAS & ELECTRIC)","",,"204269191"
"London Borough of Redbridge","http://opendatacommunities.org/doc/london-borough-council/redbridge","9BNONBVO","Outside the BVACOP Objective Structure","9CNONBVO","Outside the BVACOP Objective Structure","REV","Revenue","R5032","Staircase Lighting HRA","02-PREMISES","Premises","02B","Energy costs","4000","Electricity","3695687","202302",19/05/2022 00:00:00,130.38,"39564","Gas Companies","REDACTED DATA","KENT COUNTY COUNCIL (GAS & ELECTRIC)","",,"204269191"
"London Borough of Redbridge","http://opendatacommunities.org/doc/london-borough-council/redbridge","9BNONBVO","Outside the BVACOP Objective Structure","9CNONBVO","Outside the BVACOP Objective Structure","REV","Revenue","R5032","Staircase Lighting HRA","02-PREMISES","Premises","02B","Energy costs","4000","Electricity","3695687","202302",19/05/2022 00:00:00,119.18,"39564","Gas Companies","REDACTED DATA","KENT COUNTY COUNCIL (GAS & ELECTRIC)","",,"204269191"
"London Borough of Redbridge","http://opendatacommunities.org/doc/london-borough-council/redbridge","9BNONBVO","Outside the BVACOP Objective Structure","9CNONBVO","Outside the BVACOP Objective Structure","REV","Revenue","R5032","Staircase Lighting HRA","02-PREMISES","Premises","02B","Energy costs","4000","Electricity","3695687","202302",18/05/2022 00:00:00,57.23,"39564","Gas Companies","REDACTED DATA","KENT COUNTY COUNCIL (GAS & ELECTRIC)","",,"204269191"
"London Borough of Redbridge","http://opendatacommunities.org/doc/london-borough-council/redbridge","9BNONBVO","Outside the BVACOP Objective Structure","9CNONBVO","Outside the BVACOP Objective Structure","REV","Revenue","R5032","Staircase Lighting HRA","02-PREMISES","Premises","02B","Energy costs","4000","Electricity","3695687","202302",19/05/2022 00:00:00,229.3,"39564","Gas Companies","REDACTED DATA","KENT COUNTY COUNCIL (GAS & ELECTRIC)","",,"204269191"
"London Borough of Redbridge","http://opendatacommunities.org/doc/london-borough-council/redbridge","9BNONBVO","Outside the BVACOP Objective Structure","9CNONBVO","Outside the BVACOP Objective Structure","REV","Revenue","R5032","Staircase Lighting HRA","02-PREMISES","Premises","02B","Energy costs","4000","Electricity","3695687","202302",19/05/2022 00:00:00,87.45,"39564","Gas Companies","REDACTED DATA","KENT COUNTY COUNCIL (GAS & ELECTRIC)","",,"204269191"
"London Borough of Redbridge","http://opendatacommunities.org/doc/london-borough-council/redbridge","9BNONBVO","Outside the BVACOP Objective Structure","9CNONBVO","Outside the BVACOP Objective Structure","REV","Revenue","R5032","Staircase Lighting HRA","02-PREMISES","Premises","02B","Energy costs","4000","Electricity","3695687","202302",19/05/2022 00:00:00,81.74,"39564","Gas Companies","REDACTED DATA","KENT COUNTY COUNCIL (GAS & ELECTRIC)","",,"204269191"
"London Borough of Redbridge","http://opendatacommunities.org/doc/london-borough-council/redbridge","9BNONBVO","Outside the BVACOP Objective Structure","9CNONBVO","Outside the BVACOP Objective Structure","REV","Revenue","R5032","Staircase Lighting HRA","02-PREMISES","Premises","02B","Energy costs","4000","Electricity","3695687","202302",18/05/2022 00:00:00,49.17,"39564","Gas Companies","REDACTED DATA","KENT COUNTY COUNCIL (GAS & ELECTRIC)","",,"204269191"
"London Borough of Redbridge","http://opendatacommunities.org/doc/london-borough-council/redbridge","9BNONBVO","Outside the BVACOP Objective Structure","9CNONBVO","Outside the BVACOP Objective Structure","REV","Revenue","R5032","Staircase Lighting HRA","02-PREMISES","Premises","02B","Energy costs","4000","Electricity","3695687","202302",18/05/2022 00:00:00,53.64,"39564","Gas Companies","REDACTED DATA","KENT COUNTY COUNCIL (GAS & ELECTRIC)","",,"204269191"
"London Borough of Redbridge","http://opendatacommunities.org/doc/london-borough-council/redbridge","9BNONBVO","Outside the BVACOP Objective Structure","9CNONBVO","Outside the BVACOP Objective Structure","REV","Revenue","R5032","Staircase Lighting HRA","02-PREMISES","Premises","02B","Energy costs","4000","Electricity","3695687","202302",19/05/2022 00:00:00,129.42,"39564","Gas Companies","REDACTED DATA","KENT COUNTY COUNCIL (GAS & ELECTRIC)","",,"204269191"
"London Borough of Redbridge","http://opendatacommunities.org/doc/london-borough-council/redbridge","9BNONBVO","Outside the BVACOP Objective Structure","9CNONBVO","Outside the BVACOP Objective Structure","REV","Revenue","R5032","Staircase Lighting HRA","02-PREMISES","Premises","02B","Energy costs","4000","Electricity","3695687","202302",19/05/2022 00:00:00,79.71,"39564","Gas Companies","REDACTED DATA","KENT COUNTY COUNCIL (GAS & ELECTRIC)","",,"204269191"
"London Borough of Redbridge","http://opendatacommunities.org/doc/london-borough-council/redbridge","9BNONBVO","Outside the BVACOP Objective Structure","9CNONBVO","Outside the BVACOP Objective Structure","REV","Revenue","R5032","Staircase Lighting HRA","02-PREMISES","Premises","02B","Energy costs","4000","Electricity","3695687","202302",18/05/2022 00:00:00,73.38,"39564","Gas Companies","REDACTED DATA","KENT COUNTY COUNCIL (GAS & ELECTRIC)","",,"204269191"
"London Borough of Redbridge","http://opendatacommunities.org/doc/london-borough-council/redbridge","9BNONBVO","Outside the BVACOP Objective Structure","9CNONBVO","Outside the BVACOP Objective Structure","REV","Revenue","R5032","Staircase Lighting HRA","02-PREMISES","Premises","02B","Energy costs","4000","Electricity","3695687","202302",18/05/2022 00:00:00,56.4,"39564","Gas Companies","REDACTED DATA","KENT COUNTY COUNCIL (GAS & ELECTRIC)","",,"204269191"
"London Borough of Redbridge","http://opendatacommunities.org/doc/london-borough-council/redbridge","9BNONBVO","Outside the BVACOP Objective Structure","9CNONBVO","Outside the BVACOP Objective Structure","REV","Revenue","R5032","Staircase Lighting HRA","02-PREMISES","Premises","02B","Energy costs","4000","Electricity","3695687","202302",18/05/2022 00:00:00,45.4,"39564","Gas Companies","REDACTED DATA","KENT COUNTY COUNCIL (GAS & ELECTRIC)","",,"204269191"
"London Borough of Redbridge","http://opendatacommunities.org/doc/london-borough-council/redbridge","9BNONBVO","Outside the BVACOP Objective Structure","9CNONBVO","Outside the BVACOP Objective Structure","REV","Revenue","R5032","Staircase Lighting HRA","02-PREMISES","Premises","02B","Energy costs","4000","Electricity","3695687","202302",18/05/2022 00:00:00,99.12,"39564","Gas Companies","REDACTED DATA","KENT COUNTY COUNCIL (GAS & ELECTRIC)","",,"204269191"
"London Borough of Redbridge","http://opendatacommunities.org/doc/london-borough-council/redbridge","9BNONBVO","Outside the BVACOP Objective Structure","9CNONBVO","Outside the BVACOP Objective Structure","REV","Revenue","R5114","Shu HRA Expenses","02-PREMISES","Premises","02B","Energy costs","4000","Electricity","3695687","202302",19/05/2022 00:00:00,-955.27,"39564","Gas Companies","REDACTED DATA","KENT COUNTY COUNCIL (GAS & ELECTRIC)","",,"204269191"
"London Borough of Redbridge","http://opendatacommunities.org/doc/london-borough-council/redbridge","9BNONBVO","Outside the BVACOP Objective Structure","9CNONBVO","Outside the BVACOP Objective Structure","REV","Revenue","R5114","Shu HRA Expenses","02-PREMISES","Premises","02B","Energy costs","4000","Electricity","3695687","202302",13/05/2022 00:00:00,690.7,"39564","Gas Companies","REDACTED DATA","KENT COUNTY COUNCIL (GAS & ELECTRIC)","",,"204269191"
"London Borough of Redbridge","http://opendatacommunities.org/doc/london-borough-council/redbridge","9BNONBVO","Outside the BVACOP Objective Structure","9CNONBVO","Outside the BVACOP Objective Structure","REV","Revenue","R5114","Shu HRA Expenses","02-PREMISES","Premises","02B","Energy costs","4000","Electricity","3695687","202302",16/05/2022 00:00:00,169.71,"39564","Gas Companies","REDACTED DATA","KENT COUNTY COUNCIL (GAS & ELECTRIC)","",,"204269191"
"London Borough of Redbridge","http://opendatacommunities.org/doc/london-borough-council/redbridge","9BNONBVO","Outside the BVACOP Objective Structure","9CNONBVO","Outside the BVACOP Objective Structure","REV","Revenue","R5114","Shu HRA Expenses","02-PREMISES","Premises","02B","Energy costs","4000","Electricity","3695687","202302",17/05/2022 00:00:00,1018.26,"39564","Gas Companies","REDACTED DATA","KENT COUNTY COUNCIL (GAS & ELECTRIC)","",,"204269191"
"London Borough of Redbridge","http://opendatacommunities.org/doc/london-borough-council/redbridge","9BNONBVO","Outside the BVACOP Objective Structure","9CNONBVO","Outside the BVACOP Objective Structure","REV","Revenue","R5114","Shu HRA Expenses","02-PREMISES","Premises","02B","Energy costs","4000","Electricity","3695687","202302",17/05/2022 00:00:00,163.81,"39564","Gas Companies","REDACTED DATA","KENT COUNTY COUNCIL (GAS & ELECTRIC)","",,"204269191"
"London Borough of Redbridge","http://opendatacommunities.org/doc/london-borough-council/redbridge","9BNONBVO","Outside the BVACOP Objective Structure","9CNONBVO","Outside the BVACOP Objective Structure","REV","Revenue","R5114","Shu HRA Expenses","02-PREMISES","Premises","02B","Energy costs","4000","Electricity","3695687","202302",17/05/2022 00:00:00,711.97,"39564","Gas Companies","REDACTED DATA","KENT COUNTY COUNCIL (GAS & ELECTRIC)","",,"204269191"
"London Borough of Redbridge","http://opendatacommunities.org/doc/london-borough-council/redbridge","9BNONBVO","Outside the BVACOP Objective Structure","9CNONBVO","Outside the BVACOP Objective Structure","REV","Revenue","R5114","Shu HRA Expenses","02-PREMISES","Premises","02B","Energy costs","4000","Electricity","3695687","202302",19/05/2022 00:00:00,900.4,"39564","Gas Companies","REDACTED DATA","KENT COUNTY COUNCIL (GAS & ELECTRIC)","",,"204269191"
"London Borough of Redbridge","http://opendatacommunities.org/doc/london-borough-council/redbridge","9BNONBVO","Outside the BVACOP Objective Structure","9CNONBVO","Outside the BVACOP Objective Structure","REV","Revenue","R5211","Orchard and Manford Office Costs","02-PREMISES","Premises","02B","Energy costs","4000","Electricity","3695687","202302",17/05/2022 00:00:00,1115.32,"39564","Gas Companies","REDACTED DATA","KENT COUNTY COUNCIL (GAS & ELECTRIC)","",,"204269191"
"London Borough of Redbridge","http://opendatacommunities.org/doc/london-borough-council/redbridge","6BADULTSOCIA","Adult Social Care","6CLONGT1864","Long-Term Support 18 - 64 Years","REV","Revenue","R4437","Learning Disabilities - Cranbrook & Loxford","06-TRANSFER","Transfer Payments","06B","Social Services Clients","7066","Supported Living","91314156","202302",03/05/2022 00:00:00,23347.14,"17020","Charities and Voluntary Organisations","REDACTED DATA","MENCAP","550457","http://opencorporates.com/companies/gb/550457","233010136"
"London Borough of Redbridge","http://opendatacommunities.org/doc/london-borough-council/redbridge","1BOTHEROPI&E","Other Operating Income & Expenditure","1CTRADSURDEF","Trading Account Surpluses & Deficits","REV","Revenue","R9148","Tree Holding Account","02-PREMISES","Premises","02I","Grounds maintenance costs","4753","Trees / Recreational","60488513","202302",27/04/2022 00:00:00,19363.03,"91569","Nurserymen - Trees, Shrubs and Bonsai","REDACTED DATA","PRINCIPAL TREES LTD","7035737","http://opencorporates.com/companies/gb/7035737","980080328"
"London Borough of Redbridge","http://opendatacommunities.org/doc/london-borough-council/redbridge","3BNONSCHFUND","Non-School Funding","6CCHILLOOKED","Children Looked After","REV","Revenue","R2238","Looked After Children Placements LA","05-THIRD","Third Party Payments","05H","Private contractors","6907","Private Homes","60488762","202302",01/05/2022 00:00:00,22928.57,"17780","Children's Homes","REDACTED DATA","Swan Childrens Homes","11694149","http://opencorporates.com/companies/gb/11694149",""
"London Borough of Redbridge","http://opendatacommunities.org/doc/london-borough-council/redbridge","9BNONBVO","Outside the BVACOP Objective Structure","9CNONBVO","Outside the BVACOP Objective Structure","CAP","Capital","C2204","Major Resurfacing Borough Roads LBR","99-NONBV","Capital, Balance Sheet and Control","50E","Capital - Contract Payments","9153","Carriageways","3694664","202302",19/05/2022 00:00:00,18807.31,"18632","Civil Engineers","REDACTED DATA","KENSON CONTRACTORS BENINGTON LTD","1314691","http://opencorporates.com/companies/gb/1314691","301629589"
"London Borough of Redbridge","http://opendatacommunities.org/doc/london-borough-council/redbridge","3BNONSCHFUND","Non-School Funding","6CCHILLOOKED","Children Looked After","REV","Revenue","R2238","Looked After Children Placements LA","05-THIRD","Third Party Payments","05H","Private contractors","6907","Private Homes","60488249","202301",15/04/2022 00:00:00,22500,"17780","Children's Homes","REDACTED DATA","First Blue Healthcare","11013190","http://opencorporates.com/companies/gb/11013190",""
"London Borough of Redbridge","http://opendatacommunities.org/doc/london-borough-council/redbridge","9BNONBVO","Outside the BVACOP Objective Structure","9CNONBVO","Outside the BVACOP Objective Structure","CAP","Capital","C4295","Expansion of Hatton Special School","99-NONBV","Capital, Balance Sheet and Control","50E","Capital - Contract Payments","9150","Main Contract","60489853","202302",01/04/2022 00:00:00,22450,"67981","Schools - Local Authority","REDACTED DATA","HATTON SCHOOL A/C","",,""
"London Borough of Redbridge","http://opendatacommunities.org/doc/london-borough-council/redbridge","1BOTHEROPI&E","Other Operating Income & Expenditure","1CTRADSURDEF","Trading Account Surpluses & Deficits","REV","Revenue","R9278","IT - Vision RCL Costs","04-SUPPLIES","Supplies And Services","04F","Communications and computing","5856","Leased Line Rentals","60490133","202302",02/04/2022 00:00:00,18384.48,"76510","Telecommunication Services","REDACTED DATA","VIRGIN MEDIA PAYMENTS LTD(MAIN ACCT)","1785381","http://opencorporates.com/companies/gb/1785381","591819014"
"London Borough of Redbridge","http://opendatacommunities.org/doc/london-borough-council/redbridge","9BNONBVO","Outside the BVACOP Objective Structure","9CNONBVO","Outside the BVACOP Objective Structure","CAP","Capital","C1041","Corporate Capital Maintenance","99-NONBV","Capital, Balance Sheet and Control","50E","Capital - Contract Payments","9150","Main Contract","3694028","202302",18/01/2022 00:00:00,18357.51,"21555","Construction Contractors - General","REDACTED DATA","Longley Group Ltd","7633349","http://opencorporates.com/companies/gb/7633349","165771972"
"London Borough of Redbridge","http://opendatacommunities.org/doc/london-borough-council/redbridge","3BLEACENTFND","LEA Centrally Held School Funds","3CNONSCH","Non Schools","REV","Revenue","R2004","Non-maintained and Independent settings","05-THIRD","Third Party Payments","05H","Private contractors","6906","Independent Schools","60488203","202302",01/03/2022 00:00:00,22020,"67860","Schools - Independent and Preparatory","REDACTED DATA","CAVENDISH LEARNING (LONDON) LTD","9622592","http://opencorporates.com/companies/gb/9622592",""
"London Borough of Redbridge","http://opendatacommunities.org/doc/london-borough-council/redbridge","9BNONBVO","Outside the BVACOP Objective Structure","9CNONBVO","Outside the BVACOP Objective Structure","CAP","Capital","C4344","School Conditioning","99-NONBV","Capital, Balance Sheet and Control","50E","Capital - Contract Payments","9150","Main Contract","70123833","202302",28/04/2022 00:00:00,18092.72,"21555","Construction Contractors - General","REDACTED DATA","Longley Group Ltd","7633349","http://opencorporates.com/companies/gb/7633349","165771972"
"London Borough of Redbridge","http://opendatacommunities.org/doc/london-borough-council/redbridge","3BINDSCHFUND","Individual School Funds","3CNONSCH","Non Schools","REV","Revenue","R2001","Secondary Schools SEN Top Up Fees","05-THIRD","Third Party Payments","05G","Other establishments","7430","LBR Pre 16 Top Up","3693985","202302",12/05/2022 00:00:00,21622.11,"67346","Schools and Colleges - Grant Maintained and Selfgoverning","REDACTED DATA","ARK SCHOOLS T/A ISAAC NEWTON ACADEMY","",,"859151405"
"London Borough of Redbridge","http://opendatacommunities.org/doc/london-borough-council/redbridge","6BADULTSOCIA","Adult Social Care","6CLONGT65","Long-Term Support 65+ Years","REV","Revenue","R4440","Learning Disabilities - Seven Kings","05-THIRD","Third Party Payments","05F","Voluntary associations","6802","Residential Homes","91318087","202302",10/05/2022 00:00:00,22779.68,"64710","Residential Care Homes","REDACTED DATA","ALPAM HOMES","",,""
"London Borough of Redbridge","http://opendatacommunities.org/doc/london-borough-council/redbridge","6BADULTSOCIA","Adult Social Care","6CLONGT65","Long-Term Support 65+ Years","REV","Revenue","R4440","Learning Disabilities - Seven Kings","09-INCOME","Income","09C","Customer and Client Receipts","8555","Accommodation Charges","91318087","202302",10/05/2022 00:00:00,-1217.6,"64710","Residential Care Homes","REDACTED DATA","ALPAM HOMES","",,""
"London Borough of Redbridge","http://opendatacommunities.org/doc/london-borough-council/redbridge","3BNONSCHFUND","Non-School Funding","6CCHILLOOKED","Children Looked After","REV","Revenue","R2238","Looked After Children Placements LA","05-THIRD","Third Party Payments","05H","Private contractors","6907","Private Homes","60489338","202302",25/04/2022 00:00:00,21478.57,"43419","Home Care Services","REDACTED DATA","TULIP CARE TWO LTD T/AS TULIP CARE","6627219","http://opencorporates.com/companies/gb/6627219",""
"London Borough of Redbridge","http://opendatacommunities.org/doc/london-borough-council/redbridge","3BLEACENTFND","LEA Centrally Held School Funds","3CSUPPORTSEN","Supporting Special Education Needs","REV","Revenue","R3022","Home Tuition","05-THIRD","Third Party Payments","05A","Independent units within the council","6513","Agency & Contracted Services","60488565","202302",24/04/2022 00:00:00,17673.35,"31230","Employment and Recruitment Agencies","REDACTED DATA","REMEDY RECRUITMENT GROUP LTD","4651426","http://opencorporates.com/companies/gb/4651426","820791924"
"London Borough of Redbridge","http://opendatacommunities.org/doc/london-borough-council/redbridge","3BNONSCHFUND","Non-School Funding","3CNONSCH","Non Schools","REV","Revenue","R3962","Early Years - 3 and 4 Year Olds","05-THIRD","Third Party Payments","05A","Independent units within the council","6517","Non-Maintained Schools","3695775","202302",23/05/2022 00:00:00,21164.33,"17580","Childcare Services","REDACTED DATA","FIRST DAY NURSERY LTD","9750129","http://opencorporates.com/companies/gb/9750129",""
"London Borough of Redbridge","http://opendatacommunities.org/doc/london-borough-council/redbridge","3BNONSCHFUND","Non-School Funding","3CNONSCH","Non Schools","REV","Revenue","R3962","Early Years - 3 and 4 Year Olds","05-THIRD","Third Party Payments","05A","Independent units within the council","6517","Non-Maintained Schools","3695792","202302",23/05/2022 00:00:00,21021,"67981","Schools - Local Authority","REDACTED DATA","DOWNSHALL PRIMARY SCHOOL A/C","",,""
"London Borough of Redbridge","http://opendatacommunities.org/doc/london-borough-council/redbridge","3BLEACENTFND","LEA Centrally Held School Funds","3CNONSCH","Non Schools","REV","Revenue","R2004","Non-maintained and Independent settings","05-THIRD","Third Party Payments","05H","Private contractors","6906","Independent Schools","60489009","202302",04/05/2022 00:00:00,21016.48,"68200","Schools - Special","REDACTED DATA","HOPEWELL SCHOOL LTD","",,""
"London Borough of Redbridge","http://opendatacommunities.org/doc/london-borough-council/redbridge","6BADULTSOCIA","Adult Social Care","6CLONGT65","Long-Term Support 65+ Years","REV","Revenue","R4440","Learning Disabilities - Seven Kings","06-TRANSFER","Transfer Payments","06B","Social Services Clients","7066","Supported Living","91314154","202302",03/05/2022 00:00:00,20931.71,"17020","Charities and Voluntary Organisations","REDACTED DATA","MENCAP","550457","http://opencorporates.com/companies/gb/550457","233010136"
